Body Name,Vendor Number,Vendor Name,Cost Centre,Service Label,BV Code,Amount,Period
Slough Borough Council,806901,4way Consulting Ltd,P240,Capital,Capital Charges,"1,648.35",Dec-22
Slough Borough Council,806901,4way Consulting Ltd,P240,Capital,Capital Charges,"3,531.71",Dec-22
Slough Borough Council,1055,A J Chapman,F123,Education & Inclusion,Supplies and Services,"80,442.94",Dec-22
Slough Borough Council,1055,A J Chapman,F123,Education & Inclusion,Supplies and Services,"3,718.00",Dec-22
Slough Borough Council,1055,A J Chapman,F123,Education & Inclusion,Supplies and Services,511.50,Dec-22
Slough Borough Council,1055,A J Chapman,F123,Education & Inclusion,Supplies and Services,783.00,Dec-22
Slough Borough Council,1055,A J Chapman,F123,Education & Inclusion,Supplies and Services,"1,352.00",Dec-22
Slough Borough Council,1055,A J Chapman,F123,Education & Inclusion,Supplies and Services,"1,030.00",Dec-22
Slough Borough Council,1055,A J Chapman,M50A,Place Operations,Transport,817.50,Dec-22
Slough Borough Council,806225,Abandoned Vehicle Contractor Ltd,B082,Place Strategy & Infrastructure,Premises,"4,475.00",Dec-22
Slough Borough Council,536,Ability Housing Association,M42E,Adult Social Care Operations,Supplies and Services,"2,925.51",Dec-22
Slough Borough Council,536,Ability Housing Association,M42E,Adult Social Care Operations,Supplies and Services,"3,465.04",Dec-22
Slough Borough Council,536,Ability Housing Association,M42E,Adult Social Care Operations,Supplies and Services,"2,698.87",Dec-22
Slough Borough Council,536,Ability Housing Association,M42E,Adult Social Care Operations,Supplies and Services,"2,801.89",Dec-22
Slough Borough Council,536,Ability Housing Association,M42E,Adult Social Care Operations,Supplies and Services,"2,760.68",Dec-22
Slough Borough Council,536,Ability Housing Association,M42E,Adult Social Care Operations,Supplies and Services,"2,508.77",Dec-22
Slough Borough Council,536,Ability Housing Association,M42E,Adult Social Care Operations,Supplies and Services,"1,483.26",Dec-22
Slough Borough Council,536,Ability Housing Association,M42E,Adult Social Care Operations,Supplies and Services,"1,945.80",Dec-22
Slough Borough Council,536,Ability Housing Association,M42E,Adult Social Care Operations,Supplies and Services,"2,502.09",Dec-22
Slough Borough Council,536,Ability Housing Association,M42E,Adult Social Care Operations,Supplies and Services,"2,872.96",Dec-22
Slough Borough Council,536,Ability Housing Association,M42E,Adult Social Care Operations,Supplies and Services,"2,529.16",Dec-22
Slough Borough Council,536,Ability Housing Association,M42E,Adult Social Care Operations,Supplies and Services,"1,307.09",Dec-22
Slough Borough Council,536,Ability Housing Association,M42E,Adult Social Care Operations,Supplies and Services,"3,120.20",Dec-22
Slough Borough Council,536,Ability Housing Association,M42E,Adult Social Care Operations,Supplies and Services,"2,769.94",Dec-22
Slough Borough Council,536,Ability Housing Association,M42E,Adult Social Care Operations,Supplies and Services,"2,744.25",Dec-22
Slough Borough Council,536,Ability Housing Association,M42E,Adult Social Care Operations,Supplies and Services,"1,903.62",Dec-22
Slough Borough Council,536,Ability Housing Association,M42E,Adult Social Care Operations,Supplies and Services,"3,156.32",Dec-22
Slough Borough Council,536,Ability Housing Association,M44E,Adult Social Care Operations,Supplies and Services,"1,862.56",Dec-22
Slough Borough Council,536,Ability Housing Association,M44E,Adult Social Care Operations,Supplies and Services,"1,932.62",Dec-22
Slough Borough Council,536,Ability Housing Association,M44E,Adult Social Care Operations,Supplies and Services,"2,278.76",Dec-22
Slough Borough Council,536,Ability Housing Association,M44E,Adult Social Care Operations,Supplies and Services,"2,361.17",Dec-22
Slough Borough Council,2898,Achieve Together t/a The Regard Partnership Ltd,M42E,Adult Social Care Operations,Supplies and Services,"2,469.35",Dec-22
Slough Borough Council,807554,Acorn Care & Education Ltd,F558,Children & Families,Supplies and Services,"62,494.00",Dec-22
Slough Borough Council,808103,Actian Europe Limited,H202,Community,Supplies and Services,"4,285.00",Dec-22
Slough Borough Council,808103,Actian Europe Limited,H202,Community,Supplies and Services,"4,285.06",Dec-22
Slough Borough Council,808103,Actian Europe Limited,J160,Place Management,Supplies and Services,"28,715.00",Dec-22
Slough Borough Council,808103,Actian Europe Limited,J160,Place Management,Supplies and Services,"28,715.00",Dec-22
Slough Borough Council,2185,Activate Learning,F558,Children & Families,Supplies and Services,"28,167.00",Dec-22
Slough Borough Council,807240,Adult Training Network,F210,Community,TP-Other Bodies,"4,140.00",Dec-22
Slough Borough Council,2855,Advance Housing & Support Ltd,M42F,Adult Social Care Operations,Supplies and Services,760.86,Dec-22
Slough Borough Council,2855,Advance Housing & Support Ltd,M42F,Adult Social Care Operations,Supplies and Services,"1,217.38",Dec-22
Slough Borough Council,2855,Advance Housing & Support Ltd,M42F,Adult Social Care Operations,Supplies and Services,"1,673.76",Dec-22
Slough Borough Council,2855,Advance Housing & Support Ltd,M42F,Adult Social Care Operations,Supplies and Services,"1,978.08",Dec-22
Slough Borough Council,2855,Advance Housing & Support Ltd,M42F,Adult Social Care Operations,Supplies and Services,"1,141.20",Dec-22
Slough Borough Council,2855,Advance Housing & Support Ltd,M42F,Adult Social Care Operations,Supplies and Services,760.80,Dec-22
Slough Borough Council,2855,Advance Housing & Support Ltd,M42F,Adult Social Care Operations,Supplies and Services,"1,217.28",Dec-22
Slough Borough Council,2855,Advance Housing & Support Ltd,M42F,Adult Social Care Operations,Supplies and Services,"1,141.20",Dec-22
Slough Borough Council,2855,Advance Housing & Support Ltd,M42F,Adult Social Care Operations,Supplies and Services,"1,673.76",Dec-22
Slough Borough Council,2855,Advance Housing & Support Ltd,M42F,Adult Social Care Operations,Supplies and Services,"1,978.08",Dec-22
Slough Borough Council,2135,Adventure Learning Childcare Limited,F909,Children & Families,Supplies and Services,"11,268.87",Dec-22
Slough Borough Council,808254,Agilyx EMEA Limited,B015,Finance & Commercial,Supplies and Services,"64,322.40",Dec-22
Slough Borough Council,2301,Aik Saath,F382,Children & Families,Supplies and Services,"2,992.44",Dec-22
Slough Borough Council,2197,Altwood Housing Ltd,H205,Housing (People) Services,Supplies and Services,"1,600.00",Dec-22
Slough Borough Council,2197,Altwood Housing Ltd,H205,Housing (People) Services,Supplies and Services,"2,250.00",Dec-22
Slough Borough Council,2197,Altwood Housing Ltd,H205,Housing (People) Services,Supplies and Services,720.00,Dec-22
Slough Borough Council,2197,Altwood Housing Ltd,H205,Housing (People) Services,Supplies and Services,"1,650.00",Dec-22
Slough Borough Council,2197,Altwood Housing Ltd,H205,Housing (People) Services,Supplies and Services,900.00,Dec-22
Slough Borough Council,2197,Altwood Housing Ltd,H205,Housing (People) Services,Supplies and Services,900.00,Dec-22
Slough Borough Council,2197,Altwood Housing Ltd,H205,Housing (People) Services,Supplies and Services,900.00,Dec-22
Slough Borough Council,2197,Altwood Housing Ltd,H205,Housing (People) Services,Supplies and Services,900.00,Dec-22
Slough Borough Council,2197,Altwood Housing Ltd,H205,Housing (People) Services,Supplies and Services,900.00,Dec-22
Slough Borough Council,2197,Altwood Housing Ltd,H205,Housing (People) Services,Supplies and Services,"1,200.00",Dec-22
Slough Borough Council,2197,Altwood Housing Ltd,H205,Housing (People) Services,Supplies and Services,"1,740.00",Dec-22
Slough Borough Council,2197,Altwood Housing Ltd,H205,Housing (People) Services,Supplies and Services,900.00,Dec-22
Slough Borough Council,2197,Altwood Housing Ltd,H205,Housing (People) Services,Supplies and Services,900.00,Dec-22
Slough Borough Council,86,Altwood Properties Ltd,H205,Housing (People) Services,Premises,"52,249.72",Dec-22
Slough Borough Council,807515,Always Growing Together Community Interest Company Limited,F909,Children & Families,Supplies and Services,"9,888.06",Dec-22
Slough Borough Council,803110,Amber Langis Limited,D500,Place Strategy & Infrastructure,Premises,"5,042.50",Dec-22
Slough Borough Council,808191,Ambrose Adrian Healthcare Ltd,M44E,Adult Social Care Operations,Supplies and Services,"3,800.00",Dec-22
Slough Borough Council,806792,Anchor Hanover Group,A03C,People Strategy & Commissioning,Supplies and Services,"47,542.80",Dec-22
Slough Borough Council,807893,Antz Kidz Activity Centre,F382,Children & Families,Supplies and Services,"1,402.50",Dec-22
Slough Borough Council,3137,Applegarth Care Home Ltd,M25C,Adult Social Care Operations,Supplies and Services,"3,400.00",Dec-22
Slough Borough Council,3137,Applegarth Care Home Ltd,M25C,Adult Social Care Operations,Supplies and Services,"3,200.00",Dec-22
Slough Borough Council,3137,Applegarth Care Home Ltd,M27C,Adult Social Care Operations,Supplies and Services,"3,780.00",Dec-22
Slough Borough Council,3137,Applegarth Care Home Ltd,M27C,Adult Social Care Operations,Supplies and Services,"3,500.00",Dec-22
Slough Borough Council,808415,APTUS EA LTD,H205,Housing (People) Services,Supplies and Services,"90,540.00",Dec-22
Slough Borough Council,3350,Arbour Vale School,E610,Children & Families,Supplies and Services,"450,076.07",Dec-22
Slough Borough Council,2073,Arc Preschool,F909,Children & Families,Supplies and Services,"5,791.80",Dec-22
Slough Borough Council,831,Argos Business Solutions Ltd,H055,Finance & Commercial,Supplies and Services,"6,894.50",Dec-22
Slough Borough Council,831,Argos Business Solutions Ltd,H055,Finance & Commercial,Supplies and Services,"6,844.75",Dec-22
Slough Borough Council,785,Artifax Software Ltd,B064,Business Services,Supplies and Services,"2,876.40",Dec-22
Slough Borough Council,420,Ashburn Estate Agents,H205,Housing (People) Services,Premises,"118,245.00",Dec-22
Slough Borough Council,3666,Assisted Living South West,M26E,Adult Social Care Operations,Supplies and Services,"6,395.24",Dec-22
Slough Borough Council,3666,Assisted Living South West,M26E,Adult Social Care Operations,Supplies and Services,"6,395.24",Dec-22
Slough Borough Council,3666,Assisted Living South West,M26E,Adult Social Care Operations,Supplies and Services,"4,816.04",Dec-22
Slough Borough Council,3666,Assisted Living South West,M51C,Adult Social Care Operations,Supplies and Services,"6,728.40",Dec-22
Slough Borough Council,804324,Astoria Healthcare,M27F,Adult Social Care Operations,Supplies and Services,"4,417.50",Dec-22
Slough Borough Council,804324,Astoria Healthcare,M27F,Adult Social Care Operations,Supplies and Services,"4,275.00",Dec-22
Slough Borough Council,570,Atkins Limited,P235,Capital,Capital Charges,"8,533.36",Dec-22
Slough Borough Council,570,Atkins Limited,P235,Capital,Capital Charges,"5,954.18",Dec-22
Slough Borough Council,570,Atkins Limited,P212,Capital,Capital Charges,"3,000.00",Dec-22
Slough Borough Council,808330,Avison Young,B089,Place Strategy & Infrastructure,Supplies and Services,"3,582.48",Dec-22
Slough Borough Council,808330,Avison Young,B089,Place Strategy & Infrastructure,Supplies and Services,"10,860.00",Dec-22
Slough Borough Council,808330,Avison Young,B089,Place Strategy & Infrastructure,Supplies and Services,"20,400.00",Dec-22
Slough Borough Council,808330,Avison Young,B089,Place Strategy & Infrastructure,Supplies and Services,"10,650.00",Dec-22
Slough Borough Council,808330,Avison Young,P242,Capital,Capital Charges,"11,400.00",Dec-22
Slough Borough Council,808330,Avison Young,P242,Capital,Capital Charges,"37,250.00",Dec-22
Slough Borough Council,808330,Avison Young,P242,Capital,Capital Charges,"2,500.00",Dec-22
Slough Borough Council,808330,Avison Young,P242,Capital,Capital Charges,"2,500.00",Dec-22
Slough Borough Council,808330,Avison Young,P242,Capital,Capital Charges,"2,500.00",Dec-22
Slough Borough Council,808330,Avison Young,P242,Capital,Capital Charges,"2,500.00",Dec-22
Slough Borough Council,808330,Avison Young,P242,Capital,Capital Charges,"2,128.00",Dec-22
Slough Borough Council,808330,Avison Young,P242,Capital,Capital Charges,"3,000.00",Dec-22
Slough Borough Council,808535,Baylis Community Media CIC,D124,Place Strategy & Infrastructure,Supplies and Services,650.76,Dec-22
Slough Borough Council,3370,Baylis Court School,E610,Children & Families,Supplies and Services,"5,833.34",Dec-22
Slough Borough Council,1681,Bcq,B246,Governance,Supplies and Services,"1,488.00",Dec-22
Slough Borough Council,1681,Bcq,D320,Place Operations,Supplies and Services,980.00,Dec-22
Slough Borough Council,1681,Bcq,B246,Governance,Supplies and Services,"1,736.00",Dec-22
Slough Borough Council,1681,Bcq,D610,Place Operations,Supplies and Services,"2,045.00",Dec-22
Slough Borough Council,1681,Bcq,D610,Place Operations,Supplies and Services,815.00,Dec-22
Slough Borough Council,3208,Be Happy Pre School,F549,Children & Families,Supplies and Services,"13,860.00",Dec-22
Slough Borough Council,3208,Be Happy Pre School,F549,Children & Families,Supplies and Services,"4,620.00",Dec-22
Slough Borough Council,3208,Be Happy Pre School,F909,Children & Families,Supplies and Services,570.00,Dec-22
Slough Borough Council,3208,Be Happy Pre School,F909,Children & Families,Supplies and Services,"8,019.49",Dec-22
Slough Borough Council,3208,Be Happy Pre School,F909,Children & Families,Supplies and Services,"18,118.26",Dec-22
Slough Borough Council,1818,Bear Buses,D512,Place Strategy & Infrastructure,Supplies and Services,"1,039.19",Dec-22
Slough Borough Council,1818,Bear Buses,D512,Place Strategy & Infrastructure,Supplies and Services,991.43,Dec-22
Slough Borough Council,805539,Beech Haven Ltd,M27C,Adult Social Care Operations,Supplies and Services,"3,277.14",Dec-22
Slough Borough Council,609,Beechwood Secondary School,E610,Children & Families,Supplies and Services,"7,314.50",Dec-22
Slough Borough Council,609,Beechwood Secondary School,B297,Finance & Commercial,Government Grants,"9,060.00",Dec-22
Slough Borough Council,804588,BEN Motor & Allied Trades Bev.Fnd,M15D,Adult Social Care Operations,Supplies and Services,"6,400.00",Dec-22
Slough Borough Council,804588,BEN Motor & Allied Trades Bev.Fnd,M27C,Adult Social Care Operations,Supplies and Services,"5,600.00",Dec-22
Slough Borough Council,612,Berkshire Healthcare Nhs Foundation Trust,A07M,Mental Health Services,Agency Staff,"3,766.25",Dec-22
Slough Borough Council,612,Berkshire Healthcare Nhs Foundation Trust,A07M,Mental Health Services,Agency Staff,804.58,Dec-22
Slough Borough Council,612,Berkshire Healthcare Nhs Foundation Trust,A07M,Mental Health Services,Agency Staff,777.00,Dec-22
Slough Borough Council,612,Berkshire Healthcare Nhs Foundation Trust,A07M,Mental Health Services,Agency Staff,"2,801.08",Dec-22
Slough Borough Council,612,Berkshire Healthcare Nhs Foundation Trust,A07M,Mental Health Services,Agency Staff,"3,192.75",Dec-22
Slough Borough Council,612,Berkshire Healthcare Nhs Foundation Trust,A07M,Mental Health Services,Agency Staff,"5,602.50",Dec-22
Slough Borough Council,612,Berkshire Healthcare Nhs Foundation Trust,A07M,Mental Health Services,Agency Staff,"3,901.00",Dec-22
Slough Borough Council,612,Berkshire Healthcare Nhs Foundation Trust,A07M,Mental Health Services,Agency Staff,665.75,Dec-22
Slough Borough Council,612,Berkshire Healthcare Nhs Foundation Trust,A07M,Mental Health Services,Agency Staff,"4,781.33",Dec-22
Slough Borough Council,612,Berkshire Healthcare Nhs Foundation Trust,A07R,Adult Social Care Operations,Supplies and Services,"6,582.00",Dec-22
Slough Borough Council,612,Berkshire Healthcare Nhs Foundation Trust,F417,Education & Inclusion,Supplies and Services,"2,083.30",Dec-22
Slough Borough Council,808116,BeSpoke Cycling Instruction Ltd,D500,Place Strategy & Infrastructure,Supplies and Services,"9,255.00",Dec-22
Slough Borough Council,808148,BEST CHOICE CARE LTD,M44C,Adult Social Care Operations,Supplies and Services,520.76,Dec-22
Slough Borough Council,808148,BEST CHOICE CARE LTD,M44C,Adult Social Care Operations,Supplies and Services,560.00,Dec-22
Slough Borough Council,808148,BEST CHOICE CARE LTD,M44C,Adult Social Care Operations,Supplies and Services,568.88,Dec-22
Slough Borough Council,808148,BEST CHOICE CARE LTD,M44C,Adult Social Care Operations,Supplies and Services,"1,225.00",Dec-22
Slough Borough Council,808148,BEST CHOICE CARE LTD,M44C,Adult Social Care Operations,Supplies and Services,"1,225.00",Dec-22
Slough Borough Council,808148,BEST CHOICE CARE LTD,M44C,Adult Social Care Operations,Supplies and Services,857.64,Dec-22
Slough Borough Council,808148,BEST CHOICE CARE LTD,M44C,Adult Social Care Operations,Supplies and Services,647.64,Dec-22
Slough Borough Council,808148,BEST CHOICE CARE LTD,M44C,Adult Social Care Operations,Supplies and Services,980.00,Dec-22
Slough Borough Council,808148,BEST CHOICE CARE LTD,M44C,Adult Social Care Operations,Supplies and Services,918.96,Dec-22
Slough Borough Council,808148,BEST CHOICE CARE LTD,M44C,Adult Social Care Operations,Supplies and Services,"1,470.00",Dec-22
Slough Borough Council,808148,BEST CHOICE CARE LTD,M44C,Adult Social Care Operations,Supplies and Services,835.76,Dec-22
Slough Borough Council,808148,BEST CHOICE CARE LTD,M44D,Adult Social Care Operations,Supplies and Services,"2,467.50",Dec-22
Slough Borough Council,808148,BEST CHOICE CARE LTD,M44D,Adult Social Care Operations,Supplies and Services,796.38,Dec-22
Slough Borough Council,808148,BEST CHOICE CARE LTD,M44D,Adult Social Care Operations,Supplies and Services,"2,205.28",Dec-22
Slough Borough Council,808148,BEST CHOICE CARE LTD,M45C,Adult Social Care Operations,Supplies and Services,"2,012.64",Dec-22
Slough Borough Council,808148,BEST CHOICE CARE LTD,M45C,Adult Social Care Operations,Supplies and Services,"1,654.02",Dec-22
Slough Borough Council,808148,BEST CHOICE CARE LTD,M45C,Adult Social Care Operations,Supplies and Services,"1,041.44",Dec-22
Slough Borough Council,808148,BEST CHOICE CARE LTD,M45C,Adult Social Care Operations,Supplies and Services,612.64,Dec-22
Slough Borough Council,808148,BEST CHOICE CARE LTD,M48C,Adult Social Care Operations,Supplies and Services,630.00,Dec-22
Slough Borough Council,803828,Blue Willow Day Nursery Ltd,F909,Children & Families,Supplies and Services,660.00,Dec-22
Slough Borough Council,803828,Blue Willow Day Nursery Ltd,F909,Children & Families,Supplies and Services,"21,852.39",Dec-22
Slough Borough Council,805160,Bouygues E&S FM UK Limited,K521,Business Services,Premises,"-1,029.11",Dec-22
Slough Borough Council,805160,Bouygues E&S FM UK Limited,K522,Business Services,Premises,"47,087.89",Dec-22
Slough Borough Council,805160,Bouygues E&S FM UK Limited,K523,Business Services,Premises,"47,041.09",Dec-22
Slough Borough Council,805160,Bouygues E&S FM UK Limited,K525,Business Services,Premises,"3,149.03",Dec-22
Slough Borough Council,805160,Bouygues E&S FM UK Limited,K525,Business Services,Premises,"3,149.02",Dec-22
Slough Borough Council,805160,Bouygues E&S FM UK Limited,K522,Business Services,Supplies and Services,"6,822.13",Dec-22
Slough Borough Council,805160,Bouygues E&S FM UK Limited,B060,Business Services,Transport,"5,631.02",Dec-22
Slough Borough Council,808575,Boxxe Limited,B342,Digital and Strategic IT,Capital Charges,"119,946.77",Dec-22
Slough Borough Council,808575,Boxxe Limited,B342,Digital and Strategic IT,Capital Charges,"9,950.00",Dec-22
Slough Borough Council,513,Bracknell Forest Borough Council,D412,Place Strategy & Infrastructure,Supplies and Services,"8,130.69",Dec-22
Slough Borough Council,513,Bracknell Forest Borough Council,D412,Place Strategy & Infrastructure,Supplies and Services,"3,586.90",Dec-22
Slough Borough Council,805179,Braywood Tree Surgery Ltd,D880,Place Operations,Supplies and Services,"1,000.00",Dec-22
Slough Borough Council,1745,Bre Global,D224,Place Regulation,Supplies and Services,"1,300.00",Dec-22
Slough Borough Council,805817,Bright World Nurseries,F909,Children & Families,Supplies and Services,"10,380.54",Dec-22
Slough Borough Council,504,Britwell Baptist Pre School,F909,Children & Families,Supplies and Services,"6,127.32",Dec-22
Slough Borough Council,805404,Building Futures Together,F210,Community,TP-Other Bodies,"11,892.00",Dec-22
Slough Borough Council,808393,Bulquees Riasat,A05L,Adult Social Care Operations,Supplies and Services,558.00,Dec-22
Slough Borough Council,741,Bunnies Pre-School,F909,Children & Families,Supplies and Services,"6,920.89",Dec-22
Slough Borough Council,803553,BUPA CARE HOME (CFH CARE),M25D,Adult Social Care Operations,Supplies and Services,"3,172.00",Dec-22
Slough Borough Council,804448,Bupa Care Homes (ANS) Ltd,M15D,Adult Social Care Operations,Supplies and Services,"6,000.00",Dec-22
Slough Borough Council,804448,Bupa Care Homes (ANS) Ltd,M15D,Adult Social Care Operations,Supplies and Services,"6,428.57",Dec-22
Slough Borough Council,804448,Bupa Care Homes (ANS) Ltd,M15D,Adult Social Care Operations,Supplies and Services,"6,642.86",Dec-22
Slough Borough Council,804492,Burnham Grammar School,F551,Children & Families,Supplies and Services,"19,000.00",Dec-22
Slough Borough Council,2675,Burnham Lodge Ltd,M17C,Adult Social Care Operations,Supplies and Services,"5,357.14",Dec-22
Slough Borough Council,2675,Burnham Lodge Ltd,M17C,Adult Social Care Operations,Supplies and Services,"5,535.71",Dec-22
Slough Borough Council,2675,Burnham Lodge Ltd,M17C,Adult Social Care Operations,Supplies and Services,"5,357.14",Dec-22
Slough Borough Council,2675,Burnham Lodge Ltd,M17C,Adult Social Care Operations,Supplies and Services,"5,535.71",Dec-22
Slough Borough Council,2675,Burnham Lodge Ltd,M17C,Adult Social Care Operations,Supplies and Services,"1,071.43",Dec-22
Slough Borough Council,2675,Burnham Lodge Ltd,M17C,Adult Social Care Operations,Supplies and Services,"5,535.71",Dec-22
Slough Borough Council,2675,Burnham Lodge Ltd,M18C,Adult Social Care Operations,Supplies and Services,"5,052.16",Dec-22
Slough Borough Council,2675,Burnham Lodge Ltd,M18C,Adult Social Care Operations,Supplies and Services,"4,237.04",Dec-22
Slough Borough Council,2675,Burnham Lodge Ltd,M18C,Adult Social Care Operations,Supplies and Services,"4,889.10",Dec-22
Slough Borough Council,2675,Burnham Lodge Ltd,M18C,Adult Social Care Operations,Supplies and Services,"4,889.19",Dec-22
Slough Borough Council,2675,Burnham Lodge Ltd,M18C,Adult Social Care Operations,Supplies and Services,"5,052.16",Dec-22
Slough Borough Council,2675,Burnham Lodge Ltd,M18C,Adult Social Care Operations,Supplies and Services,"5,052.16",Dec-22
Slough Borough Council,629,C.H.O.I.C.E Limited,M26E,Adult Social Care Operations,Supplies and Services,"8,456.61",Dec-22
Slough Borough Council,629,C.H.O.I.C.E Limited,M26E,Adult Social Care Operations,Supplies and Services,"10,409.83",Dec-22
Slough Borough Council,629,C.H.O.I.C.E Limited,M26E,Adult Social Care Operations,Supplies and Services,"10,642.89",Dec-22
Slough Borough Council,629,C.H.O.I.C.E Limited,M26E,Adult Social Care Operations,Supplies and Services,"8,930.66",Dec-22
Slough Borough Council,629,C.H.O.I.C.E Limited,M26E,Adult Social Care Operations,Supplies and Services,"12,502.24",Dec-22
Slough Borough Council,629,C.H.O.I.C.E Limited,M26E,Adult Social Care Operations,Supplies and Services,"10,090.89",Dec-22
Slough Borough Council,629,C.H.O.I.C.E Limited,M26E,Adult Social Care Operations,Supplies and Services,"10,386.91",Dec-22
Slough Borough Council,629,C.H.O.I.C.E Limited,M26E,Adult Social Care Operations,Supplies and Services,"11,083.71",Dec-22
Slough Borough Council,629,C.H.O.I.C.E Limited,M26E,Adult Social Care Operations,Supplies and Services,"10,756.82",Dec-22
Slough Borough Council,629,C.H.O.I.C.E Limited,M26E,Adult Social Care Operations,Supplies and Services,"10,997.65",Dec-22
Slough Borough Council,629,C.H.O.I.C.E Limited,M26E,Adult Social Care Operations,Supplies and Services,"9,228.34",Dec-22
Slough Borough Council,629,C.H.O.I.C.E Limited,M26E,Adult Social Care Operations,Supplies and Services,"12,918.98",Dec-22
Slough Borough Council,629,C.H.O.I.C.E Limited,M26E,Adult Social Care Operations,Supplies and Services,"9,941.44",Dec-22
Slough Borough Council,629,C.H.O.I.C.E Limited,M26E,Adult Social Care Operations,Supplies and Services,"10,733.13",Dec-22
Slough Borough Council,629,C.H.O.I.C.E Limited,M26E,Adult Social Care Operations,Supplies and Services,"11,453.17",Dec-22
Slough Borough Council,629,C.H.O.I.C.E Limited,M26E,Adult Social Care Operations,Supplies and Services,"6,214.33",Dec-22
Slough Borough Council,629,C.H.O.I.C.E Limited,M42E,Adult Social Care Operations,Supplies and Services,"6,033.90",Dec-22
Slough Borough Council,629,C.H.O.I.C.E Limited,M42E,Adult Social Care Operations,Supplies and Services,"5,493.90",Dec-22
Slough Borough Council,629,C.H.O.I.C.E Limited,M42E,Adult Social Care Operations,Supplies and Services,"5,911.76",Dec-22
Slough Borough Council,629,C.H.O.I.C.E Limited,M42E,Adult Social Care Operations,Supplies and Services,"5,947.11",Dec-22
Slough Borough Council,629,C.H.O.I.C.E Limited,M42E,Adult Social Care Operations,Supplies and Services,"1,071.43",Dec-22
Slough Borough Council,629,C.H.O.I.C.E Limited,M44F,Adult Social Care Operations,Supplies and Services,"2,523.94",Dec-22
Slough Borough Council,629,C.H.O.I.C.E Limited,M44F,Adult Social Care Operations,Supplies and Services,"2,498.61",Dec-22
Slough Borough Council,629,C.H.O.I.C.E Limited,M26E,Adult Social Care Operations,External Receipts,-517.29,Dec-22
Slough Borough Council,629,C.H.O.I.C.E Limited,M26E,Adult Social Care Operations,External Receipts,-534.53,Dec-22
Slough Borough Council,807129,Calcot Services for Children Ltd (Eton Dorney Therapeutic School),F462,Children & Families,Supplies and Services,"17,650.00",Dec-22
Slough Borough Council,806459,Cambridgeshire County Council,F123,Education & Inclusion,Supplies and Services,"1,757.00",Dec-22
Slough Borough Council,806459,Cambridgeshire County Council,F123,Education & Inclusion,Supplies and Services,833.70,Dec-22
Slough Borough Council,808007,Cameron & Cooper Limited (The Beech House School),F462,Children & Families,Supplies and Services,"2,105.20",Dec-22
Slough Borough Council,807068,Capita Business Services Limited,B379,Finance & Commercial,Supplies and Services,"5,537.83",Dec-22
Slough Borough Council,807068,Capita Business Services Limited,H015,Finance & Commercial,Supplies and Services,"47,250.00",Dec-22
Slough Borough Council,805621,Care Staff Services,A07R,Adult Social Care Operations,Supplies and Services,"1,251.25",Dec-22
Slough Borough Council,805621,Care Staff Services,A07R,Adult Social Care Operations,Supplies and Services,"2,205.00",Dec-22
Slough Borough Council,805621,Care Staff Services,A07R,Adult Social Care Operations,Supplies and Services,577.50,Dec-22
Slough Borough Council,805621,Care Staff Services,A07R,Adult Social Care Operations,Supplies and Services,507.50,Dec-22
Slough Borough Council,805621,Care Staff Services,A07R,Adult Social Care Operations,Supplies and Services,743.75,Dec-22
Slough Borough Council,805621,Care Staff Services,A07R,Adult Social Care Operations,Supplies and Services,"1,165.50",Dec-22
Slough Borough Council,805621,Care Staff Services,A07R,Adult Social Care Operations,Supplies and Services,708.75,Dec-22
Slough Borough Council,805621,Care Staff Services,M44C,Adult Social Care Operations,Supplies and Services,-683.00,Dec-22
Slough Borough Council,805621,Care Staff Services,M44C,Adult Social Care Operations,Supplies and Services,"1,838.16",Dec-22
Slough Borough Council,805621,Care Staff Services,M44C,Adult Social Care Operations,Supplies and Services,"2,331.00",Dec-22
Slough Borough Council,805621,Care Staff Services,M44C,Adult Social Care Operations,Supplies and Services,623.13,Dec-22
Slough Borough Council,805621,Care Staff Services,M44C,Adult Social Care Operations,Supplies and Services,"2,146.00",Dec-22
Slough Borough Council,805621,Care Staff Services,M44C,Adult Social Care Operations,Supplies and Services,735.00,Dec-22
Slough Borough Council,805621,Care Staff Services,M44C,Adult Social Care Operations,Supplies and Services,"1,102.50",Dec-22
Slough Borough Council,805621,Care Staff Services,M44C,Adult Social Care Operations,Supplies and Services,857.50,Dec-22
Slough Borough Council,805621,Care Staff Services,M44C,Adult Social Care Operations,Supplies and Services,777.00,Dec-22
Slough Borough Council,805621,Care Staff Services,M44C,Adult Social Care Operations,Supplies and Services,962.50,Dec-22
Slough Borough Council,805621,Care Staff Services,M44C,Adult Social Care Operations,Supplies and Services,"2,664.00",Dec-22
Slough Borough Council,805621,Care Staff Services,M44D,Adult Social Care Operations,Supplies and Services,"1,369.00",Dec-22
Slough Borough Council,805621,Care Staff Services,M44D,Adult Social Care Operations,Supplies and Services,"1,165.50",Dec-22
Slough Borough Council,805621,Care Staff Services,M44D,Adult Social Care Operations,Supplies and Services,"1,225.00",Dec-22
Slough Borough Council,805621,Care Staff Services,M44D,Adult Social Care Operations,Supplies and Services,"2,331.00",Dec-22
Slough Borough Council,805621,Care Staff Services,M44D,Adult Social Care Operations,Supplies and Services,832.50,Dec-22
Slough Borough Council,805621,Care Staff Services,M44F,Adult Social Care Operations,Supplies and Services,656.75,Dec-22
Slough Borough Council,805621,Care Staff Services,M44F,Adult Social Care Operations,Supplies and Services,"1,233.75",Dec-22
Slough Borough Council,805621,Care Staff Services,M45C,Adult Social Care Operations,Supplies and Services,612.50,Dec-22
Slough Borough Council,805621,Care Staff Services,M45C,Adult Social Care Operations,Supplies and Services,813.75,Dec-22
Slough Borough Council,805621,Care Staff Services,M45C,Adult Social Care Operations,Supplies and Services,"1,373.75",Dec-22
Slough Borough Council,805621,Care Staff Services,M45C,Adult Social Care Operations,Supplies and Services,739.38,Dec-22
Slough Borough Council,805621,Care Staff Services,M45C,Adult Social Care Operations,Supplies and Services,"1,071.88",Dec-22
Slough Borough Council,805621,Care Staff Services,M45C,Adult Social Care Operations,Supplies and Services,"2,205.00",Dec-22
Slough Borough Council,805621,Care Staff Services,M45C,Adult Social Care Operations,Supplies and Services,533.75,Dec-22
Slough Borough Council,805621,Care Staff Services,M45C,Adult Social Care Operations,Supplies and Services,787.50,Dec-22
Slough Borough Council,808149,Care Staff Services Support,M44F,Adult Social Care Operations,Supplies and Services,"5,240.49",Dec-22
Slough Borough Council,808149,Care Staff Services Support,M44F,Adult Social Care Operations,Supplies and Services,"5,240.49",Dec-22
Slough Borough Council,808149,Care Staff Services Support,M44F,Adult Social Care Operations,Supplies and Services,"5,415.17",Dec-22
Slough Borough Council,808149,Care Staff Services Support,M44F,Adult Social Care Operations,Supplies and Services,"4,673.06",Dec-22
Slough Borough Council,808149,Care Staff Services Support,M44F,Adult Social Care Operations,Supplies and Services,934.61,Dec-22
Slough Borough Council,808149,Care Staff Services Support,M44F,Adult Social Care Operations,Supplies and Services,"1,937.66",Dec-22
Slough Borough Council,808149,Care Staff Services Support,M44F,Adult Social Care Operations,Supplies and Services,"1,937.66",Dec-22
Slough Borough Council,808149,Care Staff Services Support,M44F,Adult Social Care Operations,Supplies and Services,"2,002.25",Dec-22
Slough Borough Council,808149,Care Staff Services Support,M44F,Adult Social Care Operations,Supplies and Services,"4,673.06",Dec-22
Slough Borough Council,808149,Care Staff Services Support,M44F,Adult Social Care Operations,Supplies and Services,"4,828.83",Dec-22
Slough Borough Council,1910,Carousel Buses Ltd,D512,Place Strategy & Infrastructure,Supplies and Services,"3,769.28",Dec-22
Slough Borough Council,1910,Carousel Buses Ltd,D512,Place Strategy & Infrastructure,Supplies and Services,"3,467.71",Dec-22
Slough Borough Council,804413,Castle Water,B068,Business Services,Premises,"1,611.92",Dec-22
Slough Borough Council,804413,Castle Water,D900,Place Operations,Premises,712.61,Dec-22
Slough Borough Council,418,Castleview School,E620,Children & Families,Supplies and Services,"42,666.66",Dec-22
Slough Borough Council,805619,Centennial Property Limited T/A The Housing Network,H205,Housing (People) Services,Premises,"40,130.00",Dec-22
Slough Borough Council,805174,Certas Energy,D900,Place Operations,Supplies and Services,"22,465.50",Dec-22
Slough Borough Council,805174,Certas Energy,D900,Place Operations,Supplies and Services,"24,732.00",Dec-22
Slough Borough Council,805174,Certas Energy,D900,Place Operations,Supplies and Services,870.00,Dec-22
Slough Borough Council,2892,Chalfont Lodge,M15D,Adult Social Care Operations,Supplies and Services,"5,978.57",Dec-22
Slough Borough Council,2892,Chalfont Lodge,M15D,Adult Social Care Operations,Supplies and Services,"3,321.43",Dec-22
Slough Borough Council,2892,Chalfont Lodge,M15F,Adult Social Care Operations,Supplies and Services,"8,857.14",Dec-22
Slough Borough Council,2608,Chandos Lodge Nursing Home,M18C,Adult Social Care Operations,Supplies and Services,"3,600.00",Dec-22
Slough Borough Council,808500,Chartwell Care Services,M26E,Adult Social Care Operations,Supplies and Services,"13,021.90",Dec-22
Slough Borough Council,807017,Chelmsford Safety Supplies Ltd,D750,Place Operations,Supplies and Services,"2,049.38",Dec-22
Slough Borough Council,1877,Chelsie Innes,C322,Community,Supplies and Services,"5,242.90",Dec-22
Slough Borough Council,3114,Cherry Trees Day Nursery,F909,Children & Families,Supplies and Services,"1,020.00",Dec-22
Slough Borough Council,3114,Cherry Trees Day Nursery,F909,Children & Families,Supplies and Services,"26,273.52",Dec-22
Slough Borough Council,2871,Cherry Trees Residential Care,M27F,Adult Social Care Operations,Supplies and Services,"2,878.57",Dec-22
Slough Borough Council,2871,Cherry Trees Residential Care,M27F,Adult Social Care Operations,Supplies and Services,"1,207.14",Dec-22
Slough Borough Council,2871,Cherry Trees Residential Care,M27F,Adult Social Care Operations,Supplies and Services,"2,785.71",Dec-22
Slough Borough Council,2871,Cherry Trees Residential Care,M27F,Adult Social Care Operations,Supplies and Services,"2,878.57",Dec-22
Slough Borough Council,2871,Cherry Trees Residential Care,M27F,Adult Social Care Operations,Supplies and Services,"2,785.71",Dec-22
Slough Borough Council,2871,Cherry Trees Residential Care,M42F,Adult Social Care Operations,Supplies and Services,"1,660.71",Dec-22
Slough Borough Council,2871,Cherry Trees Residential Care,M42F,Adult Social Care Operations,Supplies and Services,"3,321.43",Dec-22
Slough Borough Council,2871,Cherry Trees Residential Care,M42F,Adult Social Care Operations,Supplies and Services,"3,321.43",Dec-22
Slough Borough Council,807225,Chiltern Way Academy,F551,Children & Families,Supplies and Services,"2,155.08",Dec-22
Slough Borough Council,807225,Chiltern Way Academy,F551,Children & Families,Supplies and Services,"7,382.08",Dec-22
Slough Borough Council,808527,Chiron Care (Uk) Limited,M44F,Adult Social Care Operations,Supplies and Services,"2,560.50",Dec-22
Slough Borough Council,808527,Chiron Care (Uk) Limited,M44F,Adult Social Care Operations,Supplies and Services,"1,808.40",Dec-22
Slough Borough Council,808527,Chiron Care (Uk) Limited,M44F,Adult Social Care Operations,Supplies and Services,"4,431.43",Dec-22
Slough Borough Council,803495,Christchurch Court Ltd,M15D,Adult Social Care Operations,Supplies and Services,"8,574.13",Dec-22
Slough Borough Council,803495,Christchurch Court Ltd,M15D,Adult Social Care Operations,Supplies and Services,"8,859.80",Dec-22
Slough Borough Council,807491,Cippenham School,E620,Children & Families,Supplies and Services,"15,691.21",Dec-22
Slough Borough Council,807491,Cippenham School,B297,Finance & Commercial,Government Grants,"2,047.50",Dec-22
Slough Borough Council,807491,Cippenham School,B297,Finance & Commercial,Government Grants,"4,036.50",Dec-22
Slough Borough Council,806550,City Homecare Ltd,A07R,Adult Social Care Operations,Supplies and Services,"1,965.60",Dec-22
Slough Borough Council,806550,City Homecare Ltd,A07R,Adult Social Care Operations,Supplies and Services,735.00,Dec-22
Slough Borough Council,806550,City Homecare Ltd,A07R,Adult Social Care Operations,Supplies and Services,907.20,Dec-22
Slough Borough Council,806550,City Homecare Ltd,A07R,Adult Social Care Operations,Supplies and Services,"2,205.00",Dec-22
Slough Borough Council,806550,City Homecare Ltd,A07R,Adult Social Care Operations,Supplies and Services,"1,951.25",Dec-22
Slough Borough Council,806550,City Homecare Ltd,A07R,Adult Social Care Operations,Supplies and Services,857.50,Dec-22
Slough Borough Council,806550,City Homecare Ltd,M44C,Adult Social Care Operations,Supplies and Services,823.20,Dec-22
Slough Borough Council,806550,City Homecare Ltd,M44C,Adult Social Care Operations,Supplies and Services,"1,855.00",Dec-22
Slough Borough Council,806550,City Homecare Ltd,M44C,Adult Social Care Operations,Supplies and Services,"1,102.50",Dec-22
Slough Borough Council,806550,City Homecare Ltd,M44C,Adult Social Care Operations,Supplies and Services,866.25,Dec-22
Slough Borough Council,806550,City Homecare Ltd,M44C,Adult Social Care Operations,Supplies and Services,857.50,Dec-22
Slough Borough Council,806550,City Homecare Ltd,M44C,Adult Social Care Operations,Supplies and Services,892.50,Dec-22
Slough Borough Council,806550,City Homecare Ltd,M44C,Adult Social Care Operations,Supplies and Services,"1,225.00",Dec-22
Slough Borough Council,806550,City Homecare Ltd,M44C,Adult Social Care Operations,Supplies and Services,"1,715.00",Dec-22
Slough Borough Council,806550,City Homecare Ltd,M44C,Adult Social Care Operations,Supplies and Services,"1,102.50",Dec-22
Slough Borough Council,806550,City Homecare Ltd,M44C,Adult Social Care Operations,Supplies and Services,665.00,Dec-22
Slough Borough Council,806550,City Homecare Ltd,M44C,Adult Social Care Operations,Supplies and Services,"2,345.00",Dec-22
Slough Borough Council,806550,City Homecare Ltd,M44C,Adult Social Care Operations,Supplies and Services,"1,960.00",Dec-22
Slough Borough Council,806550,City Homecare Ltd,M44C,Adult Social Care Operations,Supplies and Services,"2,205.00",Dec-22
Slough Borough Council,806550,City Homecare Ltd,M44C,Adult Social Care Operations,Supplies and Services,857.50,Dec-22
Slough Borough Council,806550,City Homecare Ltd,M44C,Adult Social Care Operations,Supplies and Services,"1,470.00",Dec-22
Slough Borough Council,806550,City Homecare Ltd,M44C,Adult Social Care Operations,Supplies and Services,"1,960.00",Dec-22
Slough Borough Council,806550,City Homecare Ltd,M44C,Adult Social Care Operations,Supplies and Services,717.50,Dec-22
Slough Borough Council,806550,City Homecare Ltd,M44C,Adult Social Care Operations,Supplies and Services,"1,102.50",Dec-22
Slough Borough Council,806550,City Homecare Ltd,M44C,Adult Social Care Operations,Supplies and Services,"1,715.00",Dec-22
Slough Borough Council,806550,City Homecare Ltd,M44C,Adult Social Care Operations,Supplies and Services,892.50,Dec-22
Slough Borough Council,806550,City Homecare Ltd,M44C,Adult Social Care Operations,Supplies and Services,"1,960.00",Dec-22
Slough Borough Council,806550,City Homecare Ltd,M44C,Adult Social Care Operations,Supplies and Services,857.50,Dec-22
Slough Borough Council,806550,City Homecare Ltd,M44C,Adult Social Care Operations,Supplies and Services,"1,102.50",Dec-22
Slough Borough Council,806550,City Homecare Ltd,M44C,Adult Social Care Operations,Supplies and Services,980.00,Dec-22
Slough Borough Council,806550,City Homecare Ltd,M44C,Adult Social Care Operations,Supplies and Services,"3,675.00",Dec-22
Slough Borough Council,806550,City Homecare Ltd,M44C,Adult Social Care Operations,Supplies and Services,"1,102.50",Dec-22
Slough Borough Council,806550,City Homecare Ltd,M44C,Adult Social Care Operations,Supplies and Services,848.75,Dec-22
Slough Borough Council,806550,City Homecare Ltd,M44C,Adult Social Care Operations,Supplies and Services,857.50,Dec-22
Slough Borough Council,806550,City Homecare Ltd,M44C,Adult Social Care Operations,Supplies and Services,"1,347.50",Dec-22
Slough Borough Council,806550,City Homecare Ltd,M44C,Adult Social Care Operations,Supplies and Services,"2,205.00",Dec-22
Slough Borough Council,806550,City Homecare Ltd,M44C,Adult Social Care Operations,Supplies and Services,980.00,Dec-22
Slough Borough Council,806550,City Homecare Ltd,M44C,Adult Social Care Operations,Supplies and Services,"1,102.50",Dec-22
Slough Borough Council,806550,City Homecare Ltd,M44C,Adult Social Care Operations,Supplies and Services,735.00,Dec-22
Slough Borough Council,806550,City Homecare Ltd,M44C,Adult Social Care Operations,Supplies and Services,590.63,Dec-22
Slough Borough Council,806550,City Homecare Ltd,M44D,Adult Social Care Operations,Supplies and Services,705.60,Dec-22
Slough Borough Council,806550,City Homecare Ltd,M44D,Adult Social Care Operations,Supplies and Services,940.80,Dec-22
Slough Borough Council,806550,City Homecare Ltd,M44D,Adult Social Care Operations,Supplies and Services,902.47,Dec-22
Slough Borough Council,806550,City Homecare Ltd,M44D,Adult Social Care Operations,Supplies and Services,980.00,Dec-22
Slough Borough Council,806550,City Homecare Ltd,M44D,Adult Social Care Operations,Supplies and Services,"2,362.50",Dec-22
Slough Borough Council,806550,City Homecare Ltd,M44D,Adult Social Care Operations,Supplies and Services,"1,487.50",Dec-22
Slough Borough Council,806550,City Homecare Ltd,M44D,Adult Social Care Operations,Supplies and Services,840.00,Dec-22
Slough Borough Council,806550,City Homecare Ltd,M44D,Adult Social Care Operations,Supplies and Services,857.50,Dec-22
Slough Borough Council,806550,City Homecare Ltd,M44D,Adult Social Care Operations,Supplies and Services,717.50,Dec-22
Slough Borough Council,806550,City Homecare Ltd,M44D,Adult Social Care Operations,Supplies and Services,980.00,Dec-22
Slough Borough Council,806550,City Homecare Ltd,M44D,Adult Social Care Operations,Supplies and Services,"2,940.00",Dec-22
Slough Borough Council,806550,City Homecare Ltd,M44D,Adult Social Care Operations,Supplies and Services,503.13,Dec-22
Slough Borough Council,806550,City Homecare Ltd,M44D,Adult Social Care Operations,Supplies and Services,980.00,Dec-22
Slough Borough Council,806550,City Homecare Ltd,M44D,Adult Social Care Operations,Supplies and Services,665.00,Dec-22
Slough Borough Council,806550,City Homecare Ltd,M44D,Adult Social Care Operations,Supplies and Services,560.00,Dec-22
Slough Borough Council,806550,City Homecare Ltd,M44D,Adult Social Care Operations,Supplies and Services,717.50,Dec-22
Slough Borough Council,806550,City Homecare Ltd,M44D,Adult Social Care Operations,Supplies and Services,"1,863.75",Dec-22
Slough Borough Council,806550,City Homecare Ltd,M44E,Adult Social Care Operations,Supplies and Services,705.60,Dec-22
Slough Borough Council,806550,City Homecare Ltd,M44E,Adult Social Care Operations,Supplies and Services,705.60,Dec-22
Slough Borough Council,806550,City Homecare Ltd,M44E,Adult Social Care Operations,Supplies and Services,735.00,Dec-22
Slough Borough Council,806550,City Homecare Ltd,M44E,Adult Social Care Operations,Supplies and Services,705.60,Dec-22
Slough Borough Council,806550,City Homecare Ltd,M44F,Adult Social Care Operations,Supplies and Services,516.25,Dec-22
Slough Borough Council,806550,City Homecare Ltd,M44F,Adult Social Care Operations,Supplies and Services,840.00,Dec-22
Slough Borough Council,806550,City Homecare Ltd,M44F,Adult Social Care Operations,Supplies and Services,875.00,Dec-22
Slough Borough Council,806550,City Homecare Ltd,M45C,Adult Social Care Operations,Supplies and Services,647.50,Dec-22
Slough Borough Council,806550,City Homecare Ltd,M45C,Adult Social Care Operations,Supplies and Services,581.88,Dec-22
Slough Borough Council,806550,City Homecare Ltd,M45C,Adult Social Care Operations,Supplies and Services,647.50,Dec-22
Slough Borough Council,806550,City Homecare Ltd,M45C,Adult Social Care Operations,Supplies and Services,"1,023.75",Dec-22
Slough Borough Council,806550,City Homecare Ltd,M45C,Adult Social Care Operations,Supplies and Services,765.63,Dec-22
Slough Borough Council,806550,City Homecare Ltd,M45C,Adult Social Care Operations,Supplies and Services,"1,403.75",Dec-22
Slough Borough Council,806550,City Homecare Ltd,M45C,Adult Social Care Operations,Supplies and Services,612.50,Dec-22
Slough Borough Council,806550,City Homecare Ltd,M48C,Adult Social Care Operations,Supplies and Services,577.50,Dec-22
Slough Borough Council,806550,City Homecare Ltd,M48C,Adult Social Care Operations,Supplies and Services,516.25,Dec-22
Slough Borough Council,1083,Civica Uk Limited,B342,Digital and Strategic IT,Supplies and Services,"5,000.00",Dec-22
Slough Borough Council,455,Cj Associates,F146,Children & Families,Indirect Employee Expenses,700.00,Dec-22
Slough Borough Council,1151,Claycots Primary School,E200,Children & Families,Supplies and Services,"782,712.76",Dec-22
Slough Borough Council,3685,Coghlan Lodges Limited,M44D,Adult Social Care Operations,Supplies and Services,"2,116.04",Dec-22
Slough Borough Council,3685,Coghlan Lodges Limited,M44F,Adult Social Care Operations,Supplies and Services,"1,870.00",Dec-22
Slough Borough Council,805823,Collaborative Care Solutions,M42E,Adult Social Care Operations,Supplies and Services,"8,857.14",Dec-22
Slough Borough Council,805823,Collaborative Care Solutions,M42E,Adult Social Care Operations,Supplies and Services,"9,477.14",Dec-22
Slough Borough Council,805823,Collaborative Care Solutions,M42E,Adult Social Care Operations,Supplies and Services,"9,211.42",Dec-22
Slough Borough Council,805823,Collaborative Care Solutions,M42F,Adult Social Care Operations,Supplies and Services,"3,321.42",Dec-22
Slough Borough Council,805823,Collaborative Care Solutions,M42F,Adult Social Care Operations,Supplies and Services,"2,971.57",Dec-22
Slough Borough Council,805823,Collaborative Care Solutions,M42F,Adult Social Care Operations,Supplies and Services,"2,571.42",Dec-22
Slough Borough Council,805823,Collaborative Care Solutions,M44D,Adult Social Care Operations,Supplies and Services,"9,211.42",Dec-22
Slough Borough Council,805823,Collaborative Care Solutions,M44F,Adult Social Care Operations,Supplies and Services,"3,365.71",Dec-22
Slough Borough Council,805823,Collaborative Care Solutions,M44F,Adult Social Care Operations,Supplies and Services,"4,317.85",Dec-22
Slough Borough Council,805823,Collaborative Care Solutions,M44F,Adult Social Care Operations,Supplies and Services,"4,982.14",Dec-22
Slough Borough Council,286,Colnbrook C Of E Primary School,E620,Children & Families,Supplies and Services,"21,181.67",Dec-22
Slough Borough Council,286,Colnbrook C Of E Primary School,B297,Finance & Commercial,Government Grants,"2,070.00",Dec-22
Slough Borough Council,2535,Comfort Care Services,M27C,Adult Social Care Operations,Supplies and Services,"3,357.48",Dec-22
Slough Borough Council,2535,Comfort Care Services,M27C,Adult Social Care Operations,Supplies and Services,649.83,Dec-22
Slough Borough Council,2535,Comfort Care Services,M27C,Adult Social Care Operations,Supplies and Services,"3,249.17",Dec-22
Slough Borough Council,2535,Comfort Care Services,M27C,Adult Social Care Operations,Supplies and Services,"3,357.48",Dec-22
Slough Borough Council,2535,Comfort Care Services,M27C,Adult Social Care Operations,Supplies and Services,"3,357.48",Dec-22
Slough Borough Council,2535,Comfort Care Services,M27C,Adult Social Care Operations,Supplies and Services,"3,249.17",Dec-22
Slough Borough Council,2535,Comfort Care Services,M42E,Adult Social Care Operations,Supplies and Services,775.00,Dec-22
Slough Borough Council,2535,Comfort Care Services,M42E,Adult Social Care Operations,Supplies and Services,"1,165.82",Dec-22
Slough Borough Council,2535,Comfort Care Services,M42E,Adult Social Care Operations,Supplies and Services,"2,325.00",Dec-22
Slough Borough Council,2535,Comfort Care Services,M42E,Adult Social Care Operations,Supplies and Services,"3,192.03",Dec-22
Slough Borough Council,2535,Comfort Care Services,M42E,Adult Social Care Operations,Supplies and Services,"2,635.00",Dec-22
Slough Borough Council,2535,Comfort Care Services,M42E,Adult Social Care Operations,Supplies and Services,"2,564.81",Dec-22
Slough Borough Council,2535,Comfort Care Services,M42E,Adult Social Care Operations,Supplies and Services,"1,165.82",Dec-22
Slough Borough Council,2535,Comfort Care Services,M42E,Adult Social Care Operations,Supplies and Services,"1,538.88",Dec-22
Slough Borough Council,2535,Comfort Care Services,M42E,Adult Social Care Operations,Supplies and Services,"2,448.23",Dec-22
Slough Borough Council,2535,Comfort Care Services,M42E,Adult Social Care Operations,Supplies and Services,"5,114.92",Dec-22
Slough Borough Council,2535,Comfort Care Services,M42E,Adult Social Care Operations,Supplies and Services,"1,366.20",Dec-22
Slough Borough Council,2535,Comfort Care Services,M42E,Adult Social Care Operations,Supplies and Services,"1,231.22",Dec-22
Slough Borough Council,2535,Comfort Care Services,M42E,Adult Social Care Operations,Supplies and Services,"1,038.68",Dec-22
Slough Borough Council,2535,Comfort Care Services,M42E,Adult Social Care Operations,Supplies and Services,"1,005.17",Dec-22
Slough Borough Council,2535,Comfort Care Services,M42F,Adult Social Care Operations,Supplies and Services,758.00,Dec-22
Slough Borough Council,2535,Comfort Care Services,M42F,Adult Social Care Operations,Supplies and Services,839.21,Dec-22
Slough Borough Council,2535,Comfort Care Services,M42F,Adult Social Care Operations,Supplies and Services,"2,635.00",Dec-22
Slough Borough Council,2535,Comfort Care Services,M42F,Adult Social Care Operations,Supplies and Services,839.21,Dec-22
Slough Borough Council,2535,Comfort Care Services,M42F,Adult Social Care Operations,Supplies and Services,"1,007.06",Dec-22
Slough Borough Council,2535,Comfort Care Services,M42F,Adult Social Care Operations,Supplies and Services,"-1,253.71",Dec-22
Slough Borough Council,2535,Comfort Care Services,M42F,Adult Social Care Operations,Supplies and Services,"1,632.15",Dec-22
Slough Borough Council,2535,Comfort Care Services,M42F,Adult Social Care Operations,Supplies and Services,"1,300.00",Dec-22
Slough Borough Council,2535,Comfort Care Services,M42F,Adult Social Care Operations,Supplies and Services,839.21,Dec-22
Slough Borough Council,2535,Comfort Care Services,M42F,Adult Social Care Operations,Supplies and Services,839.21,Dec-22
Slough Borough Council,2535,Comfort Care Services,M42F,Adult Social Care Operations,Supplies and Services,"2,635.00",Dec-22
Slough Borough Council,2535,Comfort Care Services,M42F,Adult Social Care Operations,Supplies and Services,"2,635.00",Dec-22
Slough Borough Council,2535,Comfort Care Services,M42F,Adult Social Care Operations,Supplies and Services,"2,369.29",Dec-22
Slough Borough Council,2535,Comfort Care Services,M42F,Adult Social Care Operations,Supplies and Services,"3,893.82",Dec-22
Slough Borough Council,2535,Comfort Care Services,M42F,Adult Social Care Operations,Supplies and Services,"1,749.29",Dec-22
Slough Borough Council,2535,Comfort Care Services,M42F,Adult Social Care Operations,Supplies and Services,"2,635.00",Dec-22
Slough Borough Council,2535,Comfort Care Services,M42F,Adult Social Care Operations,Supplies and Services,"3,474.21",Dec-22
Slough Borough Council,2535,Comfort Care Services,M42F,Adult Social Care Operations,Supplies and Services,"-1,532.64",Dec-22
Slough Borough Council,2535,Comfort Care Services,M42F,Adult Social Care Operations,Supplies and Services,"-1,242.69",Dec-22
Slough Borough Council,2535,Comfort Care Services,M42F,Adult Social Care Operations,Supplies and Services,"-1,532.64",Dec-22
Slough Borough Council,2535,Comfort Care Services,M42F,Adult Social Care Operations,Supplies and Services,"-1,483.20",Dec-22
Slough Borough Council,2535,Comfort Care Services,M42F,Adult Social Care Operations,Supplies and Services,"-1,532.64",Dec-22
Slough Borough Council,2535,Comfort Care Services,M42F,Adult Social Care Operations,Supplies and Services,"-1,483.20",Dec-22
Slough Borough Council,2535,Comfort Care Services,M42F,Adult Social Care Operations,Supplies and Services,"-1,483.20",Dec-22
Slough Borough Council,2535,Comfort Care Services,M42F,Adult Social Care Operations,Supplies and Services,"-1,532.64",Dec-22
Slough Borough Council,2535,Comfort Care Services,M44E,Adult Social Care Operations,Supplies and Services,"4,461.56",Dec-22
Slough Borough Council,2535,Comfort Care Services,M44E,Adult Social Care Operations,Supplies and Services,"2,141.66",Dec-22
Slough Borough Council,2535,Comfort Care Services,M44F,Adult Social Care Operations,Supplies and Services,730.92,Dec-22
Slough Borough Council,2535,Comfort Care Services,M44F,Adult Social Care Operations,Supplies and Services,"1,165.82",Dec-22
Slough Borough Council,2535,Comfort Care Services,M44F,Adult Social Care Operations,Supplies and Services,"1,421.55",Dec-22
Slough Borough Council,2535,Comfort Care Services,M44F,Adult Social Care Operations,Supplies and Services,"2,937.87",Dec-22
Slough Borough Council,2535,Comfort Care Services,M44F,Adult Social Care Operations,Supplies and Services,"3,357.48",Dec-22
Slough Borough Council,2535,Comfort Care Services,M44F,Adult Social Care Operations,Supplies and Services,"1,888.26",Dec-22
Slough Borough Council,2535,Comfort Care Services,M44F,Adult Social Care Operations,Supplies and Services,"2,937.87",Dec-22
Slough Borough Council,2535,Comfort Care Services,M44F,Adult Social Care Operations,Supplies and Services,"3,474.21",Dec-22
Slough Borough Council,2535,Comfort Care Services,M44F,Adult Social Care Operations,Supplies and Services,"2,635.00",Dec-22
Slough Borough Council,2535,Comfort Care Services,M44F,Adult Social Care Operations,Supplies and Services,"1,317.50",Dec-22
Slough Borough Council,2535,Comfort Care Services,M44F,Adult Social Care Operations,Supplies and Services,"2,937.87",Dec-22
Slough Borough Council,2535,Comfort Care Services,M44F,Adult Social Care Operations,Supplies and Services,"2,937.87",Dec-22
Slough Borough Council,2535,Comfort Care Services,M44F,Adult Social Care Operations,Supplies and Services,929.11,Dec-22
Slough Borough Council,2535,Comfort Care Services,M44F,Adult Social Care Operations,Supplies and Services,"2,937.87",Dec-22
Slough Borough Council,2535,Comfort Care Services,M44F,Adult Social Care Operations,Supplies and Services,"2,843.10",Dec-22
Slough Borough Council,2535,Comfort Care Services,M44F,Adult Social Care Operations,Supplies and Services,"2,937.87",Dec-22
Slough Borough Council,2535,Comfort Care Services,M44F,Adult Social Care Operations,Supplies and Services,"2,937.87",Dec-22
Slough Borough Council,2535,Comfort Care Services,M44F,Adult Social Care Operations,Supplies and Services,"2,843.10",Dec-22
Slough Borough Council,2535,Comfort Care Services,M44F,Adult Social Care Operations,Supplies and Services,"2,843.10",Dec-22
Slough Borough Council,2535,Comfort Care Services,M44F,Adult Social Care Operations,Supplies and Services,"2,843.10",Dec-22
Slough Borough Council,2535,Comfort Care Services,M44F,Adult Social Care Operations,Supplies and Services,"2,937.87",Dec-22
Slough Borough Council,2535,Comfort Care Services,M81D,Adult Social Care Operations,Supplies and Services,"2,635.00",Dec-22
Slough Borough Council,3840,Community Housing And Therapy,M80F,Adult Social Care Operations,Supplies and Services,"2,531.14",Dec-22
Slough Borough Council,1772,Computershare Voucher Services,B348,People,Supplies and Services,"2,261.00",Dec-22
Slough Borough Council,806594,Coram Family and Childcare,M04A,People Children Management,Transport,"161,369.00",Dec-22
Slough Borough Council,1480,Corona Energy Limited,K526,Business Services,Premises,"22,653.77",Dec-22
Slough Borough Council,1480,Corona Energy Limited,K526,Business Services,Premises,"34,860.76",Dec-22
Slough Borough Council,1480,Corona Energy Limited,K526,Business Services,Premises,"21,547.71",Dec-22
Slough Borough Council,1480,Corona Energy Limited,K526,Business Services,Premises,"36,475.71",Dec-22
Slough Borough Council,1480,Corona Energy Limited,K526,Business Services,Premises,"23,462.82",Dec-22
Slough Borough Council,3290,Corporate Collections London Borough Of Hillingdon,M26E,Adult Social Care Operations,Supplies and Services,"1,632.40",Dec-22
Slough Borough Council,3290,Corporate Collections London Borough Of Hillingdon,M26E,Adult Social Care Operations,Supplies and Services,"1,632.40",Dec-22
Slough Borough Council,3290,Corporate Collections London Borough Of Hillingdon,M26E,Adult Social Care Operations,Supplies and Services,"1,632.40",Dec-22
Slough Borough Council,3290,Corporate Collections London Borough Of Hillingdon,M26E,Adult Social Care Operations,Supplies and Services,"1,632.40",Dec-22
Slough Borough Council,3290,Corporate Collections London Borough Of Hillingdon,M26E,Adult Social Care Operations,Supplies and Services,"1,632.40",Dec-22
Slough Borough Council,3290,Corporate Collections London Borough Of Hillingdon,M26E,Adult Social Care Operations,Supplies and Services,"1,632.40",Dec-22
Slough Borough Council,3290,Corporate Collections London Borough Of Hillingdon,M26E,Adult Social Care Operations,Supplies and Services,"1,632.40",Dec-22
Slough Borough Council,3290,Corporate Collections London Borough Of Hillingdon,M26E,Adult Social Care Operations,Supplies and Services,"1,632.40",Dec-22
Slough Borough Council,3290,Corporate Collections London Borough Of Hillingdon,M26E,Adult Social Care Operations,Supplies and Services,"1,632.40",Dec-22
Slough Borough Council,805278,Countrystyle Recycling Ltd,D342,Place Operations,Supplies and Services,"2,525.00",Dec-22
Slough Borough Council,805278,Countrystyle Recycling Ltd,D342,Place Operations,Supplies and Services,"5,064.20",Dec-22
Slough Borough Council,805278,Countrystyle Recycling Ltd,D342,Place Operations,Supplies and Services,"5,015.10",Dec-22
Slough Borough Council,3670,Craegmoor Birches Grove Priory,M27F,Adult Social Care Operations,Supplies and Services,"3,823.00",Dec-22
Slough Borough Council,1638,Creative Support Ltd,A02F,Adult Social Care Operations,Supplies and Services,"32,356.38",Dec-22
Slough Borough Council,1638,Creative Support Ltd,A02F,Adult Social Care Operations,Supplies and Services,"32,356.38",Dec-22
Slough Borough Council,1638,Creative Support Ltd,A02F,Adult Social Care Operations,Supplies and Services,"32,356.38",Dec-22
Slough Borough Council,1638,Creative Support Ltd,A02F,Adult Social Care Operations,Supplies and Services,"32,356.39",Dec-22
Slough Borough Council,1638,Creative Support Ltd,A02F,Adult Social Care Operations,Supplies and Services,"33,934.74",Dec-22
Slough Borough Council,1638,Creative Support Ltd,A02F,Adult Social Care Operations,Supplies and Services,"33,934.74",Dec-22
Slough Borough Council,1638,Creative Support Ltd,A02F,Adult Social Care Operations,Supplies and Services,"33,934.74",Dec-22
Slough Borough Council,1638,Creative Support Ltd,A02F,Adult Social Care Operations,Supplies and Services,"33,934.74",Dec-22
Slough Borough Council,1638,Creative Support Ltd,A02F,Adult Social Care Operations,Supplies and Services,"33,934.74",Dec-22
Slough Borough Council,1638,Creative Support Ltd,A02F,Adult Social Care Operations,Supplies and Services,"32,356.38",Dec-22
Slough Borough Council,1638,Creative Support Ltd,A02F,Adult Social Care Operations,Supplies and Services,"32,356.38",Dec-22
Slough Borough Council,1638,Creative Support Ltd,A02F,Adult Social Care Operations,Supplies and Services,"32,356.38",Dec-22
Slough Borough Council,1638,Creative Support Ltd,A02F,Adult Social Care Operations,Supplies and Services,"33,934.74",Dec-22
Slough Borough Council,1638,Creative Support Ltd,A02F,Adult Social Care Operations,Supplies and Services,"33,934.74",Dec-22
Slough Borough Council,1638,Creative Support Ltd,A02L,Adult Social Care Operations,Supplies and Services,"1,431.90",Dec-22
Slough Borough Council,1638,Creative Support Ltd,A02L,Adult Social Care Operations,Supplies and Services,"1,565.10",Dec-22
Slough Borough Council,1638,Creative Support Ltd,A02L,Adult Social Care Operations,Supplies and Services,"1,065.60",Dec-22
Slough Borough Council,1638,Creative Support Ltd,A02L,Adult Social Care Operations,Supplies and Services,"1,365.30",Dec-22
Slough Borough Council,1638,Creative Support Ltd,A02L,Adult Social Care Operations,Supplies and Services,"1,165.50",Dec-22
Slough Borough Council,1638,Creative Support Ltd,M42E,Adult Social Care Operations,Supplies and Services,"1,198.80",Dec-22
Slough Borough Council,1638,Creative Support Ltd,M42E,Adult Social Care Operations,Supplies and Services,"2,214.45",Dec-22
Slough Borough Council,1638,Creative Support Ltd,M42E,Adult Social Care Operations,Supplies and Services,"3,013.65",Dec-22
Slough Borough Council,1638,Creative Support Ltd,M42E,Adult Social Care Operations,Supplies and Services,"6,993.00",Dec-22
Slough Borough Council,1638,Creative Support Ltd,M42E,Adult Social Care Operations,Supplies and Services,"2,021.04",Dec-22
Slough Borough Council,1638,Creative Support Ltd,M44E,Adult Social Care Operations,Supplies and Services,"1,465.20",Dec-22
Slough Borough Council,1638,Creative Support Ltd,M44E,Adult Social Care Operations,Supplies and Services,699.30,Dec-22
Slough Borough Council,1638,Creative Support Ltd,M44E,Adult Social Care Operations,Supplies and Services,999.00,Dec-22
Slough Borough Council,1638,Creative Support Ltd,M44E,Adult Social Care Operations,Supplies and Services,932.40,Dec-22
Slough Borough Council,806983,Critiqom,B377,Finance & Commercial,Supplies and Services,978.50,Dec-22
Slough Borough Council,806983,Critiqom,B377,Finance & Commercial,Supplies and Services,"1,224.85",Dec-22
Slough Borough Council,806983,Critiqom,B377,Finance & Commercial,Supplies and Services,"1,397.05",Dec-22
Slough Borough Council,806983,Critiqom,B377,Finance & Commercial,Supplies and Services,"1,074.05",Dec-22
Slough Borough Council,806983,Critiqom,B377,Finance & Commercial,Supplies and Services,702.02,Dec-22
Slough Borough Council,806983,Critiqom,B377,Finance & Commercial,Supplies and Services,527.88,Dec-22
Slough Borough Council,806983,Critiqom,H015,Finance & Commercial,Supplies and Services,"1,588.50",Dec-22
Slough Borough Council,806983,Critiqom,H015,Finance & Commercial,Supplies and Services,"1,159.41",Dec-22
Slough Borough Council,806063,Cruise Minibuses Ltd,F123,Education & Inclusion,Supplies and Services,"7,584.50",Dec-22
Slough Borough Council,806900,CYXTERA TECHNOLOGY UK LIMITED,B282,Digital and Strategic IT,Supplies and Services,"23,205.42",Dec-22
Slough Borough Council,1897,Datchet St.Marys C Of E Academy,F552,Children & Families,Supplies and Services,"2,283.00",Dec-22
Slough Borough Council,807440,David Peplow,A04A,Adult Social Care Operations,Supplies and Services,"1,080.00",Dec-22
Slough Borough Council,2068,Dds Demolition,P242,Capital,Capital Charges,"120,712.20",Dec-22
Slough Borough Council,807563,Delib Limited,B203,Finance & Commercial,Supplies and Services,"9,995.00",Dec-22
Slough Borough Council,453,Dell Corporation Ltd,B660,Finance & Commercial,Supplies and Services,"1,555.55",Dec-22
Slough Borough Council,808612,Delta 4 Services Ltd,B377,Finance & Commercial,Supplies and Services,"5,000.00",Dec-22
Slough Borough Council,804903,Dennis Eagle Limited,D610,Place Operations,Supplies and Services,"22,464.72",Dec-22
Slough Borough Council,804903,Dennis Eagle Limited,D630,Place Operations,Supplies and Services,"2,117.04",Dec-22
Slough Borough Council,804903,Dennis Eagle Limited,D610,Place Operations,Supplies and Services,581.44,Dec-22
Slough Borough Council,804903,Dennis Eagle Limited,D610,Place Operations,Supplies and Services,542.03,Dec-22
Slough Borough Council,804903,Dennis Eagle Limited,D630,Place Operations,Supplies and Services,850.31,Dec-22
Slough Borough Council,3554,Dimensions (Uk) Ltd,M42E,Adult Social Care Operations,Supplies and Services,"7,248.26",Dec-22
Slough Borough Council,3554,Dimensions (Uk) Ltd,M42E,Adult Social Care Operations,Supplies and Services,"7,056.60",Dec-22
Slough Borough Council,3554,Dimensions (Uk) Ltd,M42E,Adult Social Care Operations,Supplies and Services,"5,660.32",Dec-22
Slough Borough Council,3554,Dimensions (Uk) Ltd,M42E,Adult Social Care Operations,Supplies and Services,"5,918.36",Dec-22
Slough Borough Council,3554,Dimensions (Uk) Ltd,M42E,Adult Social Care Operations,Supplies and Services,"7,532.87",Dec-22
Slough Borough Council,3554,Dimensions (Uk) Ltd,M42E,Adult Social Care Operations,Supplies and Services,"7,237.97",Dec-22
Slough Borough Council,3554,Dimensions (Uk) Ltd,M42E,Adult Social Care Operations,Supplies and Services,"6,273.69",Dec-22
Slough Borough Council,3554,Dimensions (Uk) Ltd,M42E,Adult Social Care Operations,Supplies and Services,"5,953.25",Dec-22
Slough Borough Council,3554,Dimensions (Uk) Ltd,M42E,Adult Social Care Operations,Supplies and Services,"7,586.74",Dec-22
Slough Borough Council,3554,Dimensions (Uk) Ltd,M42E,Adult Social Care Operations,Supplies and Services,"7,839.64",Dec-22
Slough Borough Council,3554,Dimensions (Uk) Ltd,M42E,Adult Social Care Operations,Supplies and Services,"7,489.87",Dec-22
Slough Borough Council,3554,Dimensions (Uk) Ltd,M42E,Adult Social Care Operations,Supplies and Services,"7,291.82",Dec-22
Slough Borough Council,3554,Dimensions (Uk) Ltd,M42E,Adult Social Care Operations,Supplies and Services,"5,849.00",Dec-22
Slough Borough Council,3554,Dimensions (Uk) Ltd,M42E,Adult Social Care Operations,Supplies and Services,"6,115.64",Dec-22
Slough Borough Council,3554,Dimensions (Uk) Ltd,M42E,Adult Social Care Operations,Supplies and Services,"7,783.97",Dec-22
Slough Borough Council,3554,Dimensions (Uk) Ltd,M42E,Adult Social Care Operations,Supplies and Services,"7,479.24",Dec-22
Slough Borough Council,3554,Dimensions (Uk) Ltd,M42E,Adult Social Care Operations,Supplies and Services,"6,482.81",Dec-22
Slough Borough Council,3554,Dimensions (Uk) Ltd,M42E,Adult Social Care Operations,Supplies and Services,"6,151.69",Dec-22
Slough Borough Council,805483,Direct Tyre Managenent Ltd,D610,Place Operations,Transport,"4,344.63",Dec-22
Slough Borough Council,805483,Direct Tyre Managenent Ltd,D620,Place Operations,Transport,657.52,Dec-22
Slough Borough Council,805483,Direct Tyre Managenent Ltd,D630,Place Operations,Transport,837.02,Dec-22
Slough Borough Council,803306,Ditton Park Academy,E620,Children & Families,Supplies and Services,"35,625.00",Dec-22
Slough Borough Council,1457,Dr Norman Gordon,D320,Place Operations,Premises,"2,147.18",Dec-22
Slough Borough Council,803177,Early Steps Preschool,F909,Children & Families,Supplies and Services,"6,300.20",Dec-22
Slough Borough Council,780,East Sussex County Council,F449,Education & Inclusion,Supplies and Services,"12,407.36",Dec-22
Slough Borough Council,780,East Sussex County Council,F123,Education & Inclusion,Supplies and Services,"6,128.01",Dec-22
Slough Borough Council,804924,Econ Engineering Limited,D880,Place Operations,Transport,"7,971.00",Dec-22
Slough Borough Council,804924,Econ Engineering Limited,D880,Place Operations,Transport,"8,236.70",Dec-22
Slough Borough Council,803301,Eden Girls School,E610,Children & Families,Supplies and Services,"9,650.68",Dec-22
Slough Borough Council,803301,Eden Girls School,B297,Finance & Commercial,Government Grants,"3,900.00",Dec-22
Slough Borough Council,1299,Edf Energy,K526,Business Services,Premises,"3,689.13",Dec-22
Slough Borough Council,1299,Edf Energy,K526,Business Services,Premises,"118,529.89",Dec-22
Slough Borough Council,1299,Edf Energy,K526,Business Services,Premises,"34,879.87",Dec-22
Slough Borough Council,1299,Edf Energy,D413,Place Strategy & Infrastructure,Supplies and Services,"88,939.33",Dec-22
Slough Borough Council,807001,Elegant Care Services Ltd,M42E,Adult Social Care Operations,Supplies and Services,"6,993.55",Dec-22
Slough Borough Council,807001,Elegant Care Services Ltd,M42E,Adult Social Care Operations,Supplies and Services,"5,987.42",Dec-22
Slough Borough Council,807001,Elegant Care Services Ltd,M42E,Adult Social Care Operations,Supplies and Services,"10,185.71",Dec-22
Slough Borough Council,807001,Elegant Care Services Ltd,M42E,Adult Social Care Operations,Supplies and Services,"6,217.71",Dec-22
Slough Borough Council,807001,Elegant Care Services Ltd,M44C,Adult Social Care Operations,Supplies and Services,"7,023.71",Dec-22
Slough Borough Council,806355,Elysium Healthcare,M26E,Adult Social Care Operations,Supplies and Services,"9,267.60",Dec-22
Slough Borough Council,806355,Elysium Healthcare,M26E,Adult Social Care Operations,Supplies and Services,"9,576.52",Dec-22
Slough Borough Council,808611,Emma Holmes,F253,Children & Families,Agency Staff,641.27,Dec-22
Slough Borough Council,3752,Endurance Health,M44C,Adult Social Care Operations,Supplies and Services,"1,127.25",Dec-22
Slough Borough Council,3752,Endurance Health,M44C,Adult Social Care Operations,Supplies and Services,571.20,Dec-22
Slough Borough Council,3752,Endurance Health,M44C,Adult Social Care Operations,Supplies and Services,883.59,Dec-22
Slough Borough Council,3752,Endurance Health,M44C,Adult Social Care Operations,Supplies and Services,630.42,Dec-22
Slough Borough Council,3752,Endurance Health,M44C,Adult Social Care Operations,Supplies and Services,749.70,Dec-22
Slough Borough Council,3752,Endurance Health,M44C,Adult Social Care Operations,Supplies and Services,"1,249.50",Dec-22
Slough Borough Council,3752,Endurance Health,M44C,Adult Social Care Operations,Supplies and Services,"1,124.55",Dec-22
Slough Borough Council,3752,Endurance Health,M44C,Adult Social Care Operations,Supplies and Services,"2,249.10",Dec-22
Slough Borough Council,3752,Endurance Health,M44C,Adult Social Care Operations,Supplies and Services,648.56,Dec-22
Slough Borough Council,3752,Endurance Health,M44C,Adult Social Care Operations,Supplies and Services,"1,279.75",Dec-22
Slough Borough Council,3752,Endurance Health,M44C,Adult Social Care Operations,Supplies and Services,874.65,Dec-22
Slough Borough Council,3752,Endurance Health,M44C,Adult Social Care Operations,Supplies and Services,"1,124.55",Dec-22
Slough Borough Council,3752,Endurance Health,M44C,Adult Social Care Operations,Supplies and Services,696.15,Dec-22
Slough Borough Council,3752,Endurance Health,M44C,Adult Social Care Operations,Supplies and Services,597.08,Dec-22
Slough Borough Council,3752,Endurance Health,M44C,Adult Social Care Operations,Supplies and Services,"1,499.40",Dec-22
Slough Borough Council,3752,Endurance Health,M44C,Adult Social Care Operations,Supplies and Services,999.60,Dec-22
Slough Borough Council,3752,Endurance Health,M44C,Adult Social Care Operations,Supplies and Services,"1,124.55",Dec-22
Slough Borough Council,3752,Endurance Health,M44C,Adult Social Care Operations,Supplies and Services,"1,124.55",Dec-22
Slough Borough Council,3752,Endurance Health,M44C,Adult Social Care Operations,Supplies and Services,892.50,Dec-22
Slough Borough Council,3752,Endurance Health,M44C,Adult Social Care Operations,Supplies and Services,946.05,Dec-22
Slough Borough Council,3752,Endurance Health,M44C,Adult Social Care Operations,Supplies and Services,"1,124.55",Dec-22
Slough Borough Council,3752,Endurance Health,M44C,Adult Social Care Operations,Supplies and Services,606.90,Dec-22
Slough Borough Council,3752,Endurance Health,M44D,Adult Social Care Operations,Supplies and Services,913.04,Dec-22
Slough Borough Council,3752,Endurance Health,M44D,Adult Social Care Operations,Supplies and Services,"1,178.10",Dec-22
Slough Borough Council,3752,Endurance Health,M44D,Adult Social Care Operations,Supplies and Services,839.29,Dec-22
Slough Borough Council,3752,Endurance Health,M44D,Adult Social Care Operations,Supplies and Services,"2,117.63",Dec-22
Slough Borough Council,3752,Endurance Health,M44F,Adult Social Care Operations,Supplies and Services,539.67,Dec-22
Slough Borough Council,3752,Endurance Health,M48C,Adult Social Care Operations,Supplies and Services,"2,998.80",Dec-22
Slough Borough Council,3752,Endurance Health,M48C,Adult Social Care Operations,Supplies and Services,874.65,Dec-22
Slough Borough Council,808450,Enhance EHC Limited,F500,Education & Inclusion,Supplies and Services,"6,020.94",Dec-22
Slough Borough Council,805423,Enriched Care,M44F,Adult Social Care Operations,Supplies and Services,"2,613.30",Dec-22
Slough Borough Council,805423,Enriched Care,M44F,Adult Social Care Operations,Supplies and Services,"2,879.90",Dec-22
Slough Borough Council,805423,Enriched Care,M44F,Adult Social Care Operations,Supplies and Services,"4,417.50",Dec-22
Slough Borough Council,805423,Enriched Care,M80F,Adult Social Care Operations,Supplies and Services,"1,758.01",Dec-22
Slough Borough Council,807310,Enterprise Rent-A-Car UK Limited trading as Enterprise Flex-E-Rent,P220,Capital,Capital Charges,729.00,Dec-22
Slough Borough Council,2677,Eton House Residential Home,M25C,Adult Social Care Operations,Supplies and Services,"3,534.00",Dec-22
Slough Borough Council,2677,Eton House Residential Home,M25C,Adult Social Care Operations,Supplies and Services,"3,534.00",Dec-22
Slough Borough Council,2677,Eton House Residential Home,M25D,Adult Social Care Operations,Supplies and Services,"3,199.64",Dec-22
Slough Borough Council,2677,Eton House Residential Home,M27C,Adult Social Care Operations,Supplies and Services,"1,022.14",Dec-22
Slough Borough Council,2677,Eton House Residential Home,M27C,Adult Social Care Operations,Supplies and Services,"3,520.71",Dec-22
Slough Borough Council,2677,Eton House Residential Home,M27C,Adult Social Care Operations,Supplies and Services,"2,657.14",Dec-22
Slough Borough Council,2677,Eton House Residential Home,M27C,Adult Social Care Operations,Supplies and Services,"2,657.14",Dec-22
Slough Borough Council,1995,Eton Wick C Of E First School,F552,Children & Families,Supplies and Services,"6,902.00",Dec-22
Slough Borough Council,806501,Excellent Healthcare Services Ltd,A07R,Adult Social Care Operations,Supplies and Services,"1,778.59",Dec-22
Slough Borough Council,806501,Excellent Healthcare Services Ltd,A07R,Adult Social Care Operations,Supplies and Services,536.13,Dec-22
Slough Borough Council,806501,Excellent Healthcare Services Ltd,A07R,Adult Social Care Operations,Supplies and Services,833.98,Dec-22
Slough Borough Council,806501,Excellent Healthcare Services Ltd,A07R,Adult Social Care Operations,Supplies and Services,"1,804.12",Dec-22
Slough Borough Council,806501,Excellent Healthcare Services Ltd,A07R,Adult Social Care Operations,Supplies and Services,536.13,Dec-22
Slough Borough Council,806501,Excellent Healthcare Services Ltd,M44C,Adult Social Care Operations,Supplies and Services,536.13,Dec-22
Slough Borough Council,806501,Excellent Healthcare Services Ltd,M44C,Adult Social Care Operations,Supplies and Services,"1,072.26",Dec-22
Slough Borough Council,806501,Excellent Healthcare Services Ltd,M44C,Adult Social Care Operations,Supplies and Services,"1,072.26",Dec-22
Slough Borough Council,806501,Excellent Healthcare Services Ltd,M44C,Adult Social Care Operations,Supplies and Services,"1,072.26",Dec-22
Slough Borough Council,806501,Excellent Healthcare Services Ltd,M44C,Adult Social Care Operations,Supplies and Services,"1,072.26",Dec-22
Slough Borough Council,806501,Excellent Healthcare Services Ltd,M44C,Adult Social Care Operations,Supplies and Services,833.98,Dec-22
Slough Borough Council,806501,Excellent Healthcare Services Ltd,M44C,Adult Social Care Operations,Supplies and Services,595.70,Dec-22
Slough Borough Council,806501,Excellent Healthcare Services Ltd,M44C,Adult Social Care Operations,Supplies and Services,595.70,Dec-22
Slough Borough Council,806501,Excellent Healthcare Services Ltd,M44C,Adult Social Care Operations,Supplies and Services,"2,280.68",Dec-22
Slough Borough Council,806501,Excellent Healthcare Services Ltd,M44C,Adult Social Care Operations,Supplies and Services,714.84,Dec-22
Slough Borough Council,806501,Excellent Healthcare Services Ltd,M44C,Adult Social Care Operations,Supplies and Services,"1,787.10",Dec-22
Slough Borough Council,806501,Excellent Healthcare Services Ltd,M44C,Adult Social Care Operations,Supplies and Services,"2,144.52",Dec-22
Slough Borough Council,806501,Excellent Healthcare Services Ltd,M44D,Adult Social Care Operations,Supplies and Services,595.70,Dec-22
Slough Borough Council,806501,Excellent Healthcare Services Ltd,M44F,Adult Social Care Operations,Supplies and Services,714.84,Dec-22
Slough Borough Council,806501,Excellent Healthcare Services Ltd,M44F,Adult Social Care Operations,Supplies and Services,"2,382.80",Dec-22
Slough Borough Council,806501,Excellent Healthcare Services Ltd,M44F,Adult Social Care Operations,Supplies and Services,953.12,Dec-22
Slough Borough Council,806501,Excellent Healthcare Services Ltd,M45C,Adult Social Care Operations,Supplies and Services,"1,174.38",Dec-22
Slough Borough Council,1992,Facultatieve Technologies Ltd,D320,Place Operations,Premises,"21,020.56",Dec-22
Slough Borough Council,808079,Fairley House School,F462,Children & Families,Supplies and Services,"11,936.00",Dec-22
Slough Borough Council,805225,Falcon Surfacing Ltd,D880,Place Operations,Supplies and Services,"1,577.50",Dec-22
Slough Borough Council,805225,Falcon Surfacing Ltd,D880,Place Operations,Supplies and Services,906.40,Dec-22
Slough Borough Council,805225,Falcon Surfacing Ltd,D880,Place Operations,Supplies and Services,847.90,Dec-22
Slough Borough Council,805225,Falcon Surfacing Ltd,D880,Place Operations,Supplies and Services,"4,327.50",Dec-22
Slough Borough Council,805225,Falcon Surfacing Ltd,D880,Place Operations,Supplies and Services,"5,593.12",Dec-22
Slough Borough Council,805225,Falcon Surfacing Ltd,D880,Place Operations,Supplies and Services,"37,681.20",Dec-22
Slough Borough Council,805225,Falcon Surfacing Ltd,D880,Place Operations,Supplies and Services,"8,245.23",Dec-22
Slough Borough Council,805225,Falcon Surfacing Ltd,D880,Place Operations,Supplies and Services,"9,150.00",Dec-22
Slough Borough Council,805225,Falcon Surfacing Ltd,D880,Place Operations,Supplies and Services,"5,659.00",Dec-22
Slough Borough Council,805225,Falcon Surfacing Ltd,D880,Place Operations,Supplies and Services,"3,402.14",Dec-22
Slough Borough Council,805225,Falcon Surfacing Ltd,D880,Place Operations,Supplies and Services,"6,465.00",Dec-22
Slough Borough Council,805225,Falcon Surfacing Ltd,D880,Place Operations,Supplies and Services,"5,975.00",Dec-22
Slough Borough Council,805225,Falcon Surfacing Ltd,D880,Place Operations,Supplies and Services,986.96,Dec-22
Slough Borough Council,805225,Falcon Surfacing Ltd,D880,Place Operations,Supplies and Services,"1,474.86",Dec-22
Slough Borough Council,805225,Falcon Surfacing Ltd,D880,Place Operations,Supplies and Services,"4,575.00",Dec-22
Slough Borough Council,805225,Falcon Surfacing Ltd,D880,Place Operations,Supplies and Services,"1,320.00",Dec-22
Slough Borough Council,805225,Falcon Surfacing Ltd,D880,Place Operations,Supplies and Services,"3,344.85",Dec-22
Slough Borough Council,805225,Falcon Surfacing Ltd,D880,Place Operations,Supplies and Services,"1,306.28",Dec-22
Slough Borough Council,805225,Falcon Surfacing Ltd,D880,Place Operations,Supplies and Services,"2,833.05",Dec-22
Slough Borough Council,805225,Falcon Surfacing Ltd,D880,Place Operations,Supplies and Services,522.40,Dec-22
Slough Borough Council,805225,Falcon Surfacing Ltd,D880,Place Operations,Supplies and Services,"1,443.22",Dec-22
Slough Borough Council,805225,Falcon Surfacing Ltd,D880,Place Operations,Supplies and Services,561.32,Dec-22
Slough Borough Council,805225,Falcon Surfacing Ltd,D880,Place Operations,Supplies and Services,"1,594.90",Dec-22
Slough Borough Council,805225,Falcon Surfacing Ltd,D880,Place Operations,Supplies and Services,537.60,Dec-22
Slough Borough Council,805225,Falcon Surfacing Ltd,D880,Place Operations,Supplies and Services,"1,024.89",Dec-22
Slough Borough Council,805225,Falcon Surfacing Ltd,D880,Place Operations,Supplies and Services,"1,294.13",Dec-22
Slough Borough Council,4031,Family Support Practise Limited,A03D,Adult Social Care Operations,Supplies and Services,"2,189.25",Dec-22
Slough Borough Council,4031,Family Support Practise Limited,B277,Digital and Strategic IT,Supplies and Services,"1,800.00",Dec-22
Slough Borough Council,4031,Family Support Practise Limited,B277,Digital and Strategic IT,Supplies and Services,"1,800.00",Dec-22
Slough Borough Council,4031,Family Support Practise Limited,B277,Digital and Strategic IT,Supplies and Services,"1,800.00",Dec-22
Slough Borough Council,4031,Family Support Practise Limited,B277,Digital and Strategic IT,Supplies and Services,"1,800.00",Dec-22
Slough Borough Council,4031,Family Support Practise Limited,B277,Digital and Strategic IT,Supplies and Services,"1,800.00",Dec-22
Slough Borough Council,955,First Beeline Buses Ltd,D512,Place Strategy & Infrastructure,Supplies and Services,"5,782.12",Dec-22
Slough Borough Council,955,First Beeline Buses Ltd,D512,Place Strategy & Infrastructure,Supplies and Services,"4,497.09",Dec-22
Slough Borough Council,955,First Beeline Buses Ltd,D512,Place Strategy & Infrastructure,Supplies and Services,"4,556.20",Dec-22
Slough Borough Council,955,First Beeline Buses Ltd,D512,Place Strategy & Infrastructure,Supplies and Services,"5,124.17",Dec-22
Slough Borough Council,955,First Beeline Buses Ltd,D512,Place Strategy & Infrastructure,Supplies and Services,"4,919.23",Dec-22
Slough Borough Council,955,First Beeline Buses Ltd,D512,Place Strategy & Infrastructure,Supplies and Services,"4,737.33",Dec-22
Slough Borough Council,955,First Beeline Buses Ltd,D512,Place Strategy & Infrastructure,Supplies and Services,"4,497.09",Dec-22
Slough Borough Council,955,First Beeline Buses Ltd,D512,Place Strategy & Infrastructure,Supplies and Services,"83,516.71",Dec-22
Slough Borough Council,1413,First Greater Western Ltd,F123,Education & Inclusion,Supplies and Services,614.00,Dec-22
Slough Borough Council,754,First Steps Day Nursery,F909,Children & Families,Supplies and Services,"10,168.53",Dec-22
Slough Borough Council,1626,Five Star Radio Cars Limited,F123,Education & Inclusion,Supplies and Services,"2,100.00",Dec-22
Slough Borough Council,1626,Five Star Radio Cars Limited,F123,Education & Inclusion,Supplies and Services,640.00,Dec-22
Slough Borough Council,1626,Five Star Radio Cars Limited,F123,Education & Inclusion,Supplies and Services,"1,680.00",Dec-22
Slough Borough Council,1626,Five Star Radio Cars Limited,F123,Education & Inclusion,Supplies and Services,960.00,Dec-22
Slough Borough Council,2519,Fleet Tutors,F449,Education & Inclusion,Supplies and Services,"3,330.00",Dec-22
Slough Borough Council,2460,Forest Bridge School Ltd,F551,Children & Families,Supplies and Services,833.33,Dec-22
Slough Borough Council,2460,Forest Bridge School Ltd,F551,Children & Families,Supplies and Services,793.33,Dec-22
Slough Borough Council,2460,Forest Bridge School Ltd,F551,Children & Families,Supplies and Services,"8,849.33",Dec-22
Slough Borough Council,2460,Forest Bridge School Ltd,F551,Children & Families,Supplies and Services,"8,849.33",Dec-22
Slough Borough Council,2460,Forest Bridge School Ltd,F551,Children & Families,Supplies and Services,"2,966.66",Dec-22
Slough Borough Council,2460,Forest Bridge School Ltd,F551,Children & Families,Supplies and Services,"14,638.00",Dec-22
Slough Borough Council,2460,Forest Bridge School Ltd,F551,Children & Families,Supplies and Services,"14,638.00",Dec-22
Slough Borough Council,2460,Forest Bridge School Ltd,F551,Children & Families,Supplies and Services,"12,770.67",Dec-22
Slough Borough Council,2460,Forest Bridge School Ltd,F551,Children & Families,Supplies and Services,"12,770.67",Dec-22
Slough Borough Council,2460,Forest Bridge School Ltd,F551,Children & Families,Supplies and Services,"12,770.67",Dec-22
Slough Borough Council,2460,Forest Bridge School Ltd,F551,Children & Families,Supplies and Services,"12,770.67",Dec-22
Slough Borough Council,2460,Forest Bridge School Ltd,F551,Children & Families,Supplies and Services,"10,158.67",Dec-22
Slough Borough Council,2460,Forest Bridge School Ltd,F551,Children & Families,Supplies and Services,"10,158.67",Dec-22
Slough Borough Council,2460,Forest Bridge School Ltd,F551,Children & Families,Supplies and Services,"8,849.33",Dec-22
Slough Borough Council,2460,Forest Bridge School Ltd,F551,Children & Families,Supplies and Services,"8,849.33",Dec-22
Slough Borough Council,647,Foxborough Primary School,E620,Children & Families,Supplies and Services,"7,565.00",Dec-22
Slough Borough Council,762,Freight Transport Association,D610,Place Operations,Salaries and Wages-Employees Expenses,"4,350.00",Dec-22
Slough Borough Council,807802,Freyssinet Limited,P186,Capital,Capital Charges,"6,797.29",Dec-22
Slough Borough Council,807802,Freyssinet Limited,P186,Capital,Capital Charges,"1,566.50",Dec-22
Slough Borough Council,806480,Frontier NX Limited,A04C,Adult Social Care Operations,Supplies and Services,569.17,Dec-22
Slough Borough Council,806480,Frontier NX Limited,A04C,Adult Social Care Operations,Supplies and Services,558.00,Dec-22
Slough Borough Council,3120,Frontier Software Plc,B409,People,Indirect Employee Expenses,"8,570.63",Dec-22
Slough Borough Council,808182,Full Court Connections,C424,Community,Supplies and Services,"2,500.00",Dec-22
Slough Borough Council,803540,Furze Platt Senior School,F553,Children & Families,Supplies and Services,"4,375.00",Dec-22
Slough Borough Council,803540,Furze Platt Senior School,F553,Children & Families,Supplies and Services,"3,804.00",Dec-22
Slough Borough Council,807125,Futures For Shared Lives,M36E,Adult Social Care Operations,Supplies and Services,"3,436.35",Dec-22
Slough Borough Council,1555,Gallagher Bassett,B018,Finance & Commercial,Supplies and Services,"4,987.21",Dec-22
Slough Borough Council,804911,GAP Group Limited,D880,Place Operations,Supplies and Services,"7,181.00",Dec-22
Slough Borough Council,804911,GAP Group Limited,D880,Place Operations,Supplies and Services,715.44,Dec-22
Slough Borough Council,804911,GAP Group Limited,D880,Place Operations,Supplies and Services,968.00,Dec-22
Slough Borough Council,1758,Gas Advisory Services Limited,J606,Place Management,Supplies and Services,840.00,Dec-22
Slough Borough Council,1758,Gas Advisory Services Limited,J606,Place Management,Supplies and Services,645.00,Dec-22
Slough Borough Council,1758,Gas Advisory Services Limited,J606,Place Management,Supplies and Services,"1,844.50",Dec-22
Slough Borough Council,1836,Gatenby Sanderson,F137,Education & Inclusion,Agency Staff,"5,742.00",Dec-22
Slough Borough Council,808013,Get Active Sports,F382,Children & Families,Supplies and Services,"14,070.00",Dec-22
Slough Borough Council,2830,GR Response Healthcare Ltd,A07R,Adult Social Care Operations,Supplies and Services,"2,250.08",Dec-22
Slough Borough Council,2830,GR Response Healthcare Ltd,A07R,Adult Social Care Operations,Supplies and Services,"2,250.08",Dec-22
Slough Borough Council,2830,GR Response Healthcare Ltd,M44C,Adult Social Care Operations,Supplies and Services,"1,500.24",Dec-22
Slough Borough Council,2830,GR Response Healthcare Ltd,M44C,Adult Social Care Operations,Supplies and Services,"1,862.00",Dec-22
Slough Borough Council,2830,GR Response Healthcare Ltd,M44C,Adult Social Care Operations,Supplies and Services,"2,749.60",Dec-22
Slough Borough Council,2830,GR Response Healthcare Ltd,M44C,Adult Social Care Operations,Supplies and Services,"1,881.00",Dec-22
Slough Borough Council,2830,GR Response Healthcare Ltd,M44C,Adult Social Care Operations,Supplies and Services,"2,394.00",Dec-22
Slough Borough Council,2830,GR Response Healthcare Ltd,M44C,Adult Social Care Operations,Supplies and Services,"1,330.00",Dec-22
Slough Borough Council,2830,GR Response Healthcare Ltd,M44C,Adult Social Care Operations,Supplies and Services,"2,000.32",Dec-22
Slough Borough Council,2830,GR Response Healthcare Ltd,M44C,Adult Social Care Operations,Supplies and Services,"2,546.00",Dec-22
Slough Borough Council,2830,GR Response Healthcare Ltd,M44C,Adult Social Care Operations,Supplies and Services,"2,250.08",Dec-22
Slough Borough Council,2830,GR Response Healthcare Ltd,M44D,Adult Social Care Operations,Supplies and Services,"2,432.00",Dec-22
Slough Borough Council,2830,GR Response Healthcare Ltd,M44D,Adult Social Care Operations,Supplies and Services,"2,250.08",Dec-22
Slough Borough Council,2830,GR Response Healthcare Ltd,M44D,Adult Social Care Operations,Supplies and Services,"1,596.00",Dec-22
Slough Borough Council,2830,GR Response Healthcare Ltd,M44D,Adult Social Care Operations,Supplies and Services,"2,250.08",Dec-22
Slough Borough Council,2830,GR Response Healthcare Ltd,M44D,Adult Social Care Operations,Supplies and Services,931.00,Dec-22
Slough Borough Council,2830,GR Response Healthcare Ltd,M44D,Adult Social Care Operations,Supplies and Services,"2,205.44",Dec-22
Slough Borough Council,2830,GR Response Healthcare Ltd,M44D,Adult Social Care Operations,Supplies and Services,"1,824.00",Dec-22
Slough Borough Council,2830,GR Response Healthcare Ltd,M44E,Adult Social Care Operations,Supplies and Services,532.00,Dec-22
Slough Borough Council,2830,GR Response Healthcare Ltd,M44F,Adult Social Care Operations,Supplies and Services,570.92,Dec-22
Slough Borough Council,2830,GR Response Healthcare Ltd,M44F,Adult Social Care Operations,Supplies and Services,"2,128.00",Dec-22
Slough Borough Council,2830,GR Response Healthcare Ltd,M45C,Adult Social Care Operations,Supplies and Services,"1,955.42",Dec-22
Slough Borough Council,2830,GR Response Healthcare Ltd,M45C,Adult Social Care Operations,Supplies and Services,"1,196.34",Dec-22
Slough Borough Council,2830,GR Response Healthcare Ltd,M48C,Adult Social Care Operations,Supplies and Services,"3,002.00",Dec-22
Slough Borough Council,2830,GR Response Healthcare Ltd,M48C,Adult Social Care Operations,Supplies and Services,"1,151.32",Dec-22
Slough Borough Council,807255,Green Corridor,F558,Children & Families,Supplies and Services,"7,633.92",Dec-22
Slough Borough Council,807255,Green Corridor,F558,Children & Families,Supplies and Services,"2,348.04",Dec-22
Slough Borough Council,804577,Green Monarch ZC2016 c/o Savills(UK) Limited,H205,Housing (People) Services,Premises,"3,583.33",Dec-22
Slough Borough Council,804577,Green Monarch ZC2016 c/o Savills(UK) Limited,H205,Housing (People) Services,Premises,"3,583.33",Dec-22
Slough Borough Council,808378,Greensleeves Care,M17C,Adult Social Care Operations,Supplies and Services,"3,614.07",Dec-22
Slough Borough Council,808378,Greensleeves Care,M17C,Adult Social Care Operations,Supplies and Services,"1,650.00",Dec-22
Slough Borough Council,804978,Ground Solutions (UK) Limited,J015,Place Management,Premises,791.61,Dec-22
Slough Borough Council,804978,Ground Solutions (UK) Limited,J015,Place Management,Premises,564.42,Dec-22
Slough Borough Council,804978,Ground Solutions (UK) Limited,J015,Place Management,Premises,793.75,Dec-22
Slough Borough Council,804978,Ground Solutions (UK) Limited,J015,Place Management,Premises,564.42,Dec-22
Slough Borough Council,804978,Ground Solutions (UK) Limited,J015,Place Management,Premises,791.61,Dec-22
Slough Borough Council,804978,Ground Solutions (UK) Limited,J015,Place Management,Premises,791.61,Dec-22
Slough Borough Council,804978,Ground Solutions (UK) Limited,J015,Place Management,Premises,564.42,Dec-22
Slough Borough Council,804978,Ground Solutions (UK) Limited,J015,Place Management,Premises,791.61,Dec-22
Slough Borough Council,804978,Ground Solutions (UK) Limited,J015,Place Management,Premises,791.61,Dec-22
Slough Borough Council,804978,Ground Solutions (UK) Limited,J015,Place Management,Premises,564.42,Dec-22
Slough Borough Council,804978,Ground Solutions (UK) Limited,J015,Place Management,Premises,791.61,Dec-22
Slough Borough Council,804978,Ground Solutions (UK) Limited,J015,Place Management,Premises,793.75,Dec-22
Slough Borough Council,805069,Grove Academy,F253,Children & Families,Premises,"1,000.00",Dec-22
Slough Borough Council,805069,Grove Academy,E610,Children & Families,Supplies and Services,"26,677.00",Dec-22
Slough Borough Council,804447,Grundon Waste Management Limited,D342,Place Operations,Supplies and Services,"1,537.25",Dec-22
Slough Borough Council,804447,Grundon Waste Management Limited,D342,Place Operations,Supplies and Services,"467,989.21",Dec-22
Slough Borough Council,3228,H Plus Care Ltd,M18C,Adult Social Care Operations,Supplies and Services,"5,314.29",Dec-22
Slough Borough Council,3228,H Plus Care Ltd,M25C,Adult Social Care Operations,Supplies and Services,"5,535.71",Dec-22
Slough Borough Council,3228,H Plus Care Ltd,M26E,Adult Social Care Operations,Supplies and Services,"5,314.29",Dec-22
Slough Borough Council,806681,Hako Machines Ltd,D620,Place Operations,Supplies and Services,597.42,Dec-22
Slough Borough Council,804986,Havencare Ltd,M26E,Adult Social Care Operations,Supplies and Services,"1,279.50",Dec-22
Slough Borough Council,804986,Havencare Ltd,M26E,Adult Social Care Operations,Supplies and Services,"1,279.50",Dec-22
Slough Borough Council,804986,Havencare Ltd,M26E,Adult Social Care Operations,Supplies and Services,"1,279.50",Dec-22
Slough Borough Council,804986,Havencare Ltd,M26E,Adult Social Care Operations,Supplies and Services,"1,279.50",Dec-22
Slough Borough Council,1381,Haybrook College,E610,Children & Families,Supplies and Services,"85,636.91",Dec-22
Slough Borough Council,3784,Haybrook College Pru,E610,Children & Families,Supplies and Services,"38,200.00",Dec-22
Slough Borough Council,803248,Haybrook College Trust,B297,Finance & Commercial,Government Grants,"2,190.00",Dec-22
Slough Borough Council,808639,Hazel Care Services Ltd,M42E,Adult Social Care Operations,Supplies and Services,"4,122.30",Dec-22
Slough Borough Council,808639,Hazel Care Services Ltd,M42E,Adult Social Care Operations,Supplies and Services,"4,528.50",Dec-22
Slough Borough Council,803753,Healthcare Homes,M17C,Adult Social Care Operations,Supplies and Services,942.86,Dec-22
Slough Borough Council,803753,Healthcare Homes,M17C,Adult Social Care Operations,Supplies and Services,"4,714.29",Dec-22
Slough Borough Council,803753,Healthcare Homes,M18C,Adult Social Care Operations,Supplies and Services,"4,714.29",Dec-22
Slough Borough Council,803753,Healthcare Homes,M18C,Adult Social Care Operations,Supplies and Services,"4,714.29",Dec-22
Slough Borough Council,1956,Heathlands School,F551,Children & Families,Supplies and Services,"2,949.25",Dec-22
Slough Borough Council,807682,Help and Care,A02C,Adult Social Care Commissioning,Supplies and Services,"16,109.74",Dec-22
Slough Borough Council,3387,Herschel Grammar School,B297,Finance & Commercial,Government Grants,"3,135.00",Dec-22
Slough Borough Council,807998,Heywood's Catering,F382,Children & Families,Supplies and Services,"1,021.80",Dec-22
Slough Borough Council,807998,Heywood's Catering,F382,Children & Families,Supplies and Services,"5,029.20",Dec-22
Slough Borough Council,850,Holy Family Catholic Primary School,E250,Children & Families,Supplies and Services,"181,882.85",Dec-22
Slough Borough Council,1914,Huntcliff Limited,J028,Place Management,Supplies and Services,612.25,Dec-22
Slough Borough Council,2680,Iam Consulting Services,D320,Place Operations,Supplies and Services,"2,040.00",Dec-22
Slough Borough Council,806778,IBB Solicitors,J018,Place Management,Supplies and Services,"8,687.00",Dec-22
Slough Borough Council,806778,IBB Solicitors,J018,Place Management,Supplies and Services,"4,033.00",Dec-22
Slough Borough Council,2917,Imperial Coaches Ltd,F123,Education & Inclusion,Supplies and Services,"4,935.00",Dec-22
Slough Borough Council,807666,Independence Home and Domicilary Care,M44F,Adult Social Care Operations,Supplies and Services,"3,272.10",Dec-22
Slough Borough Council,807666,Independence Home and Domicilary Care,M44F,Adult Social Care Operations,Supplies and Services,"1,494.75",Dec-22
Slough Borough Council,807666,Independence Home and Domicilary Care,M44F,Adult Social Care Operations,Supplies and Services,"2,845.80",Dec-22
Slough Borough Council,807666,Independence Home and Domicilary Care,M44F,Adult Social Care Operations,Supplies and Services,"3,240.00",Dec-22
Slough Borough Council,3570,Independent Supported Living And Disabilities Ltd,M42E,Adult Social Care Operations,Supplies and Services,"3,000.00",Dec-22
Slough Borough Council,3570,Independent Supported Living And Disabilities Ltd,M44D,Adult Social Care Operations,Supplies and Services,"3,044.16",Dec-22
Slough Borough Council,3570,Independent Supported Living And Disabilities Ltd,M44D,Adult Social Care Operations,Supplies and Services,"3,044.16",Dec-22
Slough Borough Council,3570,Independent Supported Living And Disabilities Ltd,M44E,Adult Social Care Operations,Supplies and Services,"1,440.00",Dec-22
Slough Borough Council,3570,Independent Supported Living And Disabilities Ltd,M44E,Adult Social Care Operations,Supplies and Services,"3,570.00",Dec-22
Slough Borough Council,3570,Independent Supported Living And Disabilities Ltd,M44E,Adult Social Care Operations,Supplies and Services,"1,050.00",Dec-22
Slough Borough Council,3570,Independent Supported Living And Disabilities Ltd,M44E,Adult Social Care Operations,Supplies and Services,"4,212.00",Dec-22
Slough Borough Council,3570,Independent Supported Living And Disabilities Ltd,M44E,Adult Social Care Operations,Supplies and Services,"3,570.00",Dec-22
Slough Borough Council,3570,Independent Supported Living And Disabilities Ltd,M44E,Adult Social Care Operations,Supplies and Services,"4,212.00",Dec-22
Slough Borough Council,3570,Independent Supported Living And Disabilities Ltd,M44E,Adult Social Care Operations,Supplies and Services,"1,440.00",Dec-22
Slough Borough Council,3570,Independent Supported Living And Disabilities Ltd,M81D,Adult Social Care Operations,Supplies and Services,"4,172.00",Dec-22
Slough Borough Council,3570,Independent Supported Living And Disabilities Ltd,M81D,Adult Social Care Operations,Supplies and Services,"4,050.00",Dec-22
Slough Borough Council,808214,Infocus Charity,M26E,Adult Social Care Operations,Supplies and Services,"2,805.33",Dec-22
Slough Borough Council,808214,Infocus Charity,M26E,Adult Social Care Operations,Supplies and Services,"2,714.83",Dec-22
Slough Borough Council,808214,Infocus Charity,M26E,Adult Social Care Operations,Supplies and Services,"2,714.83",Dec-22
Slough Borough Council,808214,Infocus Charity,M26E,Adult Social Care Operations,Supplies and Services,"2,797.69",Dec-22
Slough Borough Council,808214,Infocus Charity,M26E,Adult Social Care Operations,Supplies and Services,"2,533.84",Dec-22
Slough Borough Council,808214,Infocus Charity,M26E,Adult Social Care Operations,Supplies and Services,"2,805.33",Dec-22
Slough Borough Council,808214,Infocus Charity,M26E,Adult Social Care Operations,Supplies and Services,"2,805.33",Dec-22
Slough Borough Council,808214,Infocus Charity,M26E,Adult Social Care Operations,Supplies and Services,"2,865.65",Dec-22
Slough Borough Council,808214,Infocus Charity,F462,Children & Families,Supplies and Services,"18,421.72",Dec-22
Slough Borough Council,803651,Insight Direct (UK) Ltd,B342,Digital and Strategic IT,Supplies and Services,"6,375.00",Dec-22
Slough Borough Council,3172,Intelligent Transport Services,P209,Capital,Capital Charges,"2,400.00",Dec-22
Slough Borough Council,3172,Intelligent Transport Services,P209,Capital,Capital Charges,"1,050.00",Dec-22
Slough Borough Council,3172,Intelligent Transport Services,P209,Capital,Capital Charges,"1,050.00",Dec-22
Slough Borough Council,3172,Intelligent Transport Services,P212,Capital,Capital Charges,900.00,Dec-22
Slough Borough Council,3172,Intelligent Transport Services,P212,Capital,Capital Charges,"1,200.00",Dec-22
Slough Borough Council,3172,Intelligent Transport Services,P212,Capital,Capital Charges,"1,200.00",Dec-22
Slough Borough Council,3172,Intelligent Transport Services,P235,Capital,Capital Charges,"1,800.00",Dec-22
Slough Borough Council,3172,Intelligent Transport Services,P238,Capital,Capital Charges,600.00,Dec-22
Slough Borough Council,808422,Intersect Survey Ltd,P238,Capital,Capital Charges,"3,000.00",Dec-22
Slough Borough Council,3500,Iqra Slough Islamic Primary School,E480,Children & Families,Supplies and Services,"51,225.79",Dec-22
Slough Borough Council,998,Iron Mountain Uk Ltd,B282,Digital and Strategic IT,Supplies and Services,"1,900.00",Dec-22
Slough Borough Council,998,Iron Mountain Uk Ltd,B282,Digital and Strategic IT,Supplies and Services,674.97,Dec-22
Slough Borough Council,2919,Islamic Shakhsiyah Foundation,F909,Children & Families,Supplies and Services,"7,341.33",Dec-22
Slough Borough Council,807855,Isteni Property Holdings Ltd,H205,Housing (People) Services,Supplies and Services,"13,500.00",Dec-22
Slough Borough Council,753,Jack In The Box Day Nursery,F909,Children & Families,Supplies and Services,"11,997.83",Dec-22
Slough Borough Council,803650,Jake Elliman,A05L,Adult Social Care Operations,Supplies and Services,"1,839.41",Dec-22
Slough Borough Council,733,James Elliman  School,E620,Children & Families,Supplies and Services,"32,932.65",Dec-22
Slough Borough Council,805666,James Rosental,C322,Community,Supplies and Services,500.00,Dec-22
Slough Borough Council,805666,James Rosental,C322,Community,Supplies and Services,"2,494.00",Dec-22
Slough Borough Council,805666,James Rosental,C322,Community,Supplies and Services,"1,610.00",Dec-22
Slough Borough Council,805226,JD Surfacing & Civil Engineering Limited,D880,Place Operations,Supplies and Services,"12,980.00",Dec-22
Slough Borough Council,805226,JD Surfacing & Civil Engineering Limited,D880,Place Operations,Supplies and Services,"2,819.61",Dec-22
Slough Borough Council,805226,JD Surfacing & Civil Engineering Limited,D880,Place Operations,Supplies and Services,"2,200.00",Dec-22
Slough Borough Council,805226,JD Surfacing & Civil Engineering Limited,D880,Place Operations,Supplies and Services,"7,980.00",Dec-22
Slough Borough Council,805226,JD Surfacing & Civil Engineering Limited,D880,Place Operations,Supplies and Services,"12,965.00",Dec-22
Slough Borough Council,805226,JD Surfacing & Civil Engineering Limited,D880,Place Operations,Supplies and Services,"1,671.85",Dec-22
Slough Borough Council,805226,JD Surfacing & Civil Engineering Limited,D880,Place Operations,Supplies and Services,"2,200.00",Dec-22
Slough Borough Council,805226,JD Surfacing & Civil Engineering Limited,D880,Place Operations,Supplies and Services,"8,550.00",Dec-22
Slough Borough Council,805226,JD Surfacing & Civil Engineering Limited,D880,Place Operations,Supplies and Services,840.00,Dec-22
Slough Borough Council,805226,JD Surfacing & Civil Engineering Limited,D880,Place Operations,Supplies and Services,"2,200.00",Dec-22
Slough Borough Council,805226,JD Surfacing & Civil Engineering Limited,D880,Place Operations,Supplies and Services,"7,980.00",Dec-22
Slough Borough Council,805226,JD Surfacing & Civil Engineering Limited,D880,Place Operations,Supplies and Services,"11,500.00",Dec-22
Slough Borough Council,805226,JD Surfacing & Civil Engineering Limited,D880,Place Operations,Supplies and Services,"5,417.54",Dec-22
Slough Borough Council,805226,JD Surfacing & Civil Engineering Limited,D880,Place Operations,Supplies and Services,"2,200.00",Dec-22
Slough Borough Council,805226,JD Surfacing & Civil Engineering Limited,D880,Place Operations,Supplies and Services,"4,058.26",Dec-22
Slough Borough Council,805226,JD Surfacing & Civil Engineering Limited,D880,Place Operations,Supplies and Services,"7,980.00",Dec-22
Slough Borough Council,805226,JD Surfacing & Civil Engineering Limited,D880,Place Operations,Supplies and Services,"12,760.00",Dec-22
Slough Borough Council,805226,JD Surfacing & Civil Engineering Limited,D880,Place Operations,Supplies and Services,"15,300.00",Dec-22
Slough Borough Council,805226,JD Surfacing & Civil Engineering Limited,D880,Place Operations,Supplies and Services,"7,980.00",Dec-22
Slough Borough Council,805226,JD Surfacing & Civil Engineering Limited,D880,Place Operations,Supplies and Services,"2,200.00",Dec-22
Slough Borough Council,805226,JD Surfacing & Civil Engineering Limited,D880,Place Operations,Supplies and Services,"4,430.00",Dec-22
Slough Borough Council,805226,JD Surfacing & Civil Engineering Limited,D880,Place Operations,Supplies and Services,"6,163.96",Dec-22
Slough Borough Council,805226,JD Surfacing & Civil Engineering Limited,D880,Place Operations,Supplies and Services,"4,190.88",Dec-22
Slough Borough Council,805226,JD Surfacing & Civil Engineering Limited,D880,Place Operations,Supplies and Services,"7,980.00",Dec-22
Slough Borough Council,807308,JLA Total Care Ltd,H205,Housing (People) Services,Supplies and Services,760.81,Dec-22
Slough Borough Council,2200,Joshua Pilmore,C322,Community,Supplies and Services,930.00,Dec-22
Slough Borough Council,201,Kamal Enterprises Ltd,A04C,Adult Social Care Operations,Supplies and Services,727.00,Dec-22
Slough Borough Council,803815,Kathys Childcare,F909,Children & Families,Supplies and Services,"2,434.88",Dec-22
Slough Borough Council,2620,Kcare Nursing Agency Ltd,M48C,Adult Social Care Operations,Supplies and Services,"4,000.00",Dec-22
Slough Borough Council,804887,KCare Nursing Agency Ltd Supported House Living,M42F,Adult Social Care Operations,Supplies and Services,"2,926.00",Dec-22
Slough Borough Council,804887,KCare Nursing Agency Ltd Supported House Living,M42F,Adult Social Care Operations,Supplies and Services,"2,926.00",Dec-22
Slough Borough Council,804887,KCare Nursing Agency Ltd Supported House Living,M44F,Adult Social Care Operations,Supplies and Services,"2,493.50",Dec-22
Slough Borough Council,807742,Khalsa Primary School,E620,Children & Families,Supplies and Services,"14,255.00",Dec-22
Slough Borough Council,803916,Kharis Solutions,M42E,Adult Social Care Operations,Supplies and Services,"7,188.00",Dec-22
Slough Borough Council,803916,Kharis Solutions,M44C,Adult Social Care Operations,Supplies and Services,"1,961.12",Dec-22
Slough Borough Council,803916,Kharis Solutions,M44C,Adult Social Care Operations,Supplies and Services,"2,346.34",Dec-22
Slough Borough Council,803916,Kharis Solutions,M44C,Adult Social Care Operations,Supplies and Services,"1,470.84",Dec-22
Slough Borough Council,803916,Kharis Solutions,M44D,Adult Social Care Operations,Supplies and Services,"1,961.12",Dec-22
Slough Borough Council,803916,Kharis Solutions,M44E,Adult Social Care Operations,Supplies and Services,"1,800.00",Dec-22
Slough Borough Council,803916,Kharis Solutions,M44E,Adult Social Care Operations,Supplies and Services,"1,800.00",Dec-22
Slough Borough Council,803916,Kharis Solutions,M44E,Adult Social Care Operations,Supplies and Services,"1,800.00",Dec-22
Slough Borough Council,803916,Kharis Solutions,M44E,Adult Social Care Operations,Supplies and Services,900.00,Dec-22
Slough Borough Council,803916,Kharis Solutions,M44E,Adult Social Care Operations,Supplies and Services,"2,400.00",Dec-22
Slough Borough Council,803916,Kharis Solutions,M44E,Adult Social Care Operations,Supplies and Services,"1,800.00",Dec-22
Slough Borough Council,803916,Kharis Solutions,M44E,Adult Social Care Operations,Supplies and Services,900.00,Dec-22
Slough Borough Council,803916,Kharis Solutions,M44E,Adult Social Care Operations,Supplies and Services,-900.00,Dec-22
Slough Borough Council,803916,Kharis Solutions,M48C,Adult Social Care Operations,Supplies and Services,"2,276.30",Dec-22
Slough Borough Council,804546,Korn Ferry,J016,Place Management,Indirect Employee Expenses,616.00,Dec-22
Slough Borough Council,1728,Kristiina Smith,C322,Community,Supplies and Services,"2,754.00",Dec-22
Slough Borough Council,808599,lakhwinder Singh,H205,Housing (People) Services,Supplies and Services,"1,050.00",Dec-22
Slough Borough Council,808599,lakhwinder Singh,H205,Housing (People) Services,Supplies and Services,"4,200.00",Dec-22
Slough Borough Council,808609,Langhams Partnership LTD,H205,Housing (People) Services,Supplies and Services,"1,860.00",Dec-22
Slough Borough Council,808609,Langhams Partnership LTD,H205,Housing (People) Services,Supplies and Services,"1,860.00",Dec-22
Slough Borough Council,664,Langley Grammar School,F840,Education & Inclusion,Salaries and Wages,625.00,Dec-22
Slough Borough Council,664,Langley Grammar School,E610,Children & Families,Supplies and Services,666.67,Dec-22
Slough Borough Council,664,Langley Grammar School,B297,Finance & Commercial,Government Grants,"1,800.00",Dec-22
Slough Borough Council,3001,Langley Haven Care Homes Ltd,M25C,Adult Social Care Operations,Supplies and Services,"1,455.84",Dec-22
Slough Borough Council,3001,Langley Haven Care Homes Ltd,M25C,Adult Social Care Operations,Supplies and Services,"3,255.84",Dec-22
Slough Borough Council,3001,Langley Haven Care Homes Ltd,M26D,Adult Social Care Operations,Supplies and Services,565.43,Dec-22
Slough Borough Council,3001,Langley Haven Care Homes Ltd,M27C,Adult Social Care Operations,Supplies and Services,"3,604.68",Dec-22
Slough Borough Council,3001,Langley Haven Care Homes Ltd,M27C,Adult Social Care Operations,Supplies and Services,712.90,Dec-22
Slough Borough Council,3001,Langley Haven Care Homes Ltd,M27F,Adult Social Care Operations,Supplies and Services,"1,882.14",Dec-22
Slough Borough Council,3001,Langley Haven Care Homes Ltd,M28C,Adult Social Care Operations,Supplies and Services,"3,857.14",Dec-22
Slough Borough Council,3001,Langley Haven Care Homes Ltd,M28C,Adult Social Care Operations,Supplies and Services,"3,985.71",Dec-22
Slough Borough Council,3001,Langley Haven Care Homes Ltd,M28C,Adult Social Care Operations,Supplies and Services,"3,857.14",Dec-22
Slough Borough Council,3001,Langley Haven Care Homes Ltd,M28C,Adult Social Care Operations,Supplies and Services,"3,985.71",Dec-22
Slough Borough Council,3001,Langley Haven Care Homes Ltd,M29C,Adult Social Care Operations,Supplies and Services,"-3,488.40",Dec-22
Slough Borough Council,3001,Langley Haven Care Homes Ltd,M29C,Adult Social Care Operations,Supplies and Services,"-3,604.68",Dec-22
Slough Borough Council,3001,Langley Haven Care Homes Ltd,M29C,Adult Social Care Operations,Supplies and Services,"-3,488.40",Dec-22
Slough Borough Council,3001,Langley Haven Care Homes Ltd,M29C,Adult Social Care Operations,Supplies and Services,"-3,604.68",Dec-22
Slough Borough Council,3001,Langley Haven Care Homes Ltd,M29C,Adult Social Care Operations,Supplies and Services,"3,255.84",Dec-22
Slough Borough Council,3001,Langley Haven Care Homes Ltd,M29C,Adult Social Care Operations,Supplies and Services,"1,800.00",Dec-22
Slough Borough Council,803686,Lascelles Park Nursery,F909,Children & Families,Supplies and Services,570.00,Dec-22
Slough Borough Council,803686,Lascelles Park Nursery,F909,Children & Families,Supplies and Services,"17,552.68",Dec-22
Slough Borough Council,1077,Lavat Consulting Limited,B015,Finance & Commercial,Supplies and Services,500.00,Dec-22
Slough Borough Council,1077,Lavat Consulting Limited,B015,Finance & Commercial,Supplies and Services,"5,400.00",Dec-22
Slough Borough Council,3482,Leonard Cheshire Disability,M25D,Adult Social Care Operations,Supplies and Services,"5,699.36",Dec-22
Slough Borough Council,808423,Leo's Circus CIC,F382,Children & Families,Supplies and Services,885.72,Dec-22
Slough Borough Council,301,Liberata Uk Limited,B048,Finance & Commercial,Supplies and Services,"9,347.59",Dec-22
Slough Borough Council,301,Liberata Uk Limited,H057,Finance & Commercial,Supplies and Services,"93,981.37",Dec-22
Slough Borough Council,804692,Little Diamonds Pre School,F909,Children & Families,Supplies and Services,"15,000.00",Dec-22
Slough Borough Council,3791,Littledown Pru,E610,Children & Families,Supplies and Services,"17,100.00",Dec-22
Slough Borough Council,667,Littledown School,E610,Children & Families,Supplies and Services,"8,310.00",Dec-22
Slough Borough Council,1328,London & Quadrant Housing Trust,H205,Housing (People) Services,Premises,"57,554.16",Dec-22
Slough Borough Council,804544,London Borough of Harrow,B096,Governance,Indirect Employee Expenses,"129,718.06",Dec-22
Slough Borough Council,1282,Long Close School,F909,Children & Families,Supplies and Services,"6,859.24",Dec-22
Slough Borough Council,2302,Look Ahead Care And Support,M42F,Adult Social Care Operations,Supplies and Services,"27,275.40",Dec-22
Slough Borough Council,2302,Look Ahead Care And Support,M44F,Adult Social Care Operations,Supplies and Services,"3,030.60",Dec-22
Slough Borough Council,808567,Lydia Simpson,C322,Community,Supplies and Services,550.00,Dec-22
Slough Borough Council,1195,Lynch Hill (Foundation Primary) School,E620,Children & Families,Supplies and Services,"22,943.33",Dec-22
Slough Borough Council,1771,Lynch Hill Academy,E620,Children & Families,Supplies and Services,"13,625.00",Dec-22
Slough Borough Council,3424,M D Homes,M15F,Adult Social Care Operations,Supplies and Services,"4,871.43",Dec-22
Slough Borough Council,807217,Macadamia Support Limited,M42E,Adult Social Care Operations,Supplies and Services,"6,931.20",Dec-22
Slough Borough Council,807217,Macadamia Support Limited,M42E,Adult Social Care Operations,Supplies and Services,"6,713.00",Dec-22
Slough Borough Council,807217,Macadamia Support Limited,M42E,Adult Social Care Operations,Supplies and Services,"3,973.20",Dec-22
Slough Borough Council,807217,Macadamia Support Limited,M42E,Adult Social Care Operations,Supplies and Services,"9,373.00",Dec-22
Slough Borough Council,807217,Macadamia Support Limited,M42E,Adult Social Care Operations,Supplies and Services,"7,308.00",Dec-22
Slough Borough Council,807217,Macadamia Support Limited,M42E,Adult Social Care Operations,Supplies and Services,"3,589.12",Dec-22
Slough Borough Council,807217,Macadamia Support Limited,M44C,Adult Social Care Operations,Supplies and Services,"3,591.56",Dec-22
Slough Borough Council,807217,Macadamia Support Limited,M44D,Adult Social Care Operations,Supplies and Services,"5,523.00",Dec-22
Slough Borough Council,1874,Maccabee Pets Hotel,H253,Community,Supplies and Services,"2,500.00",Dec-22
Slough Borough Council,1874,Maccabee Pets Hotel,H253,Community,Supplies and Services,"1,800.00",Dec-22
Slough Borough Council,1941,Manor Green School,F551,Children & Families,Supplies and Services,"35,000.00",Dec-22
Slough Borough Council,1941,Manor Green School,F551,Children & Families,Supplies and Services,-900.00,Dec-22
Slough Borough Council,529,Marish Primary School,E620,Children & Families,Supplies and Services,"90,440.18",Dec-22
Slough Borough Council,807774,Marsh Ltd,B018,Finance & Commercial,Supplies and Services,"7,500.00",Dec-22
Slough Borough Council,1886,Matrix Scm,B023,Finance & Commercial,Agency Staff,"534,189.29",Dec-22
Slough Borough Council,1886,Matrix Scm,B023,Finance & Commercial,Agency Staff,"460,686.97",Dec-22
Slough Borough Council,1886,Matrix Scm,B023,Finance & Commercial,Agency Staff,"461,147.37",Dec-22
Slough Borough Council,808675,Maylarch Environmental Ltd,B490,Finance & Commercial,Capital Charges,"17,342.42",Dec-22
Slough Borough Council,625,Middlesex University,B409,People,Indirect Employee Expenses,915.00,Dec-22
Slough Borough Council,1496,Mighty Acorns Day Nursery Ltd,F909,Children & Families,Supplies and Services,510.00,Dec-22
Slough Borough Council,1496,Mighty Acorns Day Nursery Ltd,F909,Children & Families,Supplies and Services,"16,235.90",Dec-22
Slough Borough Council,805121,MMCG (2) Limited,A02E,Adult Social Care Operations,Supplies and Services,"4,057.54",Dec-22
Slough Borough Council,805121,MMCG (2) Limited,A03E,Adult Social Care Operations,Supplies and Services,"4,415.61",Dec-22
Slough Borough Council,805121,MMCG (2) Limited,M15D,Adult Social Care Operations,Supplies and Services,"3,580.20",Dec-22
Slough Borough Council,805121,MMCG (2) Limited,M15F,Adult Social Care Operations,Supplies and Services,"3,580.20",Dec-22
Slough Borough Council,805121,MMCG (2) Limited,M15F,Adult Social Care Operations,Supplies and Services,"3,580.20",Dec-22
Slough Borough Council,805121,MMCG (2) Limited,M15F,Adult Social Care Operations,Supplies and Services,"2,743.29",Dec-22
Slough Borough Council,805121,MMCG (2) Limited,M15F,Adult Social Care Operations,Supplies and Services,"3,566.43",Dec-22
Slough Borough Council,805121,MMCG (2) Limited,M17C,Adult Social Care Operations,Supplies and Services,"4,415.61",Dec-22
Slough Borough Council,805121,MMCG (2) Limited,M17C,Adult Social Care Operations,Supplies and Services,"3,580.20",Dec-22
Slough Borough Council,805121,MMCG (2) Limited,M17C,Adult Social Care Operations,Supplies and Services,"4,415.61",Dec-22
Slough Borough Council,805121,MMCG (2) Limited,M17C,Adult Social Care Operations,Supplies and Services,"3,580.20",Dec-22
Slough Borough Council,805121,MMCG (2) Limited,M17C,Adult Social Care Operations,Supplies and Services,"-3,557.25",Dec-22
Slough Borough Council,805121,MMCG (2) Limited,M17C,Adult Social Care Operations,Supplies and Services,"2,386.80",Dec-22
Slough Borough Council,805121,MMCG (2) Limited,M18C,Adult Social Care Operations,Supplies and Services,"4,415.61",Dec-22
Slough Borough Council,805121,MMCG (2) Limited,M18C,Adult Social Care Operations,Supplies and Services,"3,580.20",Dec-22
Slough Borough Council,805121,MMCG (2) Limited,M18C,Adult Social Care Operations,Supplies and Services,"3,580.20",Dec-22
Slough Borough Council,805121,MMCG (2) Limited,M18C,Adult Social Care Operations,Supplies and Services,"3,699.54",Dec-22
Slough Borough Council,805121,MMCG (2) Limited,M25C,Adult Social Care Operations,Supplies and Services,"3,580.20",Dec-22
Slough Borough Council,805121,MMCG (2) Limited,M25C,Adult Social Care Operations,Supplies and Services,"3,580.20",Dec-22
Slough Borough Council,805121,MMCG (2) Limited,M25C,Adult Social Care Operations,Supplies and Services,"3,580.20",Dec-22
Slough Borough Council,805121,MMCG (2) Limited,M25C,Adult Social Care Operations,Supplies and Services,"3,699.54",Dec-22
Slough Borough Council,805121,MMCG (2) Limited,M27C,Adult Social Care Operations,Supplies and Services,"3,580.20",Dec-22
Slough Borough Council,805121,MMCG (2) Limited,M27C,Adult Social Care Operations,Supplies and Services,"3,580.20",Dec-22
Slough Borough Council,805121,MMCG (2) Limited,M27C,Adult Social Care Operations,Supplies and Services,"3,580.20",Dec-22
Slough Borough Council,805121,MMCG (2) Limited,M27C,Adult Social Care Operations,Supplies and Services,"3,580.20",Dec-22
Slough Borough Council,805121,MMCG (2) Limited,M27C,Adult Social Care Operations,Supplies and Services,"3,580.20",Dec-22
Slough Borough Council,805121,MMCG (2) Limited,M27C,Adult Social Care Operations,Supplies and Services,"3,580.20",Dec-22
Slough Borough Council,805121,MMCG (2) Limited,M27C,Adult Social Care Operations,Supplies and Services,"3,580.20",Dec-22
Slough Borough Council,805121,MMCG (2) Limited,M28C,Adult Social Care Operations,Supplies and Services,"2,386.80",Dec-22
Slough Borough Council,805121,MMCG (2) Limited,M28C,Adult Social Care Operations,Supplies and Services,"3,580.20",Dec-22
Slough Borough Council,805121,MMCG (2) Limited,M28C,Adult Social Care Operations,Supplies and Services,"3,699.54",Dec-22
Slough Borough Council,805121,MMCG (2) Limited,A05M,People Adults Non-Group Manager,Supplies and Services,"3,557.25",Dec-22
Slough Borough Council,805089,Molly McGibbon,C322,Community,Supplies and Services,729.00,Dec-22
Slough Borough Council,804815,Molly Southall,C322,Community,Supplies and Services,"1,210.00",Dec-22
Slough Borough Council,2115,Montagu Evans Llp,B086,Place Strategy & Infrastructure,Capital Charges,"10,797.45",Dec-22
Slough Borough Council,2166,Montague Swift Recruitment Ltd,F640,Children & Families,Agency Staff,"2,000.00",Dec-22
Slough Borough Council,2100,Montem Accademy,B297,Finance & Commercial,Government Grants,"6,510.00",Dec-22
Slough Borough Council,1140,Montem Guesthouse,H205,Housing (People) Services,Supplies and Services,"1,650.00",Dec-22
Slough Borough Council,1140,Montem Guesthouse,H205,Housing (People) Services,Supplies and Services,"1,800.00",Dec-22
Slough Borough Council,1140,Montem Guesthouse,H205,Housing (People) Services,Supplies and Services,"1,350.00",Dec-22
Slough Borough Council,1140,Montem Guesthouse,H205,Housing (People) Services,Supplies and Services,"1,500.00",Dec-22
Slough Borough Council,1140,Montem Guesthouse,H205,Housing (People) Services,Supplies and Services,"1,650.00",Dec-22
Slough Borough Council,1140,Montem Guesthouse,H205,Housing (People) Services,Supplies and Services,"1,650.00",Dec-22
Slough Borough Council,1140,Montem Guesthouse,H205,Housing (People) Services,Supplies and Services,"1,500.00",Dec-22
Slough Borough Council,1140,Montem Guesthouse,H205,Housing (People) Services,Supplies and Services,"1,200.00",Dec-22
Slough Borough Council,1140,Montem Guesthouse,H205,Housing (People) Services,Supplies and Services,"1,350.00",Dec-22
Slough Borough Council,1140,Montem Guesthouse,H205,Housing (People) Services,Supplies and Services,"1,500.00",Dec-22
Slough Borough Council,1140,Montem Guesthouse,H205,Housing (People) Services,Supplies and Services,"1,410.00",Dec-22
Slough Borough Council,1140,Montem Guesthouse,H205,Housing (People) Services,Supplies and Services,"1,350.00",Dec-22
Slough Borough Council,1140,Montem Guesthouse,H205,Housing (People) Services,Supplies and Services,770.00,Dec-22
Slough Borough Council,1140,Montem Guesthouse,H205,Housing (People) Services,Supplies and Services,"1,500.00",Dec-22
Slough Borough Council,1140,Montem Guesthouse,H205,Housing (People) Services,Supplies and Services,"1,350.00",Dec-22
Slough Borough Council,1140,Montem Guesthouse,H205,Housing (People) Services,Supplies and Services,"1,500.00",Dec-22
Slough Borough Council,1140,Montem Guesthouse,H205,Housing (People) Services,Supplies and Services,"1,400.00",Dec-22
Slough Borough Council,1140,Montem Guesthouse,H205,Housing (People) Services,Supplies and Services,"1,500.00",Dec-22
Slough Borough Council,1140,Montem Guesthouse,H205,Housing (People) Services,Supplies and Services,"1,350.00",Dec-22
Slough Borough Council,1140,Montem Guesthouse,H205,Housing (People) Services,Supplies and Services,"1,500.00",Dec-22
Slough Borough Council,1140,Montem Guesthouse,H205,Housing (People) Services,Supplies and Services,"1,650.00",Dec-22
Slough Borough Council,1140,Montem Guesthouse,H205,Housing (People) Services,Supplies and Services,"1,650.00",Dec-22
Slough Borough Council,1140,Montem Guesthouse,H205,Housing (People) Services,Supplies and Services,"1,500.00",Dec-22
Slough Borough Council,1140,Montem Guesthouse,H205,Housing (People) Services,Supplies and Services,"1,500.00",Dec-22
Slough Borough Council,1140,Montem Guesthouse,H205,Housing (People) Services,Supplies and Services,"1,650.00",Dec-22
Slough Borough Council,1140,Montem Guesthouse,H205,Housing (People) Services,Supplies and Services,"1,950.00",Dec-22
Slough Borough Council,1140,Montem Guesthouse,H205,Housing (People) Services,Supplies and Services,"1,650.00",Dec-22
Slough Borough Council,1140,Montem Guesthouse,H205,Housing (People) Services,Supplies and Services,"1,410.00",Dec-22
Slough Borough Council,1140,Montem Guesthouse,H205,Housing (People) Services,Supplies and Services,"1,500.00",Dec-22
Slough Borough Council,1140,Montem Guesthouse,H205,Housing (People) Services,Supplies and Services,"1,410.00",Dec-22
Slough Borough Council,1140,Montem Guesthouse,H205,Housing (People) Services,Supplies and Services,"1,410.00",Dec-22
Slough Borough Council,1140,Montem Guesthouse,H205,Housing (People) Services,Supplies and Services,"1,950.00",Dec-22
Slough Borough Council,1140,Montem Guesthouse,H205,Housing (People) Services,Supplies and Services,"1,650.00",Dec-22
Slough Borough Council,1140,Montem Guesthouse,H205,Housing (People) Services,Supplies and Services,"1,650.00",Dec-22
Slough Borough Council,1140,Montem Guesthouse,H205,Housing (People) Services,Supplies and Services,"1,350.00",Dec-22
Slough Borough Council,1140,Montem Guesthouse,H205,Housing (People) Services,Supplies and Services,"1,650.00",Dec-22
Slough Borough Council,1140,Montem Guesthouse,H205,Housing (People) Services,Supplies and Services,"1,500.00",Dec-22
Slough Borough Council,3302,Montem Primary School,E620,Children & Families,Supplies and Services,"36,403.77",Dec-22
Slough Borough Council,3372,More House School,F462,Children & Families,Supplies and Services,"6,912.00",Dec-22
Slough Borough Council,806484,Mrs Parwinder Kaur Bhandal,H205,Housing (People) Services,Supplies and Services,"1,643.00",Dec-22
Slough Borough Council,806484,Mrs Parwinder Kaur Bhandal,H205,Housing (People) Services,Supplies and Services,"2,914.00",Dec-22
Slough Borough Council,806484,Mrs Parwinder Kaur Bhandal,H205,Housing (People) Services,Supplies and Services,"2,964.00",Dec-22
Slough Borough Council,806484,Mrs Parwinder Kaur Bhandal,H205,Housing (People) Services,Supplies and Services,"7,994.00",Dec-22
Slough Borough Council,807939,MSLFIT LTD,C322,Community,Supplies and Services,949.00,Dec-22
Slough Borough Council,806858,MUDDY BOOTS DAY NURSERY LTD,F909,Children & Families,Supplies and Services,"6,081.95",Dec-22
Slough Borough Council,808648,Mustaqbill Future Foundation,C424,Community,Supplies and Services,"5,000.00",Dec-22
Slough Borough Council,2190,National Windscreens,M50A,Place Operations,Transport,885.24,Dec-22
Slough Borough Council,808068,NEC Software Solutions UK Limited,A120,Customer,Supplies and Services,"2,535.00",Dec-22
Slough Borough Council,1945,Neem Tree Care Ltd,M17C,Adult Social Care Operations,Supplies and Services,"3,604.68",Dec-22
Slough Borough Council,1945,Neem Tree Care Ltd,M17C,Adult Social Care Operations,Supplies and Services,"3,604.68",Dec-22
Slough Borough Council,805932,NHS East Berkshire CCG,A04C,Adult Social Care Operations,Supplies and Services,"21,282.71",Dec-22
Slough Borough Council,804831,No.5 Chambers,H009,Business Services,Supplies and Services,"2,000.00",Dec-22
Slough Borough Council,1864,Noahs Ark Environmental Services Ltd,H253,Community,Supplies and Services,"2,584.66",Dec-22
Slough Borough Council,805330,Norden Farm Centre Trust Limited,B175,Business Services,External Receipts,600.00,Dec-22
Slough Borough Council,3717,Norwood Schools Limited,M26E,Adult Social Care Operations,Supplies and Services,"4,253.92",Dec-22
Slough Borough Council,3717,Norwood Schools Limited,M26E,Adult Social Care Operations,External Receipts,-641.20,Dec-22
Slough Borough Council,803238,Oasis Care and Training Agency,A07R,Adult Social Care Operations,Supplies and Services,859.52,Dec-22
Slough Borough Council,803238,Oasis Care and Training Agency,M44C,Adult Social Care Operations,Supplies and Services,722.00,Dec-22
Slough Borough Council,803238,Oasis Care and Training Agency,M44C,Adult Social Care Operations,Supplies and Services,825.06,Dec-22
Slough Borough Council,803238,Oasis Care and Training Agency,M44C,Adult Social Care Operations,Supplies and Services,"1,151.72",Dec-22
Slough Borough Council,803238,Oasis Care and Training Agency,M44C,Adult Social Care Operations,Supplies and Services,"1,925.28",Dec-22
Slough Borough Council,803238,Oasis Care and Training Agency,M44C,Adult Social Care Operations,Supplies and Services,550.08,Dec-22
Slough Borough Council,803238,Oasis Care and Training Agency,M44C,Adult Social Care Operations,Supplies and Services,"2,784.80",Dec-22
Slough Borough Council,803238,Oasis Care and Training Agency,M44C,Adult Social Care Operations,Supplies and Services,962.64,Dec-22
Slough Borough Council,803238,Oasis Care and Training Agency,M44C,Adult Social Care Operations,Supplies and Services,722.00,Dec-22
Slough Borough Council,803238,Oasis Care and Training Agency,M44C,Adult Social Care Operations,Supplies and Services,"2,045.60",Dec-22
Slough Borough Council,803238,Oasis Care and Training Agency,M44C,Adult Social Care Operations,Supplies and Services,739.16,Dec-22
Slough Borough Council,803238,Oasis Care and Training Agency,M44C,Adult Social Care Operations,Supplies and Services,"2,165.96",Dec-22
Slough Borough Council,803238,Oasis Care and Training Agency,M44C,Adult Social Care Operations,Supplies and Services,558.68,Dec-22
Slough Borough Council,803238,Oasis Care and Training Agency,M44C,Adult Social Care Operations,Supplies and Services,601.64,Dec-22
Slough Borough Council,803238,Oasis Care and Training Agency,M44C,Adult Social Care Operations,Supplies and Services,"1,100.16",Dec-22
Slough Borough Council,803238,Oasis Care and Training Agency,M44C,Adult Social Care Operations,Supplies and Services,842.32,Dec-22
Slough Borough Council,803238,Oasis Care and Training Agency,M44C,Adult Social Care Operations,Supplies and Services,"1,564.28",Dec-22
Slough Borough Council,803238,Oasis Care and Training Agency,M44C,Adult Social Care Operations,Supplies and Services,"1,443.96",Dec-22
Slough Borough Council,803238,Oasis Care and Training Agency,M44C,Adult Social Care Operations,Supplies and Services,"1,082.96",Dec-22
Slough Borough Council,803238,Oasis Care and Training Agency,M44D,Adult Social Care Operations,Supplies and Services,842.32,Dec-22
Slough Borough Council,803238,Oasis Care and Training Agency,M44D,Adult Social Care Operations,Supplies and Services,"1,340.84",Dec-22
Slough Borough Council,803238,Oasis Care and Training Agency,M44D,Adult Social Care Operations,Supplies and Services,773.55,Dec-22
Slough Borough Council,803238,Oasis Care and Training Agency,M44D,Adult Social Care Operations,Supplies and Services,979.84,Dec-22
Slough Borough Council,803238,Oasis Care and Training Agency,M44D,Adult Social Care Operations,Supplies and Services,670.40,Dec-22
Slough Borough Council,803238,Oasis Care and Training Agency,M44D,Adult Social Care Operations,Supplies and Services,"1,323.64",Dec-22
Slough Borough Council,803238,Oasis Care and Training Agency,M44D,Adult Social Care Operations,Supplies and Services,842.32,Dec-22
Slough Borough Council,803238,Oasis Care and Training Agency,M44D,Adult Social Care Operations,Supplies and Services,"2,165.96",Dec-22
Slough Borough Council,803238,Oasis Care and Training Agency,M44F,Adult Social Care Operations,Supplies and Services,"4,331.88",Dec-22
Slough Borough Council,803238,Oasis Care and Training Agency,M44F,Adult Social Care Operations,Supplies and Services,"1,375.20",Dec-22
Slough Borough Council,803238,Oasis Care and Training Agency,M45C,Adult Social Care Operations,Supplies and Services,704.78,Dec-22
Slough Borough Council,1767,Olive Tree Montessori Ltd,F909,Children & Families,Supplies and Services,"5,156.15",Dec-22
Slough Borough Council,3603,Olympia Transport Limited,F123,Education & Inclusion,Supplies and Services,"2,112.00",Dec-22
Slough Borough Council,3603,Olympia Transport Limited,F123,Education & Inclusion,Supplies and Services,"5,937.78",Dec-22
Slough Borough Council,3603,Olympia Transport Limited,F123,Education & Inclusion,Supplies and Services,756.00,Dec-22
Slough Borough Council,3603,Olympia Transport Limited,F123,Education & Inclusion,Supplies and Services,"12,985.16",Dec-22
Slough Borough Council,803490,Optimum Specialised Home Limited,M26E,Adult Social Care Operations,Supplies and Services,"8,400.00",Dec-22
Slough Borough Council,803490,Optimum Specialised Home Limited,M26E,Adult Social Care Operations,Supplies and Services,"7,200.00",Dec-22
Slough Borough Council,803490,Optimum Specialised Home Limited,M26E,Adult Social Care Operations,Supplies and Services,"7,180.00",Dec-22
Slough Borough Council,803490,Optimum Specialised Home Limited,M26E,Adult Social Care Operations,Supplies and Services,"7,200.00",Dec-22
Slough Borough Council,803490,Optimum Specialised Home Limited,M26E,Adult Social Care Operations,Supplies and Services,"8,400.00",Dec-22
Slough Borough Council,803490,Optimum Specialised Home Limited,M26E,Adult Social Care Operations,Supplies and Services,"7,200.00",Dec-22
Slough Borough Council,803490,Optimum Specialised Home Limited,M26E,Adult Social Care Operations,Supplies and Services,"7,180.00",Dec-22
Slough Borough Council,1629,Opus Energy Limited,K526,Business Services,Premises,"1,829.59",Dec-22
Slough Borough Council,1629,Opus Energy Limited,K526,Business Services,Premises,"1,552.76",Dec-22
Slough Borough Council,1629,Opus Energy Limited,K526,Business Services,Premises,"5,607.92",Dec-22
Slough Borough Council,1629,Opus Energy Limited,K526,Business Services,Premises,"2,049.32",Dec-22
Slough Borough Council,803960,Orchard Hill College,F558,Children & Families,Supplies and Services,"8,846.42",Dec-22
Slough Borough Council,803960,Orchard Hill College,F558,Children & Families,Supplies and Services,"8,779.39",Dec-22
Slough Borough Council,803960,Orchard Hill College,F558,Children & Families,Supplies and Services,"16,998.68",Dec-22
Slough Borough Council,803960,Orchard Hill College,F558,Children & Families,Supplies and Services,"12,857.39",Dec-22
Slough Borough Council,803960,Orchard Hill College,F558,Children & Families,Supplies and Services,"12,430.21",Dec-22
Slough Borough Council,803960,Orchard Hill College,F558,Children & Families,Supplies and Services,"9,242.25",Dec-22
Slough Borough Council,803960,Orchard Hill College,F558,Children & Families,Supplies and Services,"12,965.16",Dec-22
Slough Borough Council,808579,Origin Amenity Solutions Ltd,D750,Place Operations,Supplies and Services,"1,618.50",Dec-22
Slough Borough Council,805011,Osborne Property Services Limited,J015,Place Management,Premises,"55,591.86",Dec-22
Slough Borough Council,805011,Osborne Property Services Limited,P422,Capital,Capital Charges,"30,459.17",Dec-22
Slough Borough Council,805011,Osborne Property Services Limited,P431,Capital,Capital Charges,"223,779.70",Dec-22
Slough Borough Council,805011,Osborne Property Services Limited,J606,Place Management,Supplies and Services,"253,814.12",Dec-22
Slough Borough Council,680,Oxford House Community Care,M44C,Adult Social Care Operations,Supplies and Services,"1,200.65",Dec-22
Slough Borough Council,680,Oxford House Community Care,M44C,Adult Social Care Operations,Supplies and Services,"2,187.52",Dec-22
Slough Borough Council,680,Oxford House Community Care,M44C,Adult Social Care Operations,Supplies and Services,869.50,Dec-22
Slough Borough Council,680,Oxford House Community Care,M44C,Adult Social Care Operations,Supplies and Services,"1,092.00",Dec-22
Slough Borough Council,680,Oxford House Community Care,M44C,Adult Social Care Operations,Supplies and Services,"2,730.00",Dec-22
Slough Borough Council,680,Oxford House Community Care,M44C,Adult Social Care Operations,Supplies and Services,"1,306.50",Dec-22
Slough Borough Council,680,Oxford House Community Care,M44C,Adult Social Care Operations,Supplies and Services,"1,217.11",Dec-22
Slough Borough Council,680,Oxford House Community Care,M44C,Adult Social Care Operations,Supplies and Services,"1,492.15",Dec-22
Slough Borough Council,680,Oxford House Community Care,M44C,Adult Social Care Operations,Supplies and Services,"1,312.05",Dec-22
Slough Borough Council,680,Oxford House Community Care,M44C,Adult Social Care Operations,Supplies and Services,"2,730.00",Dec-22
Slough Borough Council,680,Oxford House Community Care,M44C,Adult Social Care Operations,Supplies and Services,546.00,Dec-22
Slough Borough Council,680,Oxford House Community Care,M44C,Adult Social Care Operations,Supplies and Services,"1,228.50",Dec-22
Slough Borough Council,680,Oxford House Community Care,M44C,Adult Social Care Operations,Supplies and Services,"1,443.00",Dec-22
Slough Borough Council,680,Oxford House Community Care,M44C,Adult Social Care Operations,Supplies and Services,643.50,Dec-22
Slough Borough Council,680,Oxford House Community Care,M44C,Adult Social Care Operations,Supplies and Services,608.51,Dec-22
Slough Borough Council,680,Oxford House Community Care,M44C,Adult Social Care Operations,Supplies and Services,"1,307.61",Dec-22
Slough Borough Council,680,Oxford House Community Care,M44C,Adult Social Care Operations,Supplies and Services,"3,003.00",Dec-22
Slough Borough Council,680,Oxford House Community Care,M44D,Adult Social Care Operations,Supplies and Services,826.25,Dec-22
Slough Borough Council,680,Oxford House Community Care,M44D,Adult Social Care Operations,Supplies and Services,682.50,Dec-22
Slough Borough Council,680,Oxford House Community Care,M44D,Adult Social Care Operations,Supplies and Services,"1,248.00",Dec-22
Slough Borough Council,680,Oxford House Community Care,M47D,Adult Social Care Operations,Supplies and Services,702.00,Dec-22
Slough Borough Council,680,Oxford House Community Care,M48C,Adult Social Care Operations,Supplies and Services,"1,051.60",Dec-22
Slough Borough Council,680,Oxford House Community Care,M48C,Adult Social Care Operations,Supplies and Services,883.74,Dec-22
Slough Borough Council,518,Oxford House Nursing Home,M15D,Adult Social Care Operations,Supplies and Services,"3,235.76",Dec-22
Slough Borough Council,518,Oxford House Nursing Home,M15D,Adult Social Care Operations,Supplies and Services,"3,235.76",Dec-22
Slough Borough Council,518,Oxford House Nursing Home,M15D,Adult Social Care Operations,Supplies and Services,"3,235.76",Dec-22
Slough Borough Council,518,Oxford House Nursing Home,M15D,Adult Social Care Operations,Supplies and Services,"3,235.76",Dec-22
Slough Borough Council,518,Oxford House Nursing Home,M18C,Adult Social Care Operations,Supplies and Services,"3,235.76",Dec-22
Slough Borough Council,518,Oxford House Nursing Home,M18C,Adult Social Care Operations,Supplies and Services,"3,235.76",Dec-22
Slough Borough Council,518,Oxford House Nursing Home,M18C,Adult Social Care Operations,Supplies and Services,"3,235.76",Dec-22
Slough Borough Council,518,Oxford House Nursing Home,M18C,Adult Social Care Operations,Supplies and Services,"3,235.76",Dec-22
Slough Borough Council,518,Oxford House Nursing Home,M18C,Adult Social Care Operations,Supplies and Services,"38,829.12",Dec-22
Slough Borough Council,518,Oxford House Nursing Home,M28C,Adult Social Care Operations,Supplies and Services,"3,052.60",Dec-22
Slough Borough Council,518,Oxford House Nursing Home,M28C,Adult Social Care Operations,Supplies and Services,"3,052.60",Dec-22
Slough Borough Council,518,Oxford House Nursing Home,M28C,Adult Social Care Operations,Supplies and Services,"-38,829.12",Dec-22
Slough Borough Council,2520,Paradigm Housing Group Ltd,H205,Housing (People) Services,Premises,"8,814.85",Dec-22
Slough Borough Council,808421,Paramjit Saib,F253,Children & Families,Agency Staff,"1,966.24",Dec-22
Slough Borough Council,2461,PARK NOW LIMITED,D123,Place Strategy & Infrastructure,Supplies and Services,"6,821.49",Dec-22
Slough Borough Council,2461,PARK NOW LIMITED,D123,Place Strategy & Infrastructure,Supplies and Services,"7,133.96",Dec-22
Slough Borough Council,2461,PARK NOW LIMITED,D123,Place Strategy & Infrastructure,Supplies and Services,"6,446.41",Dec-22
Slough Borough Council,2461,PARK NOW LIMITED,D123,Place Strategy & Infrastructure,Supplies and Services,"7,111.80",Dec-22
Slough Borough Council,2461,PARK NOW LIMITED,D123,Place Strategy & Infrastructure,Supplies and Services,"7,361.16",Dec-22
Slough Borough Council,2509,Parvaaz Project,M44E,Adult Social Care Operations,Supplies and Services,678.60,Dec-22
Slough Borough Council,2509,Parvaaz Project,M44E,Adult Social Care Operations,Supplies and Services,678.60,Dec-22
Slough Borough Council,2509,Parvaaz Project,M44E,Adult Social Care Operations,Supplies and Services,678.60,Dec-22
Slough Borough Council,2509,Parvaaz Project,M44E,Adult Social Care Operations,Supplies and Services,678.60,Dec-22
Slough Borough Council,2509,Parvaaz Project,M50E,Adult Social Care Operations,Supplies and Services,800.40,Dec-22
Slough Borough Council,2509,Parvaaz Project,M50E,Adult Social Care Operations,Supplies and Services,800.40,Dec-22
Slough Borough Council,2509,Parvaaz Project,M50E,Adult Social Care Operations,Supplies and Services,800.40,Dec-22
Slough Borough Council,2509,Parvaaz Project,M50E,Adult Social Care Operations,Supplies and Services,800.40,Dec-22
Slough Borough Council,824,Penn Wood Primary and Nursery School,E450,Children & Families,Supplies and Services,"301,035.84",Dec-22
Slough Borough Council,824,Penn Wood Primary and Nursery School,B297,Finance & Commercial,Government Grants,"5,400.00",Dec-22
Slough Borough Council,808606,Pentwyn House Nursing Home,M18C,Adult Social Care Operations,Supplies and Services,"4,207.01",Dec-22
Slough Borough Council,1504,Permanent Futures Limited,F410,Children & Families,Agency Staff,"1,350.00",Dec-22
Slough Borough Council,1504,Permanent Futures Limited,F410,Children & Families,Agency Staff,"1,350.00",Dec-22
Slough Borough Council,1504,Permanent Futures Limited,F410,Children & Families,Agency Staff,"1,350.00",Dec-22
Slough Borough Council,1504,Permanent Futures Limited,F410,Children & Families,Agency Staff,"1,350.00",Dec-22
Slough Borough Council,1504,Permanent Futures Limited,F410,Children & Families,Agency Staff,"1,350.00",Dec-22
Slough Borough Council,1504,Permanent Futures Limited,F410,Children & Families,Agency Staff,"1,350.00",Dec-22
Slough Borough Council,1504,Permanent Futures Limited,F640,Children & Families,Agency Staff,"1,500.00",Dec-22
Slough Borough Council,1504,Permanent Futures Limited,F640,Children & Families,Agency Staff,"1,500.00",Dec-22
Slough Borough Council,1504,Permanent Futures Limited,F640,Children & Families,Supplies and Services,"1,500.00",Dec-22
Slough Borough Council,1504,Permanent Futures Limited,F640,Children & Families,Supplies and Services,"1,500.00",Dec-22
Slough Borough Council,1504,Permanent Futures Limited,F640,Children & Families,Supplies and Services,"1,500.00",Dec-22
Slough Borough Council,807727,Phoenix Infant Academy c/o Thames Learning Trust,E620,Children & Families,Supplies and Services,"15,916.67",Dec-22
Slough Borough Council,904,Pitney Bowes Finance Plc,K077,Business Services,Supplies and Services,504.00,Dec-22
Slough Borough Council,904,Pitney Bowes Finance Plc,K077,Business Services,Supplies and Services,"5,009.85",Dec-22
Slough Borough Council,807120,PJ Care Limited,M15D,Adult Social Care Operations,Supplies and Services,"9,831.65",Dec-22
Slough Borough Council,808563,Play & Care,F909,Children & Families,Supplies and Services,635.63,Dec-22
Slough Borough Council,806807,Poppy Radford,C322,Community,Supplies and Services,676.00,Dec-22
Slough Borough Council,806807,Poppy Radford,C322,Community,Supplies and Services,793.00,Dec-22
Slough Borough Council,2537,Pre School Stars,F909,Children & Families,Supplies and Services,510.00,Dec-22
Slough Borough Council,2537,Pre School Stars,F909,Children & Families,Supplies and Services,"6,682.55",Dec-22
Slough Borough Council,808654,Print and Builds Ltd,D123,Place Strategy & Infrastructure,Supplies and Services,"1,060.00",Dec-22
Slough Borough Council,805398,PRIORITEYES LTD,A06E,Adult Social Care Operations,Supplies and Services,"7,260.00",Dec-22
Slough Borough Council,805398,PRIORITEYES LTD,A06E,Adult Social Care Operations,Supplies and Services,"9,540.00",Dec-22
Slough Borough Council,849,Priory Primary School,E380,Children & Families,Supplies and Services,"425,773.02",Dec-22
Slough Borough Council,807207,Proactive Cleaners,M81D,Adult Social Care Operations,Supplies and Services,697.50,Dec-22
Slough Borough Council,807207,Proactive Cleaners,H253,Community,Supplies and Services,697.50,Dec-22
Slough Borough Council,1138,Qed Slough Ltd,F868,Children & Families,Supplies and Services,"4,332.48",Dec-22
Slough Borough Council,1138,Qed Slough Ltd,F868,Children & Families,Supplies and Services,"599,110.30",Dec-22
Slough Borough Council,805746,Qfree (Bristol) UK Ltd,D500,Place Strategy & Infrastructure,Premises,"1,529.17",Dec-22
Slough Borough Council,805746,Qfree (Bristol) UK Ltd,D500,Place Strategy & Infrastructure,Premises,"1,592.00",Dec-22
Slough Borough Council,808200,Quest Recovery Services Ltd,A07R,Adult Social Care Operations,Supplies and Services,708.00,Dec-22
Slough Borough Council,808200,Quest Recovery Services Ltd,A07R,Adult Social Care Operations,Supplies and Services,612.00,Dec-22
Slough Borough Council,808200,Quest Recovery Services Ltd,M44C,Adult Social Care Operations,Supplies and Services,"2,016.00",Dec-22
Slough Borough Council,808200,Quest Recovery Services Ltd,M44C,Adult Social Care Operations,Supplies and Services,560.00,Dec-22
Slough Borough Council,808200,Quest Recovery Services Ltd,M44C,Adult Social Care Operations,Supplies and Services,"1,456.00",Dec-22
Slough Borough Council,808200,Quest Recovery Services Ltd,M44C,Adult Social Care Operations,Supplies and Services,"2,016.00",Dec-22
Slough Borough Council,808200,Quest Recovery Services Ltd,M44C,Adult Social Care Operations,Supplies and Services,672.00,Dec-22
Slough Borough Council,808200,Quest Recovery Services Ltd,M44C,Adult Social Care Operations,Supplies and Services,"1,728.00",Dec-22
Slough Borough Council,808200,Quest Recovery Services Ltd,M44C,Adult Social Care Operations,Supplies and Services,"1,008.00",Dec-22
Slough Borough Council,808200,Quest Recovery Services Ltd,M44C,Adult Social Care Operations,Supplies and Services,599.20,Dec-22
Slough Borough Council,808200,Quest Recovery Services Ltd,M44C,Adult Social Care Operations,Supplies and Services,"1,008.00",Dec-22
Slough Borough Council,808200,Quest Recovery Services Ltd,M44C,Adult Social Care Operations,Supplies and Services,984.40,Dec-22
Slough Borough Council,808200,Quest Recovery Services Ltd,M44C,Adult Social Care Operations,Supplies and Services,"1,557.92",Dec-22
Slough Borough Council,808200,Quest Recovery Services Ltd,M44D,Adult Social Care Operations,Supplies and Services,"1,268.00",Dec-22
Slough Borough Council,808200,Quest Recovery Services Ltd,M44E,Adult Social Care Operations,Supplies and Services,"1,792.00",Dec-22
Slough Borough Council,808200,Quest Recovery Services Ltd,M44E,Adult Social Care Operations,Supplies and Services,"1,917.44",Dec-22
Slough Borough Council,808200,Quest Recovery Services Ltd,M45C,Adult Social Care Operations,Supplies and Services,"1,368.00",Dec-22
Slough Borough Council,808200,Quest Recovery Services Ltd,M45C,Adult Social Care Operations,Supplies and Services,"1,120.00",Dec-22
Slough Borough Council,808200,Quest Recovery Services Ltd,M45C,Adult Social Care Operations,Supplies and Services,"1,264.00",Dec-22
Slough Borough Council,808200,Quest Recovery Services Ltd,M48C,Adult Social Care Operations,Supplies and Services,"2,016.00",Dec-22
Slough Borough Council,808200,Quest Recovery Services Ltd,M48C,Adult Social Care Operations,Supplies and Services,"2,016.00",Dec-22
Slough Borough Council,808200,Quest Recovery Services Ltd,M48C,Adult Social Care Operations,Supplies and Services,"1,008.00",Dec-22
Slough Borough Council,808200,Quest Recovery Services Ltd,M48C,Adult Social Care Operations,Supplies and Services,"1,008.00",Dec-22
Slough Borough Council,808200,Quest Recovery Services Ltd,M48C,Adult Social Care Operations,Supplies and Services,"2,157.12",Dec-22
Slough Borough Council,805551,R Watts and Sons Ltd,D750,Place Operations,Premises,"1,400.00",Dec-22
Slough Borough Council,2685,R.E.A.C.H,M26E,Adult Social Care Operations,Supplies and Services,"7,667.52",Dec-22
Slough Borough Council,2685,R.E.A.C.H,M26E,Adult Social Care Operations,Supplies and Services,"7,142.96",Dec-22
Slough Borough Council,2685,R.E.A.C.H,M26E,Adult Social Care Operations,Supplies and Services,"6,191.08",Dec-22
Slough Borough Council,2685,R.E.A.C.H,M26E,Adult Social Care Operations,Supplies and Services,"10,591.40",Dec-22
Slough Borough Council,2685,R.E.A.C.H,M26E,Adult Social Care Operations,Supplies and Services,"4,915.60",Dec-22
Slough Borough Council,2685,R.E.A.C.H,M26E,Adult Social Care Operations,External Receipts,-574.80,Dec-22
Slough Borough Council,806766,Red Brick Care Ltd,A07R,Adult Social Care Operations,Supplies and Services,833.00,Dec-22
Slough Borough Council,806766,Red Brick Care Ltd,A07R,Adult Social Care Operations,Supplies and Services,"2,142.00",Dec-22
Slough Borough Council,806766,Red Brick Care Ltd,A07R,Adult Social Care Operations,Supplies and Services,867.00,Dec-22
Slough Borough Council,806766,Red Brick Care Ltd,A07R,Adult Social Care Operations,Supplies and Services,867.00,Dec-22
Slough Borough Council,806766,Red Brick Care Ltd,A07R,Adult Social Care Operations,Supplies and Services,"2,142.00",Dec-22
Slough Borough Council,806766,Red Brick Care Ltd,M44C,Adult Social Care Operations,Supplies and Services,743.14,Dec-22
Slough Borough Council,806766,Red Brick Care Ltd,M44C,Adult Social Care Operations,Supplies and Services,"1,232.50",Dec-22
Slough Borough Council,806766,Red Brick Care Ltd,M44C,Adult Social Care Operations,Supplies and Services,765.00,Dec-22
Slough Borough Council,806766,Red Brick Care Ltd,M44C,Adult Social Care Operations,Supplies and Services,"2,142.00",Dec-22
Slough Borough Council,806766,Red Brick Care Ltd,M44C,Adult Social Care Operations,Supplies and Services,"1,836.00",Dec-22
Slough Borough Council,806766,Red Brick Care Ltd,M45C,Adult Social Care Operations,Supplies and Services,"3,094.00",Dec-22
Slough Borough Council,804359,Redacted,F123,Education & Inclusion,Supplies and Services,698.94,Dec-22
Slough Borough Council,804359,Redacted,F123,Education & Inclusion,Supplies and Services,"1,397.88",Dec-22
Slough Borough Council,807192,Redacted,F123,Education & Inclusion,Supplies and Services,604.80,Dec-22
Slough Borough Council,808246,Redacted,F123,Education & Inclusion,Supplies and Services,800.00,Dec-22
Slough Borough Council,804506,Redacted,F123,Education & Inclusion,Supplies and Services,514.80,Dec-22
Slough Borough Council,805321,Redacted,F909,Children & Families,Supplies and Services,"1,243.00",Dec-22
Slough Borough Council,805084,Redacted,F909,Children & Families,Supplies and Services,925.37,Dec-22
Slough Borough Council,806541,Redacted,F909,Children & Families,Supplies and Services,660.00,Dec-22
Slough Borough Council,806541,Redacted,F909,Children & Families,Supplies and Services,"13,038.74",Dec-22
Slough Borough Council,3903,Redacted,F909,Children & Families,Supplies and Services,"1,377.04",Dec-22
Slough Borough Council,805403,Redacted,F909,Children & Families,Supplies and Services,621.50,Dec-22
Slough Borough Council,805307,Redacted,F909,Children & Families,Supplies and Services,621.50,Dec-22
Slough Borough Council,1928,Redacted,F909,Children & Families,Supplies and Services,621.50,Dec-22
Slough Borough Council,3173,Redacted,F909,Children & Families,Supplies and Services,"1,226.85",Dec-22
Slough Borough Council,3934,Redacted,F909,Children & Families,Supplies and Services,605.36,Dec-22
Slough Borough Council,3209,Redacted,F909,Children & Families,Supplies and Services,621.50,Dec-22
Slough Borough Council,804707,Redacted,F909,Children & Families,Supplies and Services,"1,226.85",Dec-22
Slough Borough Council,803824,Redacted,F909,Children & Families,Supplies and Services,"1,864.50",Dec-22
Slough Borough Council,807475,Redacted,F909,Children & Families,Supplies and Services,"4,983.50",Dec-22
Slough Borough Council,803853,Redacted,F909,Children & Families,Supplies and Services,839.43,Dec-22
Slough Borough Council,807647,Redacted,F909,Children & Families,Supplies and Services,871.72,Dec-22
Slough Borough Council,807836,Redacted,F909,Children & Families,Supplies and Services,"1,585.65",Dec-22
Slough Borough Council,803819,Redacted,F909,Children & Families,Supplies and Services,802.08,Dec-22
Slough Borough Council,805806,Redacted,F909,Children & Families,Supplies and Services,621.50,Dec-22
Slough Borough Council,804597,Redline Buses Ltd,D512,Place Strategy & Infrastructure,Supplies and Services,"34,920.00",Dec-22
Slough Borough Council,804597,Redline Buses Ltd,D512,Place Strategy & Infrastructure,Supplies and Services,"10,800.00",Dec-22
Slough Borough Council,806854,Reed Specialist Recruitment,B033,People,Salaries and Wages,783.38,Dec-22
Slough Borough Council,806854,Reed Specialist Recruitment,B033,People,Salaries and Wages,793.82,Dec-22
Slough Borough Council,806854,Reed Specialist Recruitment,B033,People,Salaries and Wages,783.38,Dec-22
Slough Borough Council,806854,Reed Specialist Recruitment,B033,People,Salaries and Wages,783.38,Dec-22
Slough Borough Council,806854,Reed Specialist Recruitment,B033,People,Salaries and Wages,783.38,Dec-22
Slough Borough Council,806854,Reed Specialist Recruitment,B033,People,Salaries and Wages,783.38,Dec-22
Slough Borough Council,806854,Reed Specialist Recruitment,B033,People,Salaries and Wages,788.50,Dec-22
Slough Borough Council,806854,Reed Specialist Recruitment,B033,People,Salaries and Wages,783.38,Dec-22
Slough Borough Council,6,Re-Format Llp,P093,Capital,Capital Charges,"2,473.75",Dec-22
Slough Borough Council,808302,Reliant Care Limited,M44C,Adult Social Care Operations,Supplies and Services,"3,023.91",Dec-22
Slough Borough Council,807562,Renovo Farnborough Limited,M25D,Adult Social Care Operations,Supplies and Services,"8,714.76",Dec-22
Slough Borough Council,781,Resource Productions CIC,F210,Community,TP-Other Bodies,"4,300.00",Dec-22
Slough Borough Council,3486,Response Organisation,M42F,Adult Social Care Operations,Supplies and Services,"1,274.28",Dec-22
Slough Borough Council,1558,Ricoh Uk Limited,B342,Digital and Strategic IT,Capital Charges,"4,500.00",Dec-22
Slough Borough Council,1553,Robyn Baker,C322,Community,Supplies and Services,"1,237.50",Dec-22
Slough Borough Council,1553,Robyn Baker,C322,Community,Supplies and Services,"1,023.00",Dec-22
Slough Borough Council,806930,Roselight Healthcare Service Limited,M42F,Adult Social Care Operations,Supplies and Services,"3,340.00",Dec-22
Slough Borough Council,806930,Roselight Healthcare Service Limited,M42F,Adult Social Care Operations,Supplies and Services,"2,360.00",Dec-22
Slough Borough Council,806930,Roselight Healthcare Service Limited,M44D,Adult Social Care Operations,Supplies and Services,"1,749.64",Dec-22
Slough Borough Council,806930,Roselight Healthcare Service Limited,M44F,Adult Social Care Operations,Supplies and Services,923.97,Dec-22
Slough Borough Council,806930,Roselight Healthcare Service Limited,M44F,Adult Social Care Operations,Supplies and Services,"1,724.74",Dec-22
Slough Borough Council,806930,Roselight Healthcare Service Limited,M44F,Adult Social Care Operations,Supplies and Services,"1,724.74",Dec-22
Slough Borough Council,806930,Roselight Healthcare Service Limited,M44F,Adult Social Care Operations,Supplies and Services,"2,600.00",Dec-22
Slough Borough Council,806930,Roselight Healthcare Service Limited,M44F,Adult Social Care Operations,Supplies and Services,"1,765.16",Dec-22
Slough Borough Council,806930,Roselight Healthcare Service Limited,M44F,Adult Social Care Operations,Supplies and Services,"1,930.00",Dec-22
Slough Borough Council,806930,Roselight Healthcare Service Limited,M44F,Adult Social Care Operations,Supplies and Services,"1,722.00",Dec-22
Slough Borough Council,806930,Roselight Healthcare Service Limited,M44F,Adult Social Care Operations,Supplies and Services,"1,724.72",Dec-22
Slough Borough Council,806930,Roselight Healthcare Service Limited,M44F,Adult Social Care Operations,Supplies and Services,"1,506.00",Dec-22
Slough Borough Council,806930,Roselight Healthcare Service Limited,M44F,Adult Social Care Operations,Supplies and Services,"1,670.00",Dec-22
Slough Borough Council,806930,Roselight Healthcare Service Limited,M44F,Adult Social Care Operations,Supplies and Services,"1,666.00",Dec-22
Slough Borough Council,692,Ross Stonecraft Ltd,C001,Place Operations,Premises,"4,700.00",Dec-22
Slough Borough Council,1220,Royal Borough Of Windsor & Mhead,B015,Finance & Commercial,Supplies and Services,"3,040.00",Dec-22
Slough Borough Council,696,Royal Borough Of Windsor And Maidenhead,F210,Community,Premises,"9,136.00",Dec-22
Slough Borough Council,696,Royal Borough Of Windsor And Maidenhead,F552,Children & Families,Supplies and Services,"4,026.96",Dec-22
Slough Borough Council,696,Royal Borough Of Windsor And Maidenhead,F552,Children & Families,Supplies and Services,"13,695.64",Dec-22
Slough Borough Council,804860,Royal Masonic Benevolent Institution,M18C,Adult Social Care Operations,Supplies and Services,"4,071.43",Dec-22
Slough Borough Council,2168,RSM UK Risk Assurance Services LLP,B132,Finance & Commercial,Supplies and Services,"24,050.00",Dec-22
Slough Borough Council,2168,RSM UK Risk Assurance Services LLP,B146,Finance & Commercial,Supplies and Services,"37,400.00",Dec-22
Slough Borough Council,2168,RSM UK Risk Assurance Services LLP,B146,Finance & Commercial,Supplies and Services,"13,075.00",Dec-22
Slough Borough Council,2168,RSM UK Risk Assurance Services LLP,B146,Finance & Commercial,Supplies and Services,"13,075.00",Dec-22
Slough Borough Council,842,Ryvers Primary School,E620,Children & Families,Supplies and Services,"17,971.66",Dec-22
Slough Borough Council,808515,S R Estate Holding Limited,H205,Housing (People) Services,Supplies and Services,"3,355.00",Dec-22
Slough Borough Council,805875,Salutem Shared Services,M25D,Adult Social Care Operations,Supplies and Services,"6,187.76",Dec-22
Slough Borough Council,805875,Salutem Shared Services,M26E,Adult Social Care Operations,Supplies and Services,"3,883.05",Dec-22
Slough Borough Council,805875,Salutem Shared Services,M26E,Adult Social Care Operations,Supplies and Services,628.03,Dec-22
Slough Borough Council,805875,Salutem Shared Services,M26E,Adult Social Care Operations,External Receipts,-628.02,Dec-22
Slough Borough Council,804350,Sandra's Childcare,F909,Children & Families,Supplies and Services,"1,553.75",Dec-22
Slough Borough Council,808259,Sandy Lane Primary School,F552,Children & Families,Supplies and Services,"8,699.77",Dec-22
Slough Borough Council,3169,Seeability,M26E,Adult Social Care Operations,Supplies and Services,"11,450.40",Dec-22
Slough Borough Council,3169,Seeability,M26E,Adult Social Care Operations,Supplies and Services,"10,350.19",Dec-22
Slough Borough Council,3169,Seeability,M26E,Adult Social Care Operations,Supplies and Services,"4,879.18",Dec-22
Slough Borough Council,3169,Seeability,M26E,Adult Social Care Operations,Supplies and Services,"7,095.19",Dec-22
Slough Borough Council,3169,Seeability,M26E,Adult Social Care Operations,Supplies and Services,"6,408.56",Dec-22
Slough Borough Council,3169,Seeability,M26E,Adult Social Care Operations,Supplies and Services,"7,095.19",Dec-22
Slough Borough Council,3169,Seeability,M26E,Adult Social Care Operations,Supplies and Services,622.14,Dec-22
Slough Borough Council,3169,Seeability,M26E,Adult Social Care Operations,Supplies and Services,"6,866.31",Dec-22
Slough Borough Council,3169,Seeability,M26E,Adult Social Care Operations,Supplies and Services,"7,095.19",Dec-22
Slough Borough Council,3169,Seeability,M26E,Adult Social Care Operations,Supplies and Services,"6,866.31",Dec-22
Slough Borough Council,3169,Seeability,M26E,Adult Social Care Operations,Supplies and Services,"7,095.19",Dec-22
Slough Borough Council,3169,Seeability,M26E,Adult Social Care Operations,Supplies and Services,"6,866.31",Dec-22
Slough Borough Council,3169,Seeability,M26E,Adult Social Care Operations,Supplies and Services,"7,095.19",Dec-22
Slough Borough Council,3169,Seeability,M26E,Adult Social Care Operations,Supplies and Services,"6,866.31",Dec-22
Slough Borough Council,3169,Seeability,M26E,Adult Social Care Operations,Supplies and Services,"7,095.21",Dec-22
Slough Borough Council,803999,Sequence Care Group,M26E,Adult Social Care Operations,Supplies and Services,"12,717.93",Dec-22
Slough Borough Council,808140,Service to the Aged Ltd,M15D,Adult Social Care Operations,Supplies and Services,"3,861.30",Dec-22
Slough Borough Council,1853,Shamita Ray,C322,Community,Supplies and Services,631.00,Dec-22
Slough Borough Council,808653,Shrewsbury Colleges Group,F558,Children & Families,Supplies and Services,"6,219.75",Dec-22
Slough Borough Council,806751,Shropshire Council,F552,Children & Families,Supplies and Services,"2,916.66",Dec-22
Slough Borough Council,804922,SIMPSON ENVIRONMENTAL SERVICE LTD,B082,Place Strategy & Infrastructure,Premises,"8,397.00",Dec-22
Slough Borough Council,472,Slough & Eton C.E.School,B297,Finance & Commercial,Government Grants,"5,025.00",Dec-22
Slough Borough Council,1459,Slough And Eton C E School,E610,Children & Families,Supplies and Services,"24,500.00",Dec-22
Slough Borough Council,807834,Slough Children First,M99C,Children & Families,Supplies and Services,"2,619,512.80",Dec-22
Slough Borough Council,276,Slough Community Transport & Shopmobility,F123,Education & Inclusion,Supplies and Services,"34,026.38",Dec-22
Slough Borough Council,1913,Slough Crossroads Caring For Carers,M44C,Adult Social Care Operations,Supplies and Services,744.00,Dec-22
Slough Borough Council,1913,Slough Crossroads Caring For Carers,M44C,Adult Social Care Operations,Supplies and Services,"1,120.00",Dec-22
Slough Borough Council,1913,Slough Crossroads Caring For Carers,M44D,Adult Social Care Operations,Supplies and Services,528.00,Dec-22
Slough Borough Council,1913,Slough Crossroads Caring For Carers,M44E,Adult Social Care Operations,Supplies and Services,"1,020.00",Dec-22
Slough Borough Council,3503,Slough Day Nursery,F909,Children & Families,Supplies and Services,"3,010.95",Dec-22
Slough Borough Council,804380,Slough Refugee Council,B211,Community,Supplies and Services,"12,766.41",Dec-22
Slough Borough Council,3011,Slough Urban Renewal Community Projects LLP,P575,Capital,Capital Charges,"3,615.24",Dec-22
Slough Borough Council,806733,Smart Move (Estate Agents UK) LTD,H205,Housing (People) Services,Supplies and Services,"1,650.00",Dec-22
Slough Borough Council,382,Softcat Plc,B282,Digital and Strategic IT,Supplies and Services,"8,400.00",Dec-22
Slough Borough Council,1228,Solace Enterprises Ltd,L504,Treasury Management,Supplies and Services,"14,280.00",Dec-22
Slough Borough Council,114,Solutions 4 Health Ltd,A01P,Public Health,Supplies and Services,"229,057.81",Dec-22
Slough Borough Council,114,Solutions 4 Health Ltd,A01P,Public Health,Supplies and Services,"51,833.33",Dec-22
Slough Borough Council,1598,Sorbon Estates Limited,H205,Housing (People) Services,Premises,"6,040.83",Dec-22
Slough Borough Council,1598,Sorbon Estates Limited,H205,Housing (People) Services,Premises,"6,040.83",Dec-22
Slough Borough Council,808407,SOS Electricals & Services Ltd,P093,Capital,Capital Charges,"24,080.49",Dec-22
Slough Borough Council,79,South East Employers,B348,People,Salaries and Wages-Employees Expenses,"5,735.75",Dec-22
Slough Borough Council,807995,Sport4Kids,F382,Children & Families,Supplies and Services,"2,268.75",Dec-22
Slough Borough Council,807995,Sport4Kids,F382,Children & Families,Supplies and Services,"1,815.00",Dec-22
Slough Borough Council,807995,Sport4Kids,F382,Children & Families,Supplies and Services,907.50,Dec-22
Slough Borough Council,807995,Sport4Kids,F382,Children & Families,Supplies and Services,"1,361.25",Dec-22
Slough Borough Council,1875,Ss & Kk. Hothi,H205,Housing (People) Services,Premises,"11,771.25",Dec-22
Slough Borough Council,1875,Ss & Kk. Hothi,H205,Housing (People) Services,Premises,"15,816.66",Dec-22
Slough Borough Council,808401,SSE Energy Solution,K526,Business Services,Premises,"2,201.97",Dec-22
Slough Borough Council,808401,SSE Energy Solution,K526,Business Services,Premises,"5,407.56",Dec-22
Slough Borough Council,808401,SSE Energy Solution,K526,Business Services,Premises,"8,627.13",Dec-22
Slough Borough Council,808401,SSE Energy Solution,K526,Business Services,Premises,"73,892.61",Dec-22
Slough Borough Council,808401,SSE Energy Solution,K526,Business Services,Premises,"1,002.20",Dec-22
Slough Borough Council,808401,SSE Energy Solution,K526,Business Services,Premises,"14,794.79",Dec-22
Slough Borough Council,808401,SSE Energy Solution,K526,Business Services,Premises,"91,839.99",Dec-22
Slough Borough Council,808401,SSE Energy Solution,K526,Business Services,Premises,568.79,Dec-22
Slough Borough Council,1366,Ssi Schaefer Ltd,D610,Place Operations,Supplies and Services,"17,295.60",Dec-22
Slough Borough Council,803165,St Anthony's Catholic Primary School & Nursery,E620,Children & Families,Supplies and Services,"11,595.11",Dec-22
Slough Borough Council,3383,St Bernards Catholic Grammar School,E550,Children & Families,Supplies and Services,"504,541.49",Dec-22
Slough Borough Council,2918,St Bernard'S Rc Preparatory School,F909,Children & Families,Supplies and Services,"11,351.76",Dec-22
Slough Borough Council,805366,St Edmund Campion Catholic Primary School,F552,Children & Families,Supplies and Services,"2,283.00",Dec-22
Slough Borough Council,3547,St Ethelberts School,E620,Children & Families,Supplies and Services,"20,787.94",Dec-22
Slough Borough Council,1378,St Josephs Catholic High School,E610,Children & Families,Supplies and Services,"15,273.97",Dec-22
Slough Borough Council,806584,St Mattews Ltd,M15F,Adult Social Care Operations,Supplies and Services,"4,096.43",Dec-22
Slough Borough Council,804910,Stennetts Limited,D630,Place Operations,Supplies and Services,"5,070.00",Dec-22
Slough Borough Council,804910,Stennetts Limited,D750,Place Operations,Supplies and Services,"1,000.00",Dec-22
Slough Borough Council,804910,Stennetts Limited,D880,Place Operations,Supplies and Services,"1,365.00",Dec-22
Slough Borough Council,806115,Stepping Stones,F909,Children & Families,Supplies and Services,621.50,Dec-22
Slough Borough Council,805181,Street Furnishings Ltd,D880,Place Operations,Supplies and Services,644.90,Dec-22
Slough Borough Council,805181,Street Furnishings Ltd,D509,Place Strategy & Infrastructure,Supplies and Services,"1,131.68",Dec-22
Slough Borough Council,807889,Sunrise Transport Ltd,F123,Education & Inclusion,Supplies and Services,"10,554.00",Dec-22
Slough Borough Council,293,Surecare Slough,A07R,Adult Social Care Operations,Supplies and Services,"-1,026.90",Dec-22
Slough Borough Council,293,Surecare Slough,A07R,Adult Social Care Operations,Supplies and Services,682.74,Dec-22
Slough Borough Council,293,Surecare Slough,A07R,Adult Social Care Operations,Supplies and Services,999.60,Dec-22
Slough Borough Council,293,Surecare Slough,M41D,Adult Social Care Operations,Supplies and Services,"2,469.60",Dec-22
Slough Borough Council,293,Surecare Slough,M44C,Adult Social Care Operations,Supplies and Services,823.20,Dec-22
Slough Borough Council,293,Surecare Slough,M44C,Adult Social Care Operations,Supplies and Services,"2,744.00",Dec-22
Slough Borough Council,293,Surecare Slough,M44C,Adult Social Care Operations,Supplies and Services,"2,469.60",Dec-22
Slough Borough Council,293,Surecare Slough,M44C,Adult Social Care Operations,Supplies and Services,"2,469.60",Dec-22
Slough Borough Council,293,Surecare Slough,M44C,Adult Social Care Operations,Supplies and Services,"2,548.00",Dec-22
Slough Borough Council,293,Surecare Slough,M44C,Adult Social Care Operations,Supplies and Services,823.20,Dec-22
Slough Borough Council,293,Surecare Slough,M44C,Adult Social Care Operations,Supplies and Services,"2,469.60",Dec-22
Slough Borough Council,293,Surecare Slough,M44C,Adult Social Care Operations,Supplies and Services,917.52,Dec-22
Slough Borough Council,293,Surecare Slough,M44C,Adult Social Care Operations,Supplies and Services,548.80,Dec-22
Slough Borough Council,293,Surecare Slough,M44C,Adult Social Care Operations,Supplies and Services,"1,917.86",Dec-22
Slough Borough Council,293,Surecare Slough,M44C,Adult Social Care Operations,Supplies and Services,"1,430.80",Dec-22
Slough Borough Council,293,Surecare Slough,M44C,Adult Social Care Operations,Supplies and Services,"2,567.60",Dec-22
Slough Borough Council,293,Surecare Slough,M44C,Adult Social Care Operations,Supplies and Services,"1,785.56",Dec-22
Slough Borough Council,293,Surecare Slough,M44C,Adult Social Care Operations,Supplies and Services,"2,968.38",Dec-22
Slough Borough Council,293,Surecare Slough,M44C,Adult Social Care Operations,Supplies and Services,"1,372.00",Dec-22
Slough Borough Council,293,Surecare Slough,M44C,Adult Social Care Operations,Supplies and Services,960.40,Dec-22
Slough Borough Council,293,Surecare Slough,M44C,Adult Social Care Operations,Supplies and Services,"1,230.55",Dec-22
Slough Borough Council,293,Surecare Slough,M44C,Adult Social Care Operations,Supplies and Services,"2,458.82",Dec-22
Slough Borough Council,293,Surecare Slough,M44C,Adult Social Care Operations,Supplies and Services,"1,092.72",Dec-22
Slough Borough Council,293,Surecare Slough,M44C,Adult Social Care Operations,Supplies and Services,"1,233.49",Dec-22
Slough Borough Council,293,Surecare Slough,M44C,Adult Social Care Operations,Supplies and Services,823.20,Dec-22
Slough Borough Council,293,Surecare Slough,M44C,Adult Social Care Operations,Supplies and Services,546.51,Dec-22
Slough Borough Council,293,Surecare Slough,M44C,Adult Social Care Operations,Supplies and Services,975.42,Dec-22
Slough Borough Council,293,Surecare Slough,M44C,Adult Social Care Operations,Supplies and Services,"1,293.60",Dec-22
Slough Borough Council,293,Surecare Slough,M44C,Adult Social Care Operations,Supplies and Services,"2,469.60",Dec-22
Slough Borough Council,293,Surecare Slough,M44C,Adult Social Care Operations,Supplies and Services,959.10,Dec-22
Slough Borough Council,293,Surecare Slough,M44C,Adult Social Care Operations,Supplies and Services,552.72,Dec-22
Slough Borough Council,293,Surecare Slough,M44C,Adult Social Care Operations,Supplies and Services,"1,415.81",Dec-22
Slough Borough Council,293,Surecare Slough,M44C,Adult Social Care Operations,Supplies and Services,"1,546.75",Dec-22
Slough Borough Council,293,Surecare Slough,M44C,Adult Social Care Operations,Supplies and Services,"1,366.83",Dec-22
Slough Borough Council,293,Surecare Slough,M44C,Adult Social Care Operations,Supplies and Services,"1,427.55",Dec-22
Slough Borough Council,293,Surecare Slough,M44D,Adult Social Care Operations,Supplies and Services,"2,469.60",Dec-22
Slough Borough Council,293,Surecare Slough,M44D,Adult Social Care Operations,Supplies and Services,"2,469.60",Dec-22
Slough Borough Council,293,Surecare Slough,M44D,Adult Social Care Operations,Supplies and Services,"1,361.87",Dec-22
Slough Borough Council,293,Surecare Slough,M44D,Adult Social Care Operations,Supplies and Services,"2,469.60",Dec-22
Slough Borough Council,293,Surecare Slough,M44D,Adult Social Care Operations,Supplies and Services,"1,058.40",Dec-22
Slough Borough Council,293,Surecare Slough,M44D,Adult Social Care Operations,Supplies and Services,"1,214.22",Dec-22
Slough Borough Council,293,Surecare Slough,M44D,Adult Social Care Operations,Supplies and Services,"2,587.20",Dec-22
Slough Borough Council,293,Surecare Slough,M44D,Adult Social Care Operations,Supplies and Services,"1,878.99",Dec-22
Slough Borough Council,293,Surecare Slough,M44D,Adult Social Care Operations,Supplies and Services,"1,231.53",Dec-22
Slough Borough Council,293,Surecare Slough,M44E,Adult Social Care Operations,Supplies and Services,823.20,Dec-22
Slough Borough Council,293,Surecare Slough,M44E,Adult Social Care Operations,Supplies and Services,705.60,Dec-22
Slough Borough Council,293,Surecare Slough,M44F,Adult Social Care Operations,Supplies and Services,705.60,Dec-22
Slough Borough Council,293,Surecare Slough,M45C,Adult Social Care Operations,Supplies and Services,938.00,Dec-22
Slough Borough Council,293,Surecare Slough,M48C,Adult Social Care Operations,Supplies and Services,"2,744.00",Dec-22
Slough Borough Council,293,Surecare Slough,M48C,Adult Social Care Operations,Supplies and Services,"1,411.20",Dec-22
Slough Borough Council,1724,Susan Nash,C322,Community,Supplies and Services,995.00,Dec-22
Slough Borough Council,808334,Tankata Percussion,F253,Children & Families,Agency Staff,"2,092.50",Dec-22
Slough Borough Council,3369,Teeny Boppers Montessori School,F909,Children & Families,Supplies and Services,"8,354.28",Dec-22
Slough Borough Council,1596,Teleshore (Uk) Limited,D320,Place Operations,Supplies and Services,771.75,Dec-22
Slough Borough Council,1596,Teleshore (Uk) Limited,D320,Place Operations,Supplies and Services,"2,307.00",Dec-22
Slough Borough Council,803712,Thames Valley Transport Services LTD,F123,Education & Inclusion,Supplies and Services,"123,397.72",Dec-22
Slough Borough Council,717,Thames Water Utilities Limited,H111,Finance & Commercial,Premises,"3,135.73",Dec-22
Slough Borough Council,717,Thames Water Utilities Limited,J015,Place Management,Premises,839.56,Dec-22
Slough Borough Council,717,Thames Water Utilities Limited,J015,Place Management,Premises,"1,802.73",Dec-22
Slough Borough Council,717,Thames Water Utilities Limited,J015,Place Management,Premises,"1,650.36",Dec-22
Slough Borough Council,803774,The Abbeyfield Maidenhead Society Ltd,M27C,Adult Social Care Operations,Supplies and Services,"4,355.65",Dec-22
Slough Borough Council,808451,The Address Management,H205,Housing (People) Services,Supplies and Services,"1,650.00",Dec-22
Slough Borough Council,808451,The Address Management,H205,Housing (People) Services,Supplies and Services,"1,860.00",Dec-22
Slough Borough Council,808451,The Address Management,H205,Housing (People) Services,Supplies and Services,"1,705.00",Dec-22
Slough Borough Council,808451,The Address Management,H205,Housing (People) Services,Supplies and Services,"1,860.00",Dec-22
Slough Borough Council,808451,The Address Management,H205,Housing (People) Services,Supplies and Services,"1,860.00",Dec-22
Slough Borough Council,808451,The Address Management,H205,Housing (People) Services,Supplies and Services,"1,395.00",Dec-22
Slough Borough Council,808451,The Address Management,H205,Housing (People) Services,Supplies and Services,"4,850.00",Dec-22
Slough Borough Council,808451,The Address Management,H205,Housing (People) Services,Supplies and Services,"6,900.00",Dec-22
Slough Borough Council,808451,The Address Management,H205,Housing (People) Services,Supplies and Services,"6,665.00",Dec-22
Slough Borough Council,653,The Godolphin Junior Academy,E620,Children & Families,Supplies and Services,"9,722.03",Dec-22
Slough Borough Council,806838,The Green Room Foundation Ltd,F462,Children & Families,Supplies and Services,"12,500.00",Dec-22
Slough Borough Council,806838,The Green Room Foundation Ltd,F462,Children & Families,Supplies and Services,"10,000.00",Dec-22
Slough Borough Council,1385,The Langley Academy,E610,Children & Families,Supplies and Services,"15,948.40",Dec-22
Slough Borough Council,803300,The Langley Academy Primary,E610,Children & Families,Supplies and Services,"27,915.00",Dec-22
Slough Borough Council,806847,The Langley Heritage Primary Academy,E620,Children & Families,Supplies and Services,"16,486.67",Dec-22
Slough Borough Council,806847,The Langley Heritage Primary Academy,B297,Finance & Commercial,Government Grants,"3,270.00",Dec-22
Slough Borough Council,805400,The Leading Care Company,M44C,Adult Social Care Operations,Supplies and Services,"1,153.23",Dec-22
Slough Borough Council,805400,The Leading Care Company,M44C,Adult Social Care Operations,Supplies and Services,507.59,Dec-22
Slough Borough Council,805400,The Leading Care Company,M44C,Adult Social Care Operations,Supplies and Services,"1,859.12",Dec-22
Slough Borough Council,805400,The Leading Care Company,M44C,Adult Social Care Operations,Supplies and Services,742.94,Dec-22
Slough Borough Council,805400,The Leading Care Company,M44C,Adult Social Care Operations,Supplies and Services,640.68,Dec-22
Slough Borough Council,805400,The Leading Care Company,M44C,Adult Social Care Operations,Supplies and Services,727.67,Dec-22
Slough Borough Council,805400,The Leading Care Company,M44C,Adult Social Care Operations,Supplies and Services,859.46,Dec-22
Slough Borough Council,805400,The Leading Care Company,M44D,Adult Social Care Operations,Supplies and Services,"1,060.98",Dec-22
Slough Borough Council,805400,The Leading Care Company,M44D,Adult Social Care Operations,Supplies and Services,"3,800.16",Dec-22
Slough Borough Council,805400,The Leading Care Company,M45C,Adult Social Care Operations,Supplies and Services,"1,025.10",Dec-22
Slough Borough Council,805400,The Leading Care Company,M48C,Adult Social Care Operations,Supplies and Services,"3,800.16",Dec-22
Slough Borough Council,3116,The Oratory Montessori Day Nursery,F909,Children & Families,Supplies and Services,"13,699.58",Dec-22
Slough Borough Council,2002,The Pace Centre,F551,Children & Families,Supplies and Services,"2,990.00",Dec-22
Slough Borough Council,807439,The Pines,M26E,Adult Social Care Operations,Supplies and Services,"4,080.00",Dec-22
Slough Borough Council,807439,The Pines,M26E,Adult Social Care Operations,Supplies and Services,"3,919.54",Dec-22
Slough Borough Council,808670,The Skills Network,F210,Community,TP-Other Bodies,"51,776.00",Dec-22
Slough Borough Council,2209,The Specialist Education Trust,F123,Education & Inclusion,Supplies and Services,"58,000.00",Dec-22
Slough Borough Council,821,The Westgate School,E610,Children & Families,Supplies and Services,"25,208.34",Dec-22
Slough Borough Council,2999,The Windsor Boys School,F552,Children & Families,Supplies and Services,"1,549.00",Dec-22
Slough Borough Council,808553,Theori Housing Management Services Ltd,H205,Housing (People) Services,Supplies and Services,840.00,Dec-22
Slough Borough Council,807030,Thrive365 Ltd,F210,Community,TP-Other Bodies,"2,880.00",Dec-22
Slough Borough Council,805915,Time 4 U Limited,M44F,Adult Social Care Operations,Supplies and Services,"3,037.80",Dec-22
Slough Borough Council,806360,Tiny Turtles Daycare Nursery Ltd,F909,Children & Families,Supplies and Services,690.00,Dec-22
Slough Borough Council,806360,Tiny Turtles Daycare Nursery Ltd,F909,Children & Families,Supplies and Services,"14,977.65",Dec-22
Slough Borough Council,805506,TKF Training,D900,Place Operations,Indirect Employee Expenses,"1,760.00",Dec-22
Slough Borough Council,805506,TKF Training,D900,Place Operations,Indirect Employee Expenses,"2,650.00",Dec-22
Slough Borough Council,171,Toad Hall Nursery,F909,Children & Families,Supplies and Services,"23,509.31",Dec-22
Slough Borough Council,2203,Toby Miller,C322,Community,Supplies and Services,"3,187.25",Dec-22
Slough Borough Council,2203,Toby Miller,C322,Community,Supplies and Services,"1,192.50",Dec-22
Slough Borough Council,804367,Tom Horn,F253,Children & Families,Agency Staff,983.00,Dec-22
Slough Borough Council,1782,Top Mill Ltd,H205,Housing (People) Services,Supplies and Services,560.00,Dec-22
Slough Borough Council,1782,Top Mill Ltd,H205,Housing (People) Services,Supplies and Services,560.00,Dec-22
Slough Borough Council,807871,Total Pest Control (UK) Limited,B190,Business Services,Premises,780.00,Dec-22
Slough Borough Council,808105,Transoft Solutions (UK) Ltd,D220,Place Regulation,Supplies and Services,"5,810.00",Dec-22
Slough Borough Council,2889,Tudor (UK) Ltd t/a Tudor Environmental,D750,Place Operations,Supplies and Services,531.26,Dec-22
Slough Borough Council,2889,Tudor (UK) Ltd t/a Tudor Environmental,D750,Place Operations,Supplies and Services,"1,047.49",Dec-22
Slough Borough Council,942,Turning Point,A04C,Adult Social Care Operations,Supplies and Services,"1,964.29",Dec-22
Slough Borough Council,942,Turning Point,A04C,Adult Social Care Operations,Supplies and Services,"2,200.00",Dec-22
Slough Borough Council,807935,Two Scoop Films,C322,Community,Supplies and Services,500.00,Dec-22
Slough Borough Council,1575,Twofold Limited,D224,Place Regulation,Supplies and Services,645.71,Dec-22
Slough Borough Council,807414,Uniq Health Care,M42E,Adult Social Care Operations,Supplies and Services,"1,228.00",Dec-22
Slough Borough Council,807414,Uniq Health Care,M42E,Adult Social Care Operations,Supplies and Services,"1,228.00",Dec-22
Slough Borough Council,807414,Uniq Health Care,M42E,Adult Social Care Operations,Supplies and Services,"1,228.00",Dec-22
Slough Borough Council,807414,Uniq Health Care,M42E,Adult Social Care Operations,Supplies and Services,"1,228.00",Dec-22
Slough Borough Council,807414,Uniq Health Care,M42E,Adult Social Care Operations,Supplies and Services,"1,228.00",Dec-22
Slough Borough Council,807414,Uniq Health Care,M42E,Adult Social Care Operations,Supplies and Services,"1,228.00",Dec-22
Slough Borough Council,807414,Uniq Health Care,M42E,Adult Social Care Operations,Supplies and Services,"1,228.00",Dec-22
Slough Borough Council,807414,Uniq Health Care,M42E,Adult Social Care Operations,Supplies and Services,"1,228.00",Dec-22
Slough Borough Council,807414,Uniq Health Care,M42E,Adult Social Care Operations,Supplies and Services,"1,228.00",Dec-22
Slough Borough Council,807414,Uniq Health Care,M42E,Adult Social Care Operations,Supplies and Services,"1,228.00",Dec-22
Slough Borough Council,3953,Upton Court Grammar School,E610,Children & Families,Supplies and Services,"2,500.00",Dec-22
Slough Borough Council,577,Upton Park Hotel,H205,Housing (People) Services,Supplies and Services,"1,372.00",Dec-22
Slough Borough Council,577,Upton Park Hotel,H205,Housing (People) Services,Supplies and Services,"1,372.00",Dec-22
Slough Borough Council,577,Upton Park Hotel,H205,Housing (People) Services,Supplies and Services,"1,372.00",Dec-22
Slough Borough Council,577,Upton Park Hotel,H205,Housing (People) Services,Supplies and Services,"1,372.00",Dec-22
Slough Borough Council,577,Upton Park Hotel,H205,Housing (People) Services,Supplies and Services,"1,372.00",Dec-22
Slough Borough Council,577,Upton Park Hotel,H205,Housing (People) Services,Supplies and Services,"1,848.00",Dec-22
Slough Borough Council,577,Upton Park Hotel,H205,Housing (People) Services,Supplies and Services,"1,372.00",Dec-22
Slough Borough Council,577,Upton Park Hotel,H205,Housing (People) Services,Supplies and Services,"1,372.00",Dec-22
Slough Borough Council,577,Upton Park Hotel,H205,Housing (People) Services,Supplies and Services,"1,372.00",Dec-22
Slough Borough Council,577,Upton Park Hotel,H205,Housing (People) Services,Supplies and Services,"1,372.00",Dec-22
Slough Borough Council,577,Upton Park Hotel,H205,Housing (People) Services,Supplies and Services,"1,372.00",Dec-22
Slough Borough Council,577,Upton Park Hotel,H205,Housing (People) Services,Supplies and Services,"1,372.00",Dec-22
Slough Borough Council,577,Upton Park Hotel,H205,Housing (People) Services,Supplies and Services,"1,372.00",Dec-22
Slough Borough Council,577,Upton Park Hotel,H205,Housing (People) Services,Supplies and Services,"1,372.00",Dec-22
Slough Borough Council,577,Upton Park Hotel,H205,Housing (People) Services,Supplies and Services,"1,372.00",Dec-22
Slough Borough Council,577,Upton Park Hotel,H205,Housing (People) Services,Supplies and Services,"1,372.00",Dec-22
Slough Borough Council,577,Upton Park Hotel,H205,Housing (People) Services,Supplies and Services,"1,372.00",Dec-22
Slough Borough Council,577,Upton Park Hotel,H205,Housing (People) Services,Supplies and Services,"1,372.00",Dec-22
Slough Borough Council,577,Upton Park Hotel,H205,Housing (People) Services,Supplies and Services,"1,372.00",Dec-22
Slough Borough Council,577,Upton Park Hotel,H205,Housing (People) Services,Supplies and Services,"1,372.00",Dec-22
Slough Borough Council,577,Upton Park Hotel,H205,Housing (People) Services,Supplies and Services,"1,372.00",Dec-22
Slough Borough Council,577,Upton Park Hotel,H205,Housing (People) Services,Supplies and Services,"1,372.00",Dec-22
Slough Borough Council,577,Upton Park Hotel,H205,Housing (People) Services,Supplies and Services,"1,372.00",Dec-22
Slough Borough Council,577,Upton Park Hotel,H205,Housing (People) Services,Supplies and Services,"1,372.00",Dec-22
Slough Borough Council,577,Upton Park Hotel,H205,Housing (People) Services,Supplies and Services,"1,372.00",Dec-22
Slough Borough Council,577,Upton Park Hotel,H205,Housing (People) Services,Supplies and Services,"1,372.00",Dec-22
Slough Borough Council,577,Upton Park Hotel,H205,Housing (People) Services,Supplies and Services,"1,372.00",Dec-22
Slough Borough Council,577,Upton Park Hotel,H205,Housing (People) Services,Supplies and Services,"2,184.00",Dec-22
Slough Borough Council,577,Upton Park Hotel,H205,Housing (People) Services,Supplies and Services,"2,184.00",Dec-22
Slough Borough Council,577,Upton Park Hotel,H205,Housing (People) Services,Supplies and Services,"1,372.00",Dec-22
Slough Borough Council,577,Upton Park Hotel,H205,Housing (People) Services,Supplies and Services,"1,372.00",Dec-22
Slough Borough Council,577,Upton Park Hotel,H205,Housing (People) Services,Supplies and Services,"1,372.00",Dec-22
Slough Borough Council,577,Upton Park Hotel,H205,Housing (People) Services,Supplies and Services,"1,372.00",Dec-22
Slough Borough Council,577,Upton Park Hotel,H205,Housing (People) Services,Supplies and Services,"1,372.00",Dec-22
Slough Borough Council,577,Upton Park Hotel,H205,Housing (People) Services,Supplies and Services,"1,372.00",Dec-22
Slough Borough Council,577,Upton Park Hotel,H205,Housing (People) Services,Supplies and Services,"1,372.00",Dec-22
Slough Borough Council,577,Upton Park Hotel,H205,Housing (People) Services,Supplies and Services,"1,372.00",Dec-22
Slough Borough Council,577,Upton Park Hotel,H205,Housing (People) Services,Supplies and Services,"1,372.00",Dec-22
Slough Borough Council,577,Upton Park Hotel,H205,Housing (People) Services,Supplies and Services,"3,360.00",Dec-22
Slough Borough Council,577,Upton Park Hotel,H205,Housing (People) Services,Supplies and Services,"1,372.00",Dec-22
Slough Borough Council,577,Upton Park Hotel,H205,Housing (People) Services,Supplies and Services,"1,372.00",Dec-22
Slough Borough Council,577,Upton Park Hotel,H205,Housing (People) Services,Supplies and Services,"1,372.00",Dec-22
Slough Borough Council,577,Upton Park Hotel,H205,Housing (People) Services,Supplies and Services,"1,372.00",Dec-22
Slough Borough Council,577,Upton Park Hotel,H205,Housing (People) Services,Supplies and Services,"1,372.00",Dec-22
Slough Borough Council,577,Upton Park Hotel,H205,Housing (People) Services,Supplies and Services,"1,372.00",Dec-22
Slough Borough Council,577,Upton Park Hotel,H205,Housing (People) Services,Supplies and Services,"1,372.00",Dec-22
Slough Borough Council,577,Upton Park Hotel,H205,Housing (People) Services,Supplies and Services,"1,225.00",Dec-22
Slough Borough Council,577,Upton Park Hotel,H205,Housing (People) Services,Supplies and Services,"3,360.00",Dec-22
Slough Borough Council,577,Upton Park Hotel,H205,Housing (People) Services,Supplies and Services,"1,372.00",Dec-22
Slough Borough Council,577,Upton Park Hotel,H205,Housing (People) Services,Supplies and Services,"3,360.00",Dec-22
Slough Borough Council,577,Upton Park Hotel,H205,Housing (People) Services,Supplies and Services,"1,372.00",Dec-22
Slough Borough Council,577,Upton Park Hotel,H205,Housing (People) Services,Supplies and Services,"1,512.00",Dec-22
Slough Borough Council,577,Upton Park Hotel,H205,Housing (People) Services,Supplies and Services,"1,512.00",Dec-22
Slough Borough Council,577,Upton Park Hotel,H205,Housing (People) Services,Supplies and Services,"1,372.00",Dec-22
Slough Borough Council,577,Upton Park Hotel,H205,Housing (People) Services,Supplies and Services,"1,372.00",Dec-22
Slough Borough Council,808215,Vanguard Learning Trust - Vyners School,F552,Children & Families,Supplies and Services,"7,500.00",Dec-22
Slough Borough Council,808521,VAROSI ESTATES LIMITED,H205,Housing (People) Services,Supplies and Services,"3,000.00",Dec-22
Slough Borough Council,1070,Vip System Limited,D316,Place Regulation,Supplies and Services,"12,597.32",Dec-22
Slough Borough Council,1212,Virgin Media Ltd,B023,Finance & Commercial,Supplies and Services,"17,894.92",Dec-22
Slough Borough Council,1212,Virgin Media Ltd,B023,Finance & Commercial,Supplies and Services,"3,487.13",Dec-22
Slough Borough Council,807617,Vivedia Ltd t/a Obitus,D320,Place Operations,External Receipts,"1,483.00",Dec-22
Slough Borough Council,2682,Voyage 1 Limited,M26E,Adult Social Care Operations,Supplies and Services,"7,146.32",Dec-22
Slough Borough Council,2682,Voyage 1 Limited,M26E,Adult Social Care Operations,Supplies and Services,"5,477.92",Dec-22
Slough Borough Council,2682,Voyage 1 Limited,M26E,Adult Social Care Operations,Supplies and Services,"5,072.53",Dec-22
Slough Borough Council,2682,Voyage 1 Limited,M26E,Adult Social Care Operations,Supplies and Services,607.11,Dec-22
Slough Borough Council,2682,Voyage 1 Limited,M26E,Adult Social Care Operations,Supplies and Services,"6,473.70",Dec-22
Slough Borough Council,2682,Voyage 1 Limited,M26E,Adult Social Care Operations,Supplies and Services,"7,573.23",Dec-22
Slough Borough Council,2682,Voyage 1 Limited,M26E,Adult Social Care Operations,External Receipts,-725.05,Dec-22
Slough Borough Council,3436,Voyage Ltd,M26E,Adult Social Care Operations,Supplies and Services,"5,723.62",Dec-22
Slough Borough Council,3436,Voyage Ltd,M26E,Adult Social Care Operations,Supplies and Services,"3,575.98",Dec-22
Slough Borough Council,3436,Voyage Ltd,M42E,Adult Social Care Operations,Supplies and Services,"5,463.62",Dec-22
Slough Borough Council,3436,Voyage Ltd,M42E,Adult Social Care Operations,Supplies and Services,"4,845.09",Dec-22
Slough Borough Council,3436,Voyage Ltd,M42E,Adult Social Care Operations,Supplies and Services,"4,566.60",Dec-22
Slough Borough Council,3436,Voyage Ltd,M42E,Adult Social Care Operations,Supplies and Services,"4,559.08",Dec-22
Slough Borough Council,3436,Voyage Ltd,M42E,Adult Social Care Operations,Supplies and Services,"5,249.30",Dec-22
Slough Borough Council,3436,Voyage Ltd,M42E,Adult Social Care Operations,Supplies and Services,"5,800.00",Dec-22
Slough Borough Council,3436,Voyage Ltd,M42E,Adult Social Care Operations,Supplies and Services,"5,620.60",Dec-22
Slough Borough Council,808416,WATERMELON PROPERTIES LIMITED,H205,Housing (People) Services,Supplies and Services,"1,800.00",Dec-22
Slough Borough Council,804372,Ways into Work,B211,Community,Supplies and Services,"83,253.83",Dec-22
Slough Borough Council,448,Wea Southern,B211,Community,Supplies and Services,"7,554.16",Dec-22
Slough Borough Council,1762,Wellingtons For Langley Hall,F500,Education & Inclusion,Supplies and Services,"1,680.00",Dec-22
Slough Borough Council,1762,Wellingtons For Langley Hall,F500,Education & Inclusion,Supplies and Services,630.00,Dec-22
Slough Borough Council,1762,Wellingtons For Langley Hall,F500,Education & Inclusion,Supplies and Services,"2,940.00",Dec-22
Slough Borough Council,1762,Wellingtons For Langley Hall,F500,Education & Inclusion,Supplies and Services,"1,680.00",Dec-22
Slough Borough Council,1762,Wellingtons For Langley Hall,F909,Children & Families,Supplies and Services,"1,230.00",Dec-22
Slough Borough Council,1762,Wellingtons For Langley Hall,F909,Children & Families,Supplies and Services,"72,824.09",Dec-22
Slough Borough Council,1749,West London Ymca,H205,Housing (People) Services,Supplies and Services,750.00,Dec-22
Slough Borough Council,1749,West London Ymca,H205,Housing (People) Services,Supplies and Services,"1,300.00",Dec-22
Slough Borough Council,1749,West London Ymca,H205,Housing (People) Services,Supplies and Services,"1,550.00",Dec-22
Slough Borough Council,1749,West London Ymca,H205,Housing (People) Services,Supplies and Services,"1,550.00",Dec-22
Slough Borough Council,1649,Western House Primary School,E610,Children & Families,Supplies and Services,"21,545.82",Dec-22
Slough Borough Council,2095,White Horse Contractors Ltd,P083,Capital,Capital Charges,"87,201.20",Dec-22
Slough Borough Council,3628,White Leaf Care Ltd,M26E,Adult Social Care Operations,Supplies and Services,"4,198.28",Dec-22
Slough Borough Council,3628,White Leaf Care Ltd,M27C,Adult Social Care Operations,Supplies and Services,"7,985.60",Dec-22
Slough Borough Council,808062,Whitefriars Nursing & Residential Home,M26E,Adult Social Care Operations,Supplies and Services,"3,726.20",Dec-22
Slough Borough Council,1753,Willow Primary School,E620,Children & Families,Supplies and Services,"25,226.25",Dec-22
Slough Borough Council,805208,Wilson & Scott (Highways) Ltd,D880,Place Operations,Supplies and Services,"3,520.70",Dec-22
Slough Borough Council,805208,Wilson & Scott (Highways) Ltd,D880,Place Operations,Supplies and Services,"3,080.51",Dec-22
Slough Borough Council,805209,Wilsons Horticultural Maintenance Ltd,D750,Place Operations,Supplies and Services,"4,185.04",Dec-22
Slough Borough Council,807549,Windsar Care (UK) LLP,M15F,Adult Social Care Operations,Supplies and Services,"4,071.43",Dec-22
Slough Borough Council,807549,Windsar Care (UK) LLP,M15F,Adult Social Care Operations,Supplies and Services,"4,071.43",Dec-22
Slough Borough Council,807549,Windsar Care (UK) LLP,M15F,Adult Social Care Operations,Supplies and Services,"4,207.14",Dec-22
Slough Borough Council,807549,Windsar Care (UK) LLP,M15F,Adult Social Care Operations,Supplies and Services,"4,207.14",Dec-22
Slough Borough Council,807549,Windsar Care (UK) LLP,M17C,Adult Social Care Operations,Supplies and Services,"4,178.57",Dec-22
Slough Borough Council,807549,Windsar Care (UK) LLP,M17C,Adult Social Care Operations,Supplies and Services,"4,317.86",Dec-22
Slough Borough Council,807549,Windsar Care (UK) LLP,M18C,Adult Social Care Operations,Supplies and Services,"4,178.57",Dec-22
Slough Borough Council,807549,Windsar Care (UK) LLP,M18C,Adult Social Care Operations,Supplies and Services,"4,071.43",Dec-22
Slough Borough Council,807549,Windsar Care (UK) LLP,M18C,Adult Social Care Operations,Supplies and Services,"4,178.57",Dec-22
Slough Borough Council,807549,Windsar Care (UK) LLP,M18C,Adult Social Care Operations,Supplies and Services,"4,317.86",Dec-22
Slough Borough Council,807549,Windsar Care (UK) LLP,M18C,Adult Social Care Operations,Supplies and Services,"4,207.14",Dec-22
Slough Borough Council,807549,Windsar Care (UK) LLP,M18C,Adult Social Care Operations,Supplies and Services,"4,317.86",Dec-22
Slough Borough Council,804807,Windsar Care Centre Ltd,M15D,Adult Social Care Operations,Supplies and Services,"6,428.57",Dec-22
Slough Borough Council,804807,Windsar Care Centre Ltd,M15D,Adult Social Care Operations,Supplies and Services,"6,642.86",Dec-22
Slough Borough Council,804807,Windsar Care Centre Ltd,M15F,Adult Social Care Operations,Supplies and Services,"3,171.43",Dec-22
Slough Borough Council,804807,Windsar Care Centre Ltd,M15F,Adult Social Care Operations,Supplies and Services,"3,277.14",Dec-22
Slough Borough Council,804807,Windsar Care Centre Ltd,M17C,Adult Social Care Operations,Supplies and Services,"4,178.57",Dec-22
Slough Borough Council,804807,Windsar Care Centre Ltd,M17C,Adult Social Care Operations,Supplies and Services,"4,071.43",Dec-22
Slough Borough Council,804807,Windsar Care Centre Ltd,M17C,Adult Social Care Operations,Supplies and Services,"4,207.14",Dec-22
Slough Borough Council,804807,Windsar Care Centre Ltd,M17C,Adult Social Care Operations,Supplies and Services,"4,317.86",Dec-22
Slough Borough Council,804807,Windsar Care Centre Ltd,M18C,Adult Social Care Operations,Supplies and Services,"4,178.57",Dec-22
Slough Borough Council,804807,Windsar Care Centre Ltd,M18C,Adult Social Care Operations,Supplies and Services,"3,857.14",Dec-22
Slough Borough Council,804807,Windsar Care Centre Ltd,M18C,Adult Social Care Operations,Supplies and Services,"4,178.57",Dec-22
Slough Borough Council,804807,Windsar Care Centre Ltd,M18C,Adult Social Care Operations,Supplies and Services,"5,142.86",Dec-22
Slough Borough Council,804807,Windsar Care Centre Ltd,M18C,Adult Social Care Operations,Supplies and Services,"4,178.57",Dec-22
Slough Borough Council,804807,Windsar Care Centre Ltd,M18C,Adult Social Care Operations,Supplies and Services,"3,857.14",Dec-22
Slough Borough Council,804807,Windsar Care Centre Ltd,M18C,Adult Social Care Operations,Supplies and Services,"3,214.29",Dec-22
Slough Borough Council,804807,Windsar Care Centre Ltd,M18C,Adult Social Care Operations,Supplies and Services,"4,178.57",Dec-22
Slough Borough Council,804807,Windsar Care Centre Ltd,M18C,Adult Social Care Operations,Supplies and Services,"4,317.86",Dec-22
Slough Borough Council,804807,Windsar Care Centre Ltd,M18C,Adult Social Care Operations,Supplies and Services,"3,321.43",Dec-22
Slough Borough Council,804807,Windsar Care Centre Ltd,M18C,Adult Social Care Operations,Supplies and Services,"3,985.71",Dec-22
Slough Borough Council,804807,Windsar Care Centre Ltd,M18C,Adult Social Care Operations,Supplies and Services,"4,317.86",Dec-22
Slough Borough Council,804807,Windsar Care Centre Ltd,M18C,Adult Social Care Operations,Supplies and Services,"5,314.29",Dec-22
Slough Borough Council,804807,Windsar Care Centre Ltd,M18C,Adult Social Care Operations,Supplies and Services,"4,317.86",Dec-22
Slough Borough Council,804807,Windsar Care Centre Ltd,M18C,Adult Social Care Operations,Supplies and Services,"3,985.71",Dec-22
Slough Borough Council,804807,Windsar Care Centre Ltd,M18C,Adult Social Care Operations,Supplies and Services,"4,317.86",Dec-22
Slough Borough Council,804807,Windsar Care Centre Ltd,M27C,Adult Social Care Operations,Supplies and Services,"3,642.86",Dec-22
Slough Borough Council,804807,Windsar Care Centre Ltd,M27C,Adult Social Care Operations,Supplies and Services,"3,764.28",Dec-22
Slough Borough Council,3604,Windsar Care Ltd,M15F,Adult Social Care Operations,Supplies and Services,"2,103.57",Dec-22
Slough Borough Council,3604,Windsar Care Ltd,M15F,Adult Social Care Operations,Supplies and Services,"2,657.14",Dec-22
Slough Borough Council,3604,Windsar Care Ltd,M15F,Adult Social Care Operations,Supplies and Services,"4,428.57",Dec-22
Slough Borough Council,3604,Windsar Care Ltd,M15F,Adult Social Care Operations,Supplies and Services,"3,432.14",Dec-22
Slough Borough Council,3604,Windsar Care Ltd,M17C,Adult Social Care Operations,Supplies and Services,"3,321.43",Dec-22
Slough Borough Council,3604,Windsar Care Ltd,M18C,Adult Social Care Operations,Supplies and Services,"3,875.00",Dec-22
Slough Borough Council,3604,Windsar Care Ltd,M18C,Adult Social Care Operations,Supplies and Services,"3,542.86",Dec-22
Slough Borough Council,3604,Windsar Care Ltd,M25C,Adult Social Care Operations,Supplies and Services,"3,321.43",Dec-22
Slough Borough Council,3604,Windsar Care Ltd,M25C,Adult Social Care Operations,Supplies and Services,"-2,057.14",Dec-22
Slough Borough Council,3604,Windsar Care Ltd,M25D,Adult Social Care Operations,Supplies and Services,"4,317.86",Dec-22
Slough Borough Council,3604,Windsar Care Ltd,M25D,Adult Social Care Operations,Supplies and Services,"4,317.86",Dec-22
